PublisherLabel,PublisherURI,"Body name","Body","Service area","Service division","Responsible unit","Expenses type","Date","Transaction","Amount","Supplier name"
"Bracknell Forest Council","http://opendatacommunities.org/id/unitary-authority/bracknell-forest","Bracknell Forest Council","00MA","Homelessness","Prevention","Rough Sleeping Project","Other Support to Clients",06/06/2020 00:00:00,"6706833",2800,"ABBEY HOUSE HOTEL READING"
"Bracknell Forest Council","http://opendatacommunities.org/id/unitary-authority/bracknell-forest","Bracknell Forest Council","00MA","Homelessness","Prevention","Rough Sleeping Project","Other Support to Clients",21/07/2020 00:00:00,"6706830",1400,"ABBEY HOUSE HOTEL READING"
"Bracknell Forest Council","http://opendatacommunities.org/id/unitary-authority/bracknell-forest","Bracknell Forest Council","00MA","Homelessness","Prevention","Rough Sleeping Project","Other Support to Clients",23/11/2020 00:00:00,"6713127",1680,"ABBEY HOUSE HOTEL READING"
"Bracknell Forest Council","http://opendatacommunities.org/id/unitary-authority/bracknell-forest","Bracknell Forest Council","00MA","Homelessness","Prevention","Rough Sleeping Project","Other Support to Clients",23/11/2020 00:00:00,"6713128",1680,"ABBEY HOUSE HOTEL READING"
"Bracknell Forest Council","http://opendatacommunities.org/id/unitary-authority/bracknell-forest","Bracknell Forest Council","00MA","Homelessness","Prevention","Rough Sleeping Project","Other Support to Clients",28/10/2020 00:00:00,"6713130",1680,"ABBEY HOUSE HOTEL READING"
"Bracknell Forest Council","http://opendatacommunities.org/id/unitary-authority/bracknell-forest","Bracknell Forest Council","00MA","Homelessness","Prevention","Rough Sleeping Project","Other Support to Clients",19/08/2020 00:00:00,"6709709",1185,"ABBEY HOUSE HOTEL READING"
"Bracknell Forest Council","http://opendatacommunities.org/id/unitary-authority/bracknell-forest","Bracknell Forest Council","00MA","Homelessness","Prevention","Rough Sleeping Project","Other Support to Clients",19/08/2020 00:00:00,"6709709",1038,"ABBEY HOUSE HOTEL READING"
"Bracknell Forest Council","http://opendatacommunities.org/id/unitary-authority/bracknell-forest","Bracknell Forest Council","00MA","Homelessness","Prevention","Rough Sleeping Project","Other Support to Clients",29/08/2020 00:00:00,"6709713",1176,"ABBEY HOUSE HOTEL READING"
"Bracknell Forest Council","http://opendatacommunities.org/id/unitary-authority/bracknell-forest","Bracknell Forest Council","00MA","Homelessness","Prevention","Rough Sleeping Project","Other Support to Clients",02/08/2020 00:00:00,"6709714",585,"ABBEY HOUSE HOTEL READING"
"Bracknell Forest Council","http://opendatacommunities.org/id/unitary-authority/bracknell-forest","Bracknell Forest Council","00MA","Homelessness","Prevention","Rough Sleeping Project","Other Support to Clients",02/08/2020 00:00:00,"6709714",1638,"ABBEY HOUSE HOTEL READING"
"Bracknell Forest Council","http://opendatacommunities.org/id/unitary-authority/bracknell-forest","Bracknell Forest Council","00MA","Homelessness","Prevention","Rough Sleeping Project","Other Support to Clients",14/09/2020 00:00:00,"6709712",1176,"ABBEY HOUSE HOTEL READING"
"Bracknell Forest Council","http://opendatacommunities.org/id/unitary-authority/bracknell-forest","Bracknell Forest Council","00MA","Homelessness","Prevention","Rough Sleeping Project","Other Support to Clients",10/10/2020 00:00:00,"6711096",1176,"ABBEY HOUSE HOTEL READING"
"Bracknell Forest Council","http://opendatacommunities.org/id/unitary-authority/bracknell-forest","Bracknell Forest Council","00MA","Homelessness","Prevention","Rough Sleeping Project","Other Support to Clients",25/09/2020 00:00:00,"6711097",1176,"ABBEY HOUSE HOTEL READING"
"Bracknell Forest Council","http://opendatacommunities.org/id/unitary-authority/bracknell-forest","Bracknell Forest Council","00MA","Adults (18-64)","Long term Support - Residential","LD Adults 18-64 Long Term Support - Residential","Contracted Services",09/07/2020 00:00:00,"30379636",6159.29,"ABBEYFIELD LODGE NURSING HOME"
"Bracknell Forest Council","http://opendatacommunities.org/id/unitary-authority/bracknell-forest","Bracknell Forest Council","00MA","Adults (18-64)","Long term Support - Residential","LD Adults 18-64 Long Term Support - Residential","Contracted Services",06/08/2020 00:00:00,"30380809",3090.72,"ABBEYFIELD LODGE NURSING HOME"
"Bracknell Forest Council","http://opendatacommunities.org/id/unitary-authority/bracknell-forest","Bracknell Forest Council","00MA","Adults (18-64)","Long term Support - Residential","LD Adults 18-64 Long Term Support - Residential","Contracted Services",03/09/2020 00:00:00,"30381911",3090.72,"ABBEYFIELD LODGE NURSING HOME"
"Bracknell Forest Council","http://opendatacommunities.org/id/unitary-authority/bracknell-forest","Bracknell Forest Council","00MA","Adults (18-64)","Long term Support - Residential","LD Adults 18-64 Long Term Support - Residential","Contracted Services",01/10/2020 00:00:00,"30383143",3090.72,"ABBEYFIELD LODGE NURSING HOME"
"Bracknell Forest Council","http://opendatacommunities.org/id/unitary-authority/bracknell-forest","Bracknell Forest Council","00MA","Adults (18-64)","Long term Support - Residential","LD Adults 18-64 Long Term Support - Residential","Contracted Services",29/10/2020 00:00:00,"30384805",3090.72,"ABBEYFIELD LODGE NURSING HOME"
"Bracknell Forest Council","http://opendatacommunities.org/id/unitary-authority/bracknell-forest","Bracknell Forest Council","00MA","Adults (18-64)","Long term Support - Residential","LD Adults 18-64 Long Term Support - Residential","Contracted Services",26/11/2020 00:00:00,"30386111",3090.72,"ABBEYFIELD LODGE NURSING HOME"
"Bracknell Forest Council","http://opendatacommunities.org/id/unitary-authority/bracknell-forest","Bracknell Forest Council","00MA","Children Looked After","Residential care","Children's Home Placements","Contracted Services",15/08/2020 00:00:00,"6710675",30372.57,"ABBEYMEAD HOUSE PRIORY"
"Bracknell Forest Council","http://opendatacommunities.org/id/unitary-authority/bracknell-forest","Bracknell Forest Council","00MA","Children Looked After","Residential care","Children's Home Placements","Contracted Services",15/09/2020 00:00:00,"6710671",22285.71,"ABBEYMEAD HOUSE PRIORY"
"Bracknell Forest Council","http://opendatacommunities.org/id/unitary-authority/bracknell-forest","Bracknell Forest Council","00MA","Children Looked After","Residential care","Children's Home Placements","Contracted Services",01/08/2020 00:00:00,"6710674",11508.57,"ABBEYMEAD HOUSE PRIORY"
"Bracknell Forest Council","http://opendatacommunities.org/id/unitary-authority/bracknell-forest","Bracknell Forest Council","00MA","Children Looked After","Residential care","Children's Home Placements","Contracted Services",15/10/2020 00:00:00,"6711874",23028.57,"ABBEYMEAD HOUSE PRIORY"
"Bracknell Forest Council","http://opendatacommunities.org/id/unitary-authority/bracknell-forest","Bracknell Forest Council","00MA","Children Looked After","Residential care","Children's Home Placements","Contracted Services",01/08/2020 00:00:00,"6707098",15500,"AMEGREEN CHILDRENS SERVICES"
"Bracknell Forest Council","http://opendatacommunities.org/id/unitary-authority/bracknell-forest","Bracknell Forest Council","00MA","Children Looked After","Residential care","Children's Home Placements","Contracted Services",01/11/2020 00:00:00,"6712452",15000,"AMEGREEN CHILDRENS SERVICES"
"Bracknell Forest Council","http://opendatacommunities.org/id/unitary-authority/bracknell-forest","Bracknell Forest Council","00MA","Children Looked After","Residential care","Children's Home Placements","Contracted Services",01/11/2020 00:00:00,"6712454",15000,"AMEGREEN CHILDRENS SERVICES"
"Bracknell Forest Council","http://opendatacommunities.org/id/unitary-authority/bracknell-forest","Bracknell Forest Council","00MA","Children Looked After","Residential care","Children's Home Placements","Contracted Services",01/09/2020 00:00:00,"6708852",15000,"AMEGREEN CHILDRENS SERVICES"
"Bracknell Forest Council","http://opendatacommunities.org/id/unitary-authority/bracknell-forest","Bracknell Forest Council","00MA","Children Looked After","Residential care","Children's Home Placements","Contracted Services",01/09/2020 00:00:00,"6708857",15000,"AMEGREEN CHILDRENS SERVICES"
"Bracknell Forest Council","http://opendatacommunities.org/id/unitary-authority/bracknell-forest","Bracknell Forest Council","00MA","Children Looked After","Residential care","Children's Home Placements","Contracted Services",01/10/2020 00:00:00,"6710533",15500,"AMEGREEN CHILDRENS SERVICES"
"Bracknell Forest Council","http://opendatacommunities.org/id/unitary-authority/bracknell-forest","Bracknell Forest Council","00MA","Cemeteries, Crematoria & Mortuary Services","Cemeteries & Crematorium","Cemetery & Crematorium Landscaping","Materials",13/07/2020 00:00:00,"6706493",2035.4,"AMETHYST HORTICULTURE LIMITED"
"Bracknell Forest Council","http://opendatacommunities.org/id/unitary-authority/bracknell-forest","Bracknell Forest Council","00MA","Culture and Heritage","Heritage Museums & Galleries","The Look Out","R&M - Reactive",17/03/2020 00:00:00,"6702989",1584,"ANCHOR PIPEWORK LIMITED"
"Bracknell Forest Council","http://opendatacommunities.org/id/unitary-authority/bracknell-forest","Bracknell Forest Council","00MA","Recreation, Sports and Leisure","Community Centres","Community Centres Support","R&M - Reactive",06/10/2020 00:00:00,"6710632",4771.1,"ANCHOR PIPEWORK LIMITED"
"Bracknell Forest Council","http://opendatacommunities.org/id/unitary-authority/bracknell-forest","Bracknell Forest Council","00MA","Secondary Schools","Delegated Primary School Budgets","Binfield CE - Primary","R&M - Reactive",28/08/2020 00:00:00,"6709008",1900.37,"ANCHOR PIPEWORK LIMITED"
"Bracknell Forest Council","http://opendatacommunities.org/id/unitary-authority/bracknell-forest","Bracknell Forest Council","00MA","Secondary Schools","Delegated Primary School Budgets","St Joseph's - Catholic Primary","R&M - Reactive",11/09/2020 00:00:00,"6709315",565.04,"ANCHOR PIPEWORK LIMITED"
"Bracknell Forest Council","http://opendatacommunities.org/id/unitary-authority/bracknell-forest","Bracknell Forest Council","00MA","Holding Accounts not in Budget Book - COF","General Holding Accounts","Certificated Contract Payments","R&M - Service Contracts",28/08/2020 00:00:00,"6709432",1760,"ANCHOR PIPEWORK LIMITED"
"Bracknell Forest Council","http://opendatacommunities.org/id/unitary-authority/bracknell-forest","Bracknell Forest Council","00MA","Holding Accounts not in Budget Book - COF","General Holding Accounts","Certificated Contract Payments","R&M - Service Contracts",07/07/2020 00:00:00,"6708123",3068.2,"ANCHOR PIPEWORK LIMITED"
"Bracknell Forest Council","http://opendatacommunities.org/id/unitary-authority/bracknell-forest","Bracknell Forest Council","00MA","Holding Accounts not in Budget Book - COF","General Holding Accounts","Certificated Contract Payments","R&M - Service Contracts",10/08/2020 00:00:00,"6708124",680,"ANCHOR PIPEWORK LIMITED"
"Bracknell Forest Council","http://opendatacommunities.org/id/unitary-authority/bracknell-forest","Bracknell Forest Council","00MA","Holding Accounts not in Budget Book - COF","General Holding Accounts","Certificated Contract Payments","R&M - Service Contracts",02/10/2020 00:00:00,"6710524",1837.5,"ANCHOR PIPEWORK LIMITED"
"Bracknell Forest Council","http://opendatacommunities.org/id/unitary-authority/bracknell-forest","Bracknell Forest Council","00MA","Holding Accounts not in Budget Book - COF","General Holding Accounts","Certificated Contract Payments","R&M - Service Contracts",21/09/2020 00:00:00,"6710525",8095.06,"ANCHOR PIPEWORK LIMITED"
"Bracknell Forest Council","http://opendatacommunities.org/id/unitary-authority/bracknell-forest","Bracknell Forest Council","00MA","Central Support Services - COF","Construction and Property","Time Square Office","R&M - Reactive",21/10/2020 00:00:00,"6711643",1265.28,"ANCHOR PIPEWORK LIMITED"
"Bracknell Forest Council","http://opendatacommunities.org/id/unitary-authority/bracknell-forest","Bracknell Forest Council","00MA","Central Support Services - COF","Construction and Property","Time Square Office","R&M - Service Contracts",21/09/2020 00:00:00,"6710446",711,"ANCHOR PIPEWORK LIMITED"
"Bracknell Forest Council","http://opendatacommunities.org/id/unitary-authority/bracknell-forest","Bracknell Forest Council","00MA","Special Schools","Delegated Secondary Schools Budgets","Garth Hill - Secondary","R&M - Reactive",19/06/2020 00:00:00,"6705497",7727.86,"ANCHOR PIPEWORK LIMITED"
"Bracknell Forest Council","http://opendatacommunities.org/id/unitary-authority/bracknell-forest","Bracknell Forest Council","00MA","Other Education and Community Budget","Service strategy and other education functions","Standards and Effectiveness","Members Training & Development",15/07/2020 00:00:00,"6706504",9350,"ANGEL SOLUTIONS LTD"
"Bracknell Forest Council","http://opendatacommunities.org/id/unitary-authority/bracknell-forest","Bracknell Forest Council","00MA","Older People (65+)","Long term Support - Residential","Adult Social Care Covid19 Residential","Grants and Donations",27/07/2020 00:00:00,"6708087",6000,"ANGEL SOULS CARE LTD"
"Bracknell Forest Council","http://opendatacommunities.org/id/unitary-authority/bracknell-forest","Bracknell Forest Council","00MA","Other Welfare Services","Other Welfare Services","Forestcare - Lifeline (Running Costs)","Equipment - Purchase",06/10/2020 00:00:00,"6710569",2700,"ANYWHERE CARE LIMITED"
"Bracknell Forest Council","http://opendatacommunities.org/id/unitary-authority/bracknell-forest","Bracknell Forest Council","00MA","Special Schools & Alternative Provision","Youth Services","Alternative Provision for Secondary Aged pupils without a statement","Voluntary Sector Service Providers",16/10/2020 00:00:00,"6712312",630,"AUTO SKILLS (READING) CIC"
"Bracknell Forest Council","http://opendatacommunities.org/id/unitary-authority/bracknell-forest","Bracknell Forest Council","00MA","Central Support Services - COF","Information Technology","Hosted Software","Computer Software Maintenance",31/10/2020 00:00:00,"6712861",4000,"AUTOMATED INTELLIGENCE LTD"
"Bracknell Forest Council","http://opendatacommunities.org/id/unitary-authority/bracknell-forest","Bracknell Forest Council","00MA","Central Support Services - COF","Information Technology","Hosted Software","Computer Software Maintenance",30/09/2020 00:00:00,"6710430",8600,"AUTOMATED INTELLIGENCE LTD"
"Bracknell Forest Council","http://opendatacommunities.org/id/unitary-authority/bracknell-forest","Bracknell Forest Council","00MA","Adults (18-64)","Long Term Support - Nursing","LD Adults 18-64 Long Term Support - Nursing","Contracted Services",09/07/2020 00:00:00,"30379636",3470.32,"AVALON NURSING HOME"
"Bracknell Forest Council","http://opendatacommunities.org/id/unitary-authority/bracknell-forest","Bracknell Forest Council","00MA","Adults (18-64)","Long Term Support - Nursing","LD Adults 18-64 Long Term Support - Nursing","Contracted Services",06/08/2020 00:00:00,"30380809",3470.32,"AVALON NURSING HOME"
"Bracknell Forest Council","http://opendatacommunities.org/id/unitary-authority/bracknell-forest","Bracknell Forest Council","00MA","Adults (18-64)","Long Term Support - Nursing","LD Adults 18-64 Long Term Support - Nursing","Contracted Services",03/09/2020 00:00:00,"30381911",3470.32,"AVALON NURSING HOME"
"Bracknell Forest Council","http://opendatacommunities.org/id/unitary-authority/bracknell-forest","Bracknell Forest Council","00MA","Adults (18-64)","Long Term Support - Nursing","LD Adults 18-64 Long Term Support - Nursing","Contracted Services",01/10/2020 00:00:00,"30383143",3470.32,"AVALON NURSING HOME"
"Bracknell Forest Council","http://opendatacommunities.org/id/unitary-authority/bracknell-forest","Bracknell Forest Council","00MA","Adults (18-64)","Long Term Support - Nursing","LD Adults 18-64 Long Term Support - Nursing","Contracted Services",29/10/2020 00:00:00,"30384805",3470.32,"AVALON NURSING HOME"
"Bracknell Forest Council","http://opendatacommunities.org/id/unitary-authority/bracknell-forest","Bracknell Forest Council","00MA","Adults (18-64)","Long Term Support - Nursing","LD Adults 18-64 Long Term Support - Nursing","Contracted Services",26/11/2020 00:00:00,"30386111",3470.32,"AVALON NURSING HOME"
"Bracknell Forest Council","http://opendatacommunities.org/id/unitary-authority/bracknell-forest","Bracknell Forest Council","00MA","Adults (18-64)","Long term Support - Residential","LD Adults 18-64 Long Term Support - Residential","Contracted Services",09/07/2020 00:00:00,"30379636",6238.6,"AVON AUTISTIC FOUNDATION"
"Bracknell Forest Council","http://opendatacommunities.org/id/unitary-authority/bracknell-forest","Bracknell Forest Council","00MA","Adults (18-64)","Long term Support - Residential","LD Adults 18-64 Long Term Support - Residential","Contracted Services",06/08/2020 00:00:00,"30380809",6238.6,"AVON AUTISTIC FOUNDATION"
"Bracknell Forest Council","http://opendatacommunities.org/id/unitary-authority/bracknell-forest","Bracknell Forest Council","00MA","Adults (18-64)","Long term Support - Residential","LD Adults 18-64 Long Term Support - Residential","Contracted Services",03/09/2020 00:00:00,"30381911",6238.6,"AVON AUTISTIC FOUNDATION"
"Bracknell Forest Council","http://opendatacommunities.org/id/unitary-authority/bracknell-forest","Bracknell Forest Council","00MA","Adults (18-64)","Long term Support - Residential","LD Adults 18-64 Long Term Support - Residential","Contracted Services",01/10/2020 00:00:00,"30383143",6238.6,"AVON AUTISTIC FOUNDATION"
"Bracknell Forest Council","http://opendatacommunities.org/id/unitary-authority/bracknell-forest","Bracknell Forest Council","00MA","Adults (18-64)","Long term Support - Residential","LD Adults 18-64 Long Term Support - Residential","Contracted Services",29/10/2020 00:00:00,"30384805",6238.6,"AVON AUTISTIC FOUNDATION"
"Bracknell Forest Council","http://opendatacommunities.org/id/unitary-authority/bracknell-forest","Bracknell Forest Council","00MA","Adults (18-64)","Long term Support - Residential","LD Adults 18-64 Long Term Support - Residential","Contracted Services",26/11/2020 00:00:00,"30386111",6238.6,"AVON AUTISTIC FOUNDATION"
"Bracknell Forest Council","http://opendatacommunities.org/id/unitary-authority/bracknell-forest","Bracknell Forest Council","00MA","Management and Support Services - CYPL","Unallocated High Needs Related Expenditure","TPECG for SEND Pupils in Independant Settings","Voluntary Sector Service Providers",12/05/2020 00:00:00,"6706172",565.78,"AVON PARK SCHOOL (A DIVISION OF WITHERSLACK GROUP LTD)"
"Bracknell Forest Council","http://opendatacommunities.org/id/unitary-authority/bracknell-forest","Bracknell Forest Council","00MA","Management and Support Services - CYPL","Unallocated High Needs Related Expenditure","SEN Non LEA Provision Pre 16","Voluntary Sector Service Providers",10/06/2020 00:00:00,"6706528",26197.33,"AVON PARK SCHOOL (A DIVISION OF WITHERSLACK GROUP LTD)"
"Bracknell Forest Council","http://opendatacommunities.org/id/unitary-authority/bracknell-forest","Bracknell Forest Council","00MA","Other Welfare Services","Other Welfare Services","Forestcare - Operational","Equipment - Purchase",20/07/2020 00:00:00,"6706533",724.47,"AVR INTERNATIONAL LIMITED"
"Bracknell Forest Council","http://opendatacommunities.org/id/unitary-authority/bracknell-forest","Bracknell Forest Council","00MA","Holding Accounts not in Budget Book - COF","General Holding Accounts","Certificated Contract Payments","R&M - Service Contracts",14/10/2020 00:00:00,"6712342",2636.73,"AXIOM UTILITIES LTD"
"Bracknell Forest Council","http://opendatacommunities.org/id/unitary-authority/bracknell-forest","Bracknell Forest Council","00MA","Business Support","Premises Development","Easthampstead Park Conference Centre","Electricity",25/03/2020 00:00:00,"6711949",585.3,"AXIOM UTILITIES LTD"
"Bracknell Forest Council","http://opendatacommunities.org/id/unitary-authority/bracknell-forest","Bracknell Forest Council","00MA","Older People (65+)","Long term Support - Residential","MH Older People 65+ Long Term Support - Residential","Contracted Services",26/11/2020 00:00:00,"30386111",3002.4,"BELAMIE GABLES"
"Bracknell Forest Council","http://opendatacommunities.org/id/unitary-authority/bracknell-forest","Bracknell Forest Council","00MA","Older People (65+)","Long term Support - Residential","PS Older People 65+ Long Term Support - Residential","Contracted Services",26/11/2020 00:00:00,"30386111",3661.2,"BELAMIE GABLES"
"Bracknell Forest Council","http://opendatacommunities.org/id/unitary-authority/bracknell-forest","Bracknell Forest Council","00MA","Adults (18-64)","Long term Support - Residential","PS Adults 18-64 Long Term Support - Residential","Contracted Services",26/11/2020 00:00:00,"30386111",3400,"BELAMIE GABLES"
"Bracknell Forest Council","http://opendatacommunities.org/id/unitary-authority/bracknell-forest","Bracknell Forest Council","00MA","Older People (65+)","Long term Support - Residential","MC Older People 65+ Long Term Support - Residential","Contracted Services",26/11/2020 00:00:00,"30386111",3002.4,"BELAMIE GABLES"
"Bracknell Forest Council","http://opendatacommunities.org/id/unitary-authority/bracknell-forest","Bracknell Forest Council","00MA","Street Cleansing","Street Cleansing","Street Cleaning","Equipment - Purchase",28/07/2020 00:00:00,"6707339",541.8,"BELL BRUSH"
"Bracknell Forest Council","http://opendatacommunities.org/id/unitary-authority/bracknell-forest","Bracknell Forest Council","00MA","Business Support","Premises Development","Warren Row Shops","Other Fees for Bought-in Services",04/11/2020 00:00:00,"6711933",1410,"BENVILLE AND MARSH LTD"
"Bracknell Forest Council","http://opendatacommunities.org/id/unitary-authority/bracknell-forest","Bracknell Forest Council","00MA","Business Support","Premises Development","Forest Park","R&M - Reactive",05/10/2020 00:00:00,"6710623",1575,"BENVILLE AND MARSH LTD"
"Bracknell Forest Council","http://opendatacommunities.org/id/unitary-authority/bracknell-forest","Bracknell Forest Council","00MA","Business Support","Premises Development","Longshot Lane Industrial Estate","R&M - Reactive",11/08/2020 00:00:00,"6707761",565,"BENVILLE AND MARSH LTD"
"Bracknell Forest Council","http://opendatacommunities.org/id/unitary-authority/bracknell-forest","Bracknell Forest Council","00MA","Business Support","Premises Development","Waterside Park - Building C","Other Fees for Bought-in Services",02/11/2020 00:00:00,"6711753",1220,"BENVILLE AND MARSH LTD"
"Bracknell Forest Council","http://opendatacommunities.org/id/unitary-authority/bracknell-forest","Bracknell Forest Council","00MA","Business Support","Premises Development","Longshot Lane Industrial Estate","Other Fees for Bought-in Services",15/09/2020 00:00:00,"6709604",1855,"BENVILLE AND MARSH LTD"
"Bracknell Forest Council","http://opendatacommunities.org/id/unitary-authority/bracknell-forest","Bracknell Forest Council","00MA","Business Support","Premises Development","Longshot Lane Industrial Estate","R&M - Reactive",02/11/2020 00:00:00,"6711755",4355,"BENVILLE AND MARSH LTD"
"Bracknell Forest Council","http://opendatacommunities.org/id/unitary-authority/bracknell-forest","Bracknell Forest Council","00MA","Central Support Services - COF","Construction and Property","Depot Facilities","Equipment - R&M",02/11/2020 00:00:00,"6711733",2400,"BENVILLE AND MARSH LTD"
"Bracknell Forest Council","http://opendatacommunities.org/id/unitary-authority/bracknell-forest","Bracknell Forest Council","00MA","Special Schools","Delegated Secondary Schools Budgets","Garth Hill - Secondary","R&M - Reactive",02/11/2020 00:00:00,"6711934",11995,"BENVILLE AND MARSH LTD"
"Bracknell Forest Council","http://opendatacommunities.org/id/unitary-authority/bracknell-forest","Bracknell Forest Council","00MA","Central Support Services - COF","Construction and Property","Time Square Office","Fire Precaution Appliances",16/06/2020 00:00:00,"6708308",698.52,"BERKS EXTINGUISHER SERVICE"
"Bracknell Forest Council","http://opendatacommunities.org/id/unitary-authority/bracknell-forest","Bracknell Forest Council","00MA","Commissioning & Service Delivery","Commissioning & Service Delivery","Infection Control Grant","Contracted Services",07/09/2020 00:00:00,"60016707",1428.58,"BERKSHIRE DEMCARE LTD"
"Bracknell Forest Council","http://opendatacommunities.org/id/unitary-authority/bracknell-forest","Bracknell Forest Council","00MA","Management and Support Services - CYPL","De-Delegated Expenditure","Home to School Transport","Taxi Fares - Home/School Transport",01/12/2020 00:00:00,"6713519",10066.25,"BERKSHIRE EDUCATION TRAVEL"
"Bracknell Forest Council","http://opendatacommunities.org/id/unitary-authority/bracknell-forest","Bracknell Forest Council","00MA","Management and Support Services - CYPL","De-Delegated Expenditure","Home to School Transport","Taxi Fares - Home/School Transport",01/12/2020 00:00:00,"6713519",1826.25,"BERKSHIRE EDUCATION TRAVEL"
"Bracknell Forest Council","http://opendatacommunities.org/id/unitary-authority/bracknell-forest","Bracknell Forest Council","00MA","Management and Support Services - CYPL","De-Delegated Expenditure","Home to School Transport","Taxi Fares - Home/School Transport",01/12/2020 00:00:00,"6713522",5820,"BERKSHIRE EDUCATION TRAVEL"
"Bracknell Forest Council","http://opendatacommunities.org/id/unitary-authority/bracknell-forest","Bracknell Forest Council","00MA","Management and Support Services - CYPL","De-Delegated Expenditure","Home to School Transport","Taxi Fares - Home/School Transport",01/12/2020 00:00:00,"6713525",650,"BERKSHIRE EDUCATION TRAVEL"
"Bracknell Forest Council","http://opendatacommunities.org/id/unitary-authority/bracknell-forest","Bracknell Forest Council","00MA","Management and Support Services - CYPL","De-Delegated Expenditure","Home to School Transport","Taxi Fares - Home/School Transport",01/12/2020 00:00:00,"6713525",24005,"BERKSHIRE EDUCATION TRAVEL"
"Bracknell Forest Council","http://opendatacommunities.org/id/unitary-authority/bracknell-forest","Bracknell Forest Council","00MA","Management and Support Services - CYPL","De-Delegated Expenditure","Home to School Transport","Taxi Fares - Home/School Transport",01/12/2020 00:00:00,"6713527",525,"BERKSHIRE EDUCATION TRAVEL"
"Bracknell Forest Council","http://opendatacommunities.org/id/unitary-authority/bracknell-forest","Bracknell Forest Council","00MA","Older People (65+)","Long Term Support - Nursing","MC Older People 65+ Long Term Support - Nursing","Contracted Services",06/08/2020 00:00:00,"30380809",3357.92,"CARE UK COMMUNITY PARTNERSHIPS LTD"
"Bracknell Forest Council","http://opendatacommunities.org/id/unitary-authority/bracknell-forest","Bracknell Forest Council","00MA","Older People (65+)","Long Term Support - Nursing","MC Older People 65+ Long Term Support - Nursing","Contracted Services",06/08/2020 00:00:00,"30380809",3357.92,"CARE UK COMMUNITY PARTNERSHIPS LTD"
"Bracknell Forest Council","http://opendatacommunities.org/id/unitary-authority/bracknell-forest","Bracknell Forest Council","00MA","Older People (65+)","Long Term Support - Nursing","MC Older People 65+ Long Term Support - Nursing","Contracted Services",06/08/2020 00:00:00,"30380809",5600,"CARE UK COMMUNITY PARTNERSHIPS LTD"
"Bracknell Forest Council","http://opendatacommunities.org/id/unitary-authority/bracknell-forest","Bracknell Forest Council","00MA","Older People (65+)","Long Term Support - Nursing","MC Older People 65+ Long Term Support - Nursing","Contracted Services",06/08/2020 00:00:00,"30380809",3357.92,"CARE UK COMMUNITY PARTNERSHIPS LTD"
"Bracknell Forest Council","http://opendatacommunities.org/id/unitary-authority/bracknell-forest","Bracknell Forest Council","00MA","Older People (65+)","Long Term Support - Nursing","MC Older People 65+ Long Term Support - Nursing","Contracted Services",06/08/2020 00:00:00,"30380809",3105.92,"CARE UK COMMUNITY PARTNERSHIPS LTD"
"Bracknell Forest Council","http://opendatacommunities.org/id/unitary-authority/bracknell-forest","Bracknell Forest Council","00MA","Adults (18-64)","Long Term Support - Nursing","PS Adults 18-64 Long Term Support - Nursing","Contracted Services",06/08/2020 00:00:00,"30380809",3296.16,"CARE UK COMMUNITY PARTNERSHIPS LTD"
"Bracknell Forest Council","http://opendatacommunities.org/id/unitary-authority/bracknell-forest","Bracknell Forest Council","00MA","Older People (65+)","Long Term Support - Nursing","PS Older People 65+ Long Term Support - Nursing","Contracted Services",03/09/2020 00:00:00,"30381911",3934.16,"CARE UK COMMUNITY PARTNERSHIPS LTD"
"Bracknell Forest Council","http://opendatacommunities.org/id/unitary-authority/bracknell-forest","Bracknell Forest Council","00MA","Adults (18-64)","Long term Support - Residential","MH Adults 18-64 Long Term Support - Residential","Contracted Services",09/07/2020 00:00:00,"30379636",1273.44,"2 CARE"
"Bracknell Forest Council","http://opendatacommunities.org/id/unitary-authority/bracknell-forest","Bracknell Forest Council","00MA","Adults (18-64)","Long term Support - Residential","MH Adults 18-64 Long Term Support - Residential","Contracted Services",06/08/2020 00:00:00,"30380809",2546.8,"2 CARE"
"Bracknell Forest Council","http://opendatacommunities.org/id/unitary-authority/bracknell-forest","Bracknell Forest Council","00MA","Adults (18-64)","Long term Support - Residential","MH Adults 18-64 Long Term Support - Residential","Contracted Services",03/09/2020 00:00:00,"30381911",2546.8,"2 CARE"
"Bracknell Forest Council","http://opendatacommunities.org/id/unitary-authority/bracknell-forest","Bracknell Forest Council","00MA","Adults (18-64)","Long term Support - Residential","MH Adults 18-64 Long Term Support - Residential","Contracted Services",01/10/2020 00:00:00,"30383143",2546.8,"2 CARE"
"Bracknell Forest Council","http://opendatacommunities.org/id/unitary-authority/bracknell-forest","Bracknell Forest Council","00MA","Adults (18-64)","Long term Support - Residential","MH Adults 18-64 Long Term Support - Residential","Contracted Services",29/10/2020 00:00:00,"30384805",2546.8,"2 CARE"
"Bracknell Forest Council","http://opendatacommunities.org/id/unitary-authority/bracknell-forest","Bracknell Forest Council","00MA","Adults (18-64)","Long term Support - Residential","MH Adults 18-64 Long Term Support - Residential","Contracted Services",26/11/2020 00:00:00,"30386110",2546.8,"2 CARE"
"Bracknell Forest Council","http://opendatacommunities.org/id/unitary-authority/bracknell-forest","Bracknell Forest Council","00MA","Environment, Safety & Routine Maintenance","Safety Maintenance (Principal Roads)","Traffic Signals","R&M - Planned",14/09/2020 00:00:00,"6710837",12604.32,"21ST CENTURY PASSENGER SSYSTEMS LIMITED"
"Bracknell Forest Council","http://opendatacommunities.org/id/unitary-authority/bracknell-forest","Bracknell Forest Council","00MA","Cemeteries, Crematoria & Mortuary Services","Cemeteries & Crematorium","Easthampstead Park Cemetery & Crematorium","Contracted Services",02/11/2020 00:00:00,"6712087",553.03,"2468 GROUP"
"Bracknell Forest Council","http://opendatacommunities.org/id/unitary-authority/bracknell-forest","Bracknell Forest Council","00MA","Cemeteries, Crematoria & Mortuary Services","Cemeteries & Crematorium","Easthampstead Park Cemetery & Crematorium","Contracted Services",01/08/2020 00:00:00,"6707439",553.03,"2468 GROUP"
"Bracknell Forest Council","http://opendatacommunities.org/id/unitary-authority/bracknell-forest","Bracknell Forest Council","00MA","Parking Services","Off Street Parking","The Avenue Car Park","Banking Charges",31/10/2020 00:00:00,"6712406",3891.76,"3C PAYMENT UK LTD"
"Bracknell Forest Council","http://opendatacommunities.org/id/unitary-authority/bracknell-forest","Bracknell Forest Council","00MA","Parking Services","Off Street Parking","The Avenue Car Park","Banking Charges",30/09/2020 00:00:00,"6713260",3608.88,"3C PAYMENT UK LTD"
"Bracknell Forest Council","http://opendatacommunities.org/id/unitary-authority/bracknell-forest","Bracknell Forest Council","00MA","Parking Services","Off Street Parking","The Avenue Car Park","Banking Charges",31/07/2020 00:00:00,"6707710",2992.4,"3C PAYMENT UK LTD"
"Bracknell Forest Council","http://opendatacommunities.org/id/unitary-authority/bracknell-forest","Bracknell Forest Council","00MA","Parking Services","Off Street Parking","The Avenue Car Park","Banking Charges",31/08/2020 00:00:00,"6708902",4099.04,"3C PAYMENT UK LTD"
"Bracknell Forest Council","http://opendatacommunities.org/id/unitary-authority/bracknell-forest","Bracknell Forest Council","00MA","Older People (65+)","Long term Support - Residential","Adult Social Care Covid19 Residential","Grants and Donations",21/08/2020 00:00:00,"6708329",12850.41,"A&T CARING SERVICES"
"Bracknell Forest Council","http://opendatacommunities.org/id/unitary-authority/bracknell-forest","Bracknell Forest Council","00MA","Older People (65+)","Long Term Support - Nursing","PS Older People 65+ Long Term Support - Nursing","Contracted Services",03/09/2020 00:00:00,"30381911",3934.16,"CARE UK COMMUNITY PARTNERSHIPS LTD"
"Bracknell Forest Council","http://opendatacommunities.org/id/unitary-authority/bracknell-forest","Bracknell Forest Council","00MA","Older People (65+)","Long Term Support - Nursing","PS Older People 65+ Long Term Support - Nursing","Contracted Services",03/09/2020 00:00:00,"30381911",3296.2,"CARE UK COMMUNITY PARTNERSHIPS LTD"
"Bracknell Forest Council","http://opendatacommunities.org/id/unitary-authority/bracknell-forest","Bracknell Forest Council","00MA","Older People (65+)","Long Term Support - Nursing","PS Older People 65+ Long Term Support - Nursing","Contracted Services",03/09/2020 00:00:00,"30381911",4293.76,"CARE UK COMMUNITY PARTNERSHIPS LTD"
"Bracknell Forest Council","http://opendatacommunities.org/id/unitary-authority/bracknell-forest","Bracknell Forest Council","00MA","Older People (65+)","Long Term Support - Nursing","PS Older People 65+ Long Term Support - Nursing","Contracted Services",03/09/2020 00:00:00,"30381911",3864.6,"CARE UK COMMUNITY PARTNERSHIPS LTD"
"Bracknell Forest Council","http://opendatacommunities.org/id/unitary-authority/bracknell-forest","Bracknell Forest Council","00MA","Older People (65+)","Long Term Support - Nursing","PS Older People 65+ Long Term Support - Nursing","Contracted Services",03/09/2020 00:00:00,"30381911",3292.08,"CARE UK COMMUNITY PARTNERSHIPS LTD"
"Bracknell Forest Council","http://opendatacommunities.org/id/unitary-authority/bracknell-forest","Bracknell Forest Council","00MA","Older People (65+)","Long Term Support - Nursing","MC Older People 65+ Long Term Support - Nursing","Contracted Services",03/09/2020 00:00:00,"30381911",3292.08,"CARE UK COMMUNITY PARTNERSHIPS LTD"
"Bracknell Forest Council","http://opendatacommunities.org/id/unitary-authority/bracknell-forest","Bracknell Forest Council","00MA","Older People (65+)","Long Term Support - Nursing","MC Older People 65+ Long Term Support - Nursing","Contracted Services",03/09/2020 00:00:00,"30381911",3357.92,"CARE UK COMMUNITY PARTNERSHIPS LTD"
"Bracknell Forest Council","http://opendatacommunities.org/id/unitary-authority/bracknell-forest","Bracknell Forest Council","00MA","Older People (65+)","Long Term Support - Nursing","MC Older People 65+ Long Term Support - Nursing","Contracted Services",03/09/2020 00:00:00,"30381911",3357.92,"CARE UK COMMUNITY PARTNERSHIPS LTD"
"Bracknell Forest Council","http://opendatacommunities.org/id/unitary-authority/bracknell-forest","Bracknell Forest Council","00MA","Older People (65+)","Long Term Support - Nursing","MC Older People 65+ Long Term Support - Nursing","Contracted Services",03/09/2020 00:00:00,"30381911",3105.92,"CARE UK COMMUNITY PARTNERSHIPS LTD"
"Bracknell Forest Council","http://opendatacommunities.org/id/unitary-authority/bracknell-forest","Bracknell Forest Council","00MA","Adults (18-64)","Long Term Support - Nursing","PS Adults 18-64 Long Term Support - Nursing","Contracted Services",03/09/2020 00:00:00,"30381911",3296.16,"CARE UK COMMUNITY PARTNERSHIPS LTD"
"Bracknell Forest Council","http://opendatacommunities.org/id/unitary-authority/bracknell-forest","Bracknell Forest Council","00MA","Older People (65+)","Long Term Support - Nursing","MC Older People 65+ Long Term Support - Nursing","Contracted Services",03/09/2020 00:00:00,"30381911",5600,"CARE UK COMMUNITY PARTNERSHIPS LTD"
"Bracknell Forest Council","http://opendatacommunities.org/id/unitary-authority/bracknell-forest","Bracknell Forest Council","00MA","Older People (65+)","Long Term Support - Nursing","MC Older People 65+ Long Term Support - Nursing","Contracted Services",03/09/2020 00:00:00,"30381911",3357.92,"CARE UK COMMUNITY PARTNERSHIPS LTD"
"Bracknell Forest Council","http://opendatacommunities.org/id/unitary-authority/bracknell-forest","Bracknell Forest Council","00MA","Older People (65+)","Long term Support - Community:Homecare","PS Older People 65+ Long Term Support - Community:Homecare","Contracted Services",16/07/2020 00:00:00,"30379857",771.96,"A&T CARING SERVICES"
"Bracknell Forest Council","http://opendatacommunities.org/id/unitary-authority/bracknell-forest","Bracknell Forest Council","00MA","Older People (65+)","Long term Support - Community:Homecare","PS Older People 65+ Long Term Support - Community:Homecare","Contracted Services",16/07/2020 00:00:00,"30379857",2535.89,"A&T CARING SERVICES"
"Bracknell Forest Council","http://opendatacommunities.org/id/unitary-authority/bracknell-forest","Bracknell Forest Council","00MA","Older People (65+)","Long term Support - Community:Homecare","MC Older People 65+ Long Term Support - Community:Homecare","Contracted Services",16/07/2020 00:00:00,"30379857",1263.57,"A&T CARING SERVICES"
"Bracknell Forest Council","http://opendatacommunities.org/id/unitary-authority/bracknell-forest","Bracknell Forest Council","00MA","Older People (65+)","Long term Support - Community:Homecare","PS Older People 65+ Long Term Support - Community:Homecare","Contracted Services",17/09/2020 00:00:00,"30382524",771.96,"A&T CARING SERVICES"
"Bracknell Forest Council","http://opendatacommunities.org/id/unitary-authority/bracknell-forest","Bracknell Forest Council","00MA","Older People (65+)","Long term Support - Community:Homecare","PS Older People 65+ Long Term Support - Community:Homecare","Contracted Services",17/09/2020 00:00:00,"30382524",670.72,"A&T CARING SERVICES"
"Bracknell Forest Council","http://opendatacommunities.org/id/unitary-authority/bracknell-forest","Bracknell Forest Council","00MA","Older People (65+)","Long term Support - Community:Homecare","MC Older People 65+ Long Term Support - Community:Homecare","Contracted Services",17/09/2020 00:00:00,"30382524",1167.09,"A&T CARING SERVICES"
"Bracknell Forest Council","http://opendatacommunities.org/id/unitary-authority/bracknell-forest","Bracknell Forest Council","00MA","Older People (65+)","Long term Support - Community:Homecare","PS Older People 65+ Long Term Support - Community:Homecare","Contracted Services",22/10/2020 00:00:00,"30384465",771.96,"A&T CARING SERVICES"
"Bracknell Forest Council","http://opendatacommunities.org/id/unitary-authority/bracknell-forest","Bracknell Forest Council","00MA","Older People (65+)","Long term Support - Community:Homecare","MC Older People 65+ Long Term Support - Community:Homecare","Contracted Services",22/10/2020 00:00:00,"30384465",1139.52,"A&T CARING SERVICES"
"Bracknell Forest Council","http://opendatacommunities.org/id/unitary-authority/bracknell-forest","Bracknell Forest Council","00MA","Older People (65+)","Long term Support - Community:Homecare","MC Older People 65+ Long Term Support - Community:Homecare","Contracted Services",22/10/2020 00:00:00,"30384465",1098.17,"A&T CARING SERVICES"
"Bracknell Forest Council","http://opendatacommunities.org/id/unitary-authority/bracknell-forest","Bracknell Forest Council","00MA","Older People (65+)","Long term Support - Community:Homecare","PS Older People 65+ Long Term Support - Community:Homecare","Contracted Services",22/10/2020 00:00:00,"30384465",771.96,"A&T CARING SERVICES"
"Bracknell Forest Council","http://opendatacommunities.org/id/unitary-authority/bracknell-forest","Bracknell Forest Council","00MA","Older People (65+)","Long term Support - Community:Homecare","PS Older People 65+ Long Term Support - Community:Homecare","Contracted Services",22/10/2020 00:00:00,"30384465",2554.26,"A&T CARING SERVICES"
"Bracknell Forest Council","http://opendatacommunities.org/id/unitary-authority/bracknell-forest","Bracknell Forest Council","00MA","Older People (65+)","Long term Support - Community:Homecare","PS Older People 65+ Long Term Support - Community:Homecare","Contracted Services",05/11/2020 00:00:00,"30385221",2058,"A&T CARING SERVICES"
"Bracknell Forest Council","http://opendatacommunities.org/id/unitary-authority/bracknell-forest","Bracknell Forest Council","00MA","Older People (65+)","Long Term Support - Nursing","MC Older People 65+ Long Term Support - Nursing","Contracted Services",01/10/2020 00:00:00,"30383143",3357.92,"CARE UK COMMUNITY PARTNERSHIPS LTD"
"Bracknell Forest Council","http://opendatacommunities.org/id/unitary-authority/bracknell-forest","Bracknell Forest Council","00MA","Older People (65+)","Long Term Support - Nursing","MC Older People 65+ Long Term Support - Nursing","Contracted Services",01/10/2020 00:00:00,"30383143",3357.92,"CARE UK COMMUNITY PARTNERSHIPS LTD"
"Bracknell Forest Council","http://opendatacommunities.org/id/unitary-authority/bracknell-forest","Bracknell Forest Council","00MA","Older People (65+)","Long Term Support - Nursing","MC Older People 65+ Long Term Support - Nursing","Contracted Services",01/10/2020 00:00:00,"30383143",5600,"CARE UK COMMUNITY PARTNERSHIPS LTD"
"Bracknell Forest Council","http://opendatacommunities.org/id/unitary-authority/bracknell-forest","Bracknell Forest Council","00MA","Adults (18-64)","Long Term Support - Nursing","PS Adults 18-64 Long Term Support - Nursing","Contracted Services",01/10/2020 00:00:00,"30383143",3296.16,"CARE UK COMMUNITY PARTNERSHIPS LTD"
"Bracknell Forest Council","http://opendatacommunities.org/id/unitary-authority/bracknell-forest","Bracknell Forest Council","00MA","Older People (65+)","Long Term Support - Nursing","MC Older People 65+ Long Term Support - Nursing","Contracted Services",01/10/2020 00:00:00,"30383143",3357.92,"CARE UK COMMUNITY PARTNERSHIPS LTD"
"Bracknell Forest Council","http://opendatacommunities.org/id/unitary-authority/bracknell-forest","Bracknell Forest Council","00MA","Older People (65+)","Long Term Support - Nursing","MC Older People 65+ Long Term Support - Nursing","Contracted Services",01/10/2020 00:00:00,"30383143",3105.92,"CARE UK COMMUNITY PARTNERSHIPS LTD"
"Bracknell Forest Council","http://opendatacommunities.org/id/unitary-authority/bracknell-forest","Bracknell Forest Council","00MA","Older People (65+)","Long Term Support - Nursing","PS Older People 65+ Long Term Support - Nursing","Contracted Services",01/10/2020 00:00:00,"30383143",3934.16,"CARE UK COMMUNITY PARTNERSHIPS LTD"
"Bracknell Forest Council","http://opendatacommunities.org/id/unitary-authority/bracknell-forest","Bracknell Forest Council","00MA","Older People (65+)","Long Term Support - Nursing","PS Older People 65+ Long Term Support - Nursing","Contracted Services",01/10/2020 00:00:00,"30383143",3934.16,"CARE UK COMMUNITY PARTNERSHIPS LTD"
"Bracknell Forest Council","http://opendatacommunities.org/id/unitary-authority/bracknell-forest","Bracknell Forest Council","00MA","Older People (65+)","Long Term Support - Nursing","PS Older People 65+ Long Term Support - Nursing","Contracted Services",01/10/2020 00:00:00,"30383143",3292.08,"CARE UK COMMUNITY PARTNERSHIPS LTD"
"Bracknell Forest Council","http://opendatacommunities.org/id/unitary-authority/bracknell-forest","Bracknell Forest Council","00MA","Older People (65+)","Long Term Support - Nursing","PS Older People 65+ Long Term Support - Nursing","Contracted Services",01/10/2020 00:00:00,"30383143",3296.2,"CARE UK COMMUNITY PARTNERSHIPS LTD"
"Bracknell Forest Council","http://opendatacommunities.org/id/unitary-authority/bracknell-forest","Bracknell Forest Council","00MA","Older People (65+)","Long Term Support - Nursing","PS Older People 65+ Long Term Support - Nursing","Contracted Services",01/10/2020 00:00:00,"30383143",3864.6,"CARE UK COMMUNITY PARTNERSHIPS LTD"
"Bracknell Forest Council","http://opendatacommunities.org/id/unitary-authority/bracknell-forest","Bracknell Forest Council","00MA","Older People (65+)","Long Term Support - Nursing","PS Older People 65+ Long Term Support - Nursing","Contracted Services",01/10/2020 00:00:00,"30383143",4293.76,"CARE UK COMMUNITY PARTNERSHIPS LTD"
"Bracknell Forest Council","http://opendatacommunities.org/id/unitary-authority/bracknell-forest","Bracknell Forest Council","00MA","Older People (65+)","Short Term Support Other","MC Older People 65+ Other Short Term support","Contracted Services",12/11/2020 00:00:00,"30385497",1852.79,"A&T CARING SERVICES"
"Bracknell Forest Council","http://opendatacommunities.org/id/unitary-authority/bracknell-forest","Bracknell Forest Council","00MA","Older People (65+)","Long term Support - Community:Homecare","PS Older People 65+ Long Term Support - Community:Homecare","Contracted Services",12/11/2020 00:00:00,"30385497",2058,"A&T CARING SERVICES"
"Bracknell Forest Council","http://opendatacommunities.org/id/unitary-authority/bracknell-forest","Bracknell Forest Council","00MA","Older People (65+)","Long term Support - Community:Homecare","PS Older People 65+ Long Term Support - Community:Homecare","Contracted Services",12/11/2020 00:00:00,"30385497",771.96,"A&T CARING SERVICES"
"Bracknell Forest Council","http://opendatacommunities.org/id/unitary-authority/bracknell-forest","Bracknell Forest Council","00MA","Older People (65+)","Long term Support - Community:Homecare","MC Older People 65+ Long Term Support - Community:Homecare","Contracted Services",12/11/2020 00:00:00,"30385497",1139.52,"A&T CARING SERVICES"
"Bracknell Forest Council","http://opendatacommunities.org/id/unitary-authority/bracknell-forest","Bracknell Forest Council","00MA","Older People (65+)","Long term Support - Community:Homecare","MC Older People 65+ Long Term Support - Community:Homecare","Contracted Services",12/11/2020 00:00:00,"30385497",762.81,"A&T CARING SERVICES"
"Bracknell Forest Council","http://opendatacommunities.org/id/unitary-authority/bracknell-forest","Bracknell Forest Council","00MA","Older People (65+)","Long term Support - Community:Homecare","MC Older People 65+ Long Term Support - Community:Homecare","Contracted Services",19/11/2020 00:00:00,"30385787",211.38,"A&T CARING SERVICES"
"Bracknell Forest Council","http://opendatacommunities.org/id/unitary-authority/bracknell-forest","Bracknell Forest Council","00MA","Traffic Management & Road Safety","Traffic Management","Traffic Management","Contracted Services",27/11/2020 00:00:00,"6713533",575.27,"AAI - ALEXANDER ADVERTISING(INT)LTD"
"Bracknell Forest Council","http://opendatacommunities.org/id/unitary-authority/bracknell-forest","Bracknell Forest Council","00MA","Traffic Management & Road Safety","Traffic Management","Traffic Management","Contracted Services",21/08/2020 00:00:00,"6708317",761.73,"AAI - ALEXANDER ADVERTISING(INT)LTD"
"Bracknell Forest Council","http://opendatacommunities.org/id/unitary-authority/bracknell-forest","Bracknell Forest Council","00MA","Traffic Management & Road Safety","Traffic Management","Traffic Management","Contracted Services",06/11/2020 00:00:00,"6712673",761.73,"AAI - ALEXANDER ADVERTISING(INT)LTD"
"Bracknell Forest Council","http://opendatacommunities.org/id/unitary-authority/bracknell-forest","Bracknell Forest Council","00MA","Traffic Management & Road Safety","Traffic Management","Traffic Management","Contracted Services",18/09/2020 00:00:00,"6709627",668.5,"AAI - ALEXANDER ADVERTISING(INT)LTD"
"Bracknell Forest Council","http://opendatacommunities.org/id/unitary-authority/bracknell-forest","Bracknell Forest Council","00MA","Traffic Management & Road Safety","Traffic Management","Traffic Management","Contracted Services",16/10/2020 00:00:00,"6711152",528.66,"AAI - ALEXANDER ADVERTISING(INT)LTD"
"Bracknell Forest Council","http://opendatacommunities.org/id/unitary-authority/bracknell-forest","Bracknell Forest Council","00MA","Culture and Heritage","Heritage Museums & Galleries","The Look Out","Equipment - R&M",24/02/2020 00:00:00,"6698802",710,"ABA (CONSTRUCTION) LTD T/A ARD PLAYGROUNDS"
"Bracknell Forest Council","http://opendatacommunities.org/id/unitary-authority/bracknell-forest","Bracknell Forest Council","00MA","Open Spaces","Community Parks & Open Spaces","Play Areas","R&M - Planned",11/08/2020 00:00:00,"6707763",610.5,"ABA (CONSTRUCTION) LTD T/A ARD PLAYGROUNDS"
"Bracknell Forest Council","http://opendatacommunities.org/id/unitary-authority/bracknell-forest","Bracknell Forest Council","00MA","Homelessness","Prevention","Rough Sleeping Project","Other Support to Clients",18/06/2020 00:00:00,"6705229",1500,"ABBEY HOUSE HOTEL READING"
"Bracknell Forest Council","http://opendatacommunities.org/id/unitary-authority/bracknell-forest","Bracknell Forest Council","00MA","Homelessness","Prevention","Rough Sleeping Project","Other Support to Clients",30/06/2020 00:00:00,"6706169",1400,"ABBEY HOUSE HOTEL READING"
"Bracknell Forest Council","http://opendatacommunities.org/id/unitary-authority/bracknell-forest","Bracknell Forest Council","00MA","Homelessness","Prevention","Rough Sleeping Project","Other Support to Clients",30/06/2020 00:00:00,"6706831",1400,"ABBEY HOUSE HOTEL READING"
"Bracknell Forest Council","http://opendatacommunities.org/id/unitary-authority/bracknell-forest","Bracknell Forest Council","00MA","Management and Support Services - CYPL","De-Delegated Expenditure","Home to School Transport","Taxi Fares - Home/School Transport",24/10/2020 00:00:00,"6711447",13494,"ABC TRAVEL (WOKINGHAM) LTD"
"Bracknell Forest Council","http://opendatacommunities.org/id/unitary-authority/bracknell-forest","Bracknell Forest Council","00MA","Management and Support Services - CYPL","De-Delegated Expenditure","Home to School Transport","Taxi Fares - Home/School Transport",24/10/2020 00:00:00,"6711447",3315,"ABC TRAVEL (WOKINGHAM) LTD"
"Bracknell Forest Council","http://opendatacommunities.org/id/unitary-authority/bracknell-forest","Bracknell Forest Council","00MA","Management and Support Services - CYPL","De-Delegated Expenditure","Home to School Transport","Taxi Fares - Home/School Transport",24/10/2020 00:00:00,"6711447",1625,"ABC TRAVEL (WOKINGHAM) LTD"
"Bracknell Forest Council","http://opendatacommunities.org/id/unitary-authority/bracknell-forest","Bracknell Forest Council","00MA","Management and Support Services - CYPL","De-Delegated Expenditure","Home to School Transport","Taxi Fares - Home/School Transport",24/10/2020 00:00:00,"6711447",828,"ABC TRAVEL (WOKINGHAM) LTD"
"Bracknell Forest Council","http://opendatacommunities.org/id/unitary-authority/bracknell-forest","Bracknell Forest Council","00MA","Management and Support Services - CYPL","De-Delegated Expenditure","Home to School Transport","Taxi Fares - Home/School Transport",30/09/2020 00:00:00,"6710332",3430,"ABC TRAVEL (WOKINGHAM) LTD"
"Bracknell Forest Council","http://opendatacommunities.org/id/unitary-authority/bracknell-forest","Bracknell Forest Council","00MA","Management and Support Services - CYPL","De-Delegated Expenditure","Home to School Transport","Taxi Fares - Home/School Transport",30/09/2020 00:00:00,"6710333",3400,"ABC TRAVEL (WOKINGHAM) LTD"
"Bracknell Forest Council","http://opendatacommunities.org/id/unitary-authority/bracknell-forest","Bracknell Forest Council","00MA","Management and Support Services - CYPL","De-Delegated Expenditure","Home to School Transport","Taxi Fares - Home/School Transport",30/09/2020 00:00:00,"6710335",3042,"ABC TRAVEL (WOKINGHAM) LTD"
"Bracknell Forest Council","http://opendatacommunities.org/id/unitary-authority/bracknell-forest","Bracknell Forest Council","00MA","Management and Support Services - CYPL","De-Delegated Expenditure","Home to School Transport","Taxi Fares - Home/School Transport",30/09/2020 00:00:00,"6710336",3900,"ABC TRAVEL (WOKINGHAM) LTD"
"Bracknell Forest Council","http://opendatacommunities.org/id/unitary-authority/bracknell-forest","Bracknell Forest Council","00MA","Management and Support Services - CYPL","De-Delegated Expenditure","Home to School Transport","Taxi Fares - Home/School Transport",30/09/2020 00:00:00,"6710338",2385,"ABC TRAVEL (WOKINGHAM) LTD"
"Bracknell Forest Council","http://opendatacommunities.org/id/unitary-authority/bracknell-forest","Bracknell Forest Council","00MA","Management and Support Services - CYPL","De-Delegated Expenditure","Home to School Transport","Taxi Fares - Home/School Transport",30/09/2020 00:00:00,"6710347",2322,"ABC TRAVEL (WOKINGHAM) LTD"
"Bracknell Forest Council","http://opendatacommunities.org/id/unitary-authority/bracknell-forest","Bracknell Forest Council","00MA","Management and Support Services - CYPL","De-Delegated Expenditure","Home to School Transport","Taxi Fares - Home/School Transport",30/09/2020 00:00:00,"6710349",1375,"ABC TRAVEL (WOKINGHAM) LTD"
"Bracknell Forest Council","http://opendatacommunities.org/id/unitary-authority/bracknell-forest","Bracknell Forest Council","00MA","Management and Support Services - CYPL","De-Delegated Expenditure","Home to School Transport","Taxi Fares - Home/School Transport",30/09/2020 00:00:00,"6710350",552,"ABC TRAVEL (WOKINGHAM) LTD"
"Bracknell Forest Council","http://opendatacommunities.org/id/unitary-authority/bracknell-forest","Bracknell Forest Council","00MA","Older People (65+)","Long term Support - Residential","MC Older People 65+ Long Term Support - Residential","Contracted Services",09/07/2020 00:00:00,"30379636",2568.2,"ABERMILL CARE CENTRE"
"Bracknell Forest Council","http://opendatacommunities.org/id/unitary-authority/bracknell-forest","Bracknell Forest Council","00MA","Older People (65+)","Long term Support - Residential","MC Older People 65+ Long Term Support - Residential","Contracted Services",06/08/2020 00:00:00,"30380809",2568.2,"ABERMILL CARE CENTRE"
"Bracknell Forest Council","http://opendatacommunities.org/id/unitary-authority/bracknell-forest","Bracknell Forest Council","00MA","Older People (65+)","Long term Support - Residential","MC Older People 65+ Long Term Support - Residential","Contracted Services",03/09/2020 00:00:00,"30381911",2568.2,"ABERMILL CARE CENTRE"
"Bracknell Forest Council","http://opendatacommunities.org/id/unitary-authority/bracknell-forest","Bracknell Forest Council","00MA","Older People (65+)","Long term Support - Residential","MC Older People 65+ Long Term Support - Residential","Contracted Services",01/10/2020 00:00:00,"30383143",2568.2,"ABERMILL CARE CENTRE"
"Bracknell Forest Council","http://opendatacommunities.org/id/unitary-authority/bracknell-forest","Bracknell Forest Council","00MA","Older People (65+)","Long term Support - Residential","MC Older People 65+ Long Term Support - Residential","Contracted Services",29/10/2020 00:00:00,"30384805",2568.2,"ABERMILL CARE CENTRE"
"Bracknell Forest Council","http://opendatacommunities.org/id/unitary-authority/bracknell-forest","Bracknell Forest Council","00MA","Older People (65+)","Long term Support - Residential","MC Older People 65+ Long Term Support - Residential","Contracted Services",26/11/2020 00:00:00,"30386111",2568.2,"ABERMILL CARE CENTRE"
"Bracknell Forest Council","http://opendatacommunities.org/id/unitary-authority/bracknell-forest","Bracknell Forest Council","00MA","Safeguarding Children and Young People's Services","Social Work","Family Placement","Equipment - Purchase",24/09/2020 00:00:00,"6709864",1100,"AC EDUCATION LTD"
"Bracknell Forest Council","http://opendatacommunities.org/id/unitary-authority/bracknell-forest","Bracknell Forest Council","00MA","Adults (18-64)","Long Term Support - Nursing","MH Adults 18-64 Long Term Support - Nursing","Contracted Services",09/07/2020 00:00:00,"30379636",3083.12,"ACCOMPLISH / GROVE CARE HOME - TRACSCARE"
"Bracknell Forest Council","http://opendatacommunities.org/id/unitary-authority/bracknell-forest","Bracknell Forest Council","00MA","Adults (18-64)","Long Term Support - Nursing","MH Adults 18-64 Long Term Support - Nursing","Contracted Services",06/08/2020 00:00:00,"30380809",3083.12,"ACCOMPLISH / GROVE CARE HOME - TRACSCARE"
"Bracknell Forest Council","http://opendatacommunities.org/id/unitary-authority/bracknell-forest","Bracknell Forest Council","00MA","Adults (18-64)","Long Term Support - Nursing","MH Adults 18-64 Long Term Support - Nursing","Contracted Services",03/09/2020 00:00:00,"30381911",3083.12,"ACCOMPLISH / GROVE CARE HOME - TRACSCARE"
"Bracknell Forest Council","http://opendatacommunities.org/id/unitary-authority/bracknell-forest","Bracknell Forest Council","00MA","Adults (18-64)","Long Term Support - Nursing","MH Adults 18-64 Long Term Support - Nursing","Contracted Services",01/10/2020 00:00:00,"30383143",3083.12,"ACCOMPLISH / GROVE CARE HOME - TRACSCARE"
"Bracknell Forest Council","http://opendatacommunities.org/id/unitary-authority/bracknell-forest","Bracknell Forest Council","00MA","Adults (18-64)","Long Term Support - Nursing","MH Adults 18-64 Long Term Support - Nursing","Contracted Services",29/10/2020 00:00:00,"30384805",3083.12,"ACCOMPLISH / GROVE CARE HOME - TRACSCARE"
"Bracknell Forest Council","http://opendatacommunities.org/id/unitary-authority/bracknell-forest","Bracknell Forest Council","00MA","Adults (18-64)","Long Term Support - Nursing","MH Adults 18-64 Long Term Support - Nursing","Contracted Services",26/11/2020 00:00:00,"30386111",3083.12,"ACCOMPLISH / GROVE CARE HOME - TRACSCARE"
"Bracknell Forest Council","http://opendatacommunities.org/id/unitary-authority/bracknell-forest","Bracknell Forest Council","00MA","Adults (18-64)","Long term Support - Residential","MH Adults 18-64 Long Term Support - Residential","Contracted Services",09/07/2020 00:00:00,"30379636",5377.36,"ACCOMPLISH GROUP T/A PATHWAY HOUSE"
"Bracknell Forest Council","http://opendatacommunities.org/id/unitary-authority/bracknell-forest","Bracknell Forest Council","00MA","Adults (18-64)","Long term Support - Residential","MH Adults 18-64 Long Term Support - Residential","Contracted Services",06/08/2020 00:00:00,"30380809",5377.36,"ACCOMPLISH GROUP T/A PATHWAY HOUSE"
"Bracknell Forest Council","http://opendatacommunities.org/id/unitary-authority/bracknell-forest","Bracknell Forest Council","00MA","Adults (18-64)","Long term Support - Residential","MH Adults 18-64 Long Term Support - Residential","Contracted Services",03/09/2020 00:00:00,"30381911",5377.36,"ACCOMPLISH GROUP T/A PATHWAY HOUSE"
"Bracknell Forest Council","http://opendatacommunities.org/id/unitary-authority/bracknell-forest","Bracknell Forest Council","00MA","Adults (18-64)","Long term Support - Residential","MH Adults 18-64 Long Term Support - Residential","Contracted Services",01/10/2020 00:00:00,"30383143",5377.36,"ACCOMPLISH GROUP T/A PATHWAY HOUSE"
"Bracknell Forest Council","http://opendatacommunities.org/id/unitary-authority/bracknell-forest","Bracknell Forest Council","00MA","Adults (18-64)","Long term Support - Residential","MH Adults 18-64 Long Term Support - Residential","Contracted Services",29/10/2020 00:00:00,"30384805",5377.36,"ACCOMPLISH GROUP T/A PATHWAY HOUSE"
"Bracknell Forest Council","http://opendatacommunities.org/id/unitary-authority/bracknell-forest","Bracknell Forest Council","00MA","Adults (18-64)","Long term Support - Residential","MH Adults 18-64 Long Term Support - Residential","Contracted Services",26/11/2020 00:00:00,"30386111",5377.36,"ACCOMPLISH GROUP T/A PATHWAY HOUSE"
"Bracknell Forest Council","http://opendatacommunities.org/id/unitary-authority/bracknell-forest","Bracknell Forest Council","00MA","Adults (18-64)","Long Term Support - Community:Supported Living","MH Adults 18-64 Long Term Support - Community:Supported Living","Contracted Services",19/11/2020 00:00:00,"30385788",6777.89,"ACHIEVE TOGETHER"
"Bracknell Forest Council","http://opendatacommunities.org/id/unitary-authority/bracknell-forest","Bracknell Forest Council","00MA","Family Support Services","Short breaks for disabled children","CSS Respite & Childminding","Contracted Services",15/09/2020 00:00:00,"6709801",3187.32,"ACHIEVING FOR CHILDREN"
"Bracknell Forest Council","http://opendatacommunities.org/id/unitary-authority/bracknell-forest","Bracknell Forest Council","00MA","Management and Support Services - CYPL","Unallocated High Needs Related Expenditure","SEN Non LEA Provision Pre 16","Voluntary Sector Service Providers",26/11/2020 00:00:00,"6713204",772.93,"ACORN CARE & EDUCATION LTD"
"Bracknell Forest Council","http://opendatacommunities.org/id/unitary-authority/bracknell-forest","Bracknell Forest Council","00MA","Management and Support Services - CYPL","Unallocated High Needs Related Expenditure","SEN Non LEA Provision Pre 16","Voluntary Sector Service Providers",26/11/2020 00:00:00,"6713205",772.93,"ACORN CARE & EDUCATION LTD"
"Bracknell Forest Council","http://opendatacommunities.org/id/unitary-authority/bracknell-forest","Bracknell Forest Council","00MA","Management and Support Services - CYPL","Unallocated High Needs Related Expenditure","SEN Non LEA Provision Pre 16","Voluntary Sector Service Providers",26/11/2020 00:00:00,"6713200",4523.87,"ACORN CARE & EDUCATION LTD"
"Bracknell Forest Council","http://opendatacommunities.org/id/unitary-authority/bracknell-forest","Bracknell Forest Council","00MA","Management and Support Services - CYPL","Unallocated High Needs Related Expenditure","SEN Non LEA Provision Pre 16","Voluntary Sector Service Providers",26/11/2020 00:00:00,"6713201",4523.83,"ACORN CARE & EDUCATION LTD"
"Bracknell Forest Council","http://opendatacommunities.org/id/unitary-authority/bracknell-forest","Bracknell Forest Council","00MA","Management and Support Services - CYPL","Unallocated High Needs Related Expenditure","SEN Non LEA Provision Pre 16","Voluntary Sector Service Providers",26/11/2020 00:00:00,"6713202",4523.83,"ACORN CARE & EDUCATION LTD"
"Bracknell Forest Council","http://opendatacommunities.org/id/unitary-authority/bracknell-forest","Bracknell Forest Council","00MA","Management and Support Services - CYPL","Unallocated High Needs Related Expenditure","SEN Non LEA Provision Pre 16","Voluntary Sector Service Providers",26/11/2020 00:00:00,"6713203",772.93,"ACORN CARE & EDUCATION LTD"
"Bracknell Forest Council","http://opendatacommunities.org/id/unitary-authority/bracknell-forest","Bracknell Forest Council","00MA","Children Looked After","Leaving care support services","Care Leavers Placement Costs","Contracted Services",27/10/2020 00:00:00,"6713285",16989.88,"ACORN CARE & EDUCATION LTD"
"Bracknell Forest Council","http://opendatacommunities.org/id/unitary-authority/bracknell-forest","Bracknell Forest Council","00MA","Management and Support Services - CYPL","Unallocated High Needs Related Expenditure","SEN Non LEA Provision Pre 16","Voluntary Sector Service Providers",13/11/2020 00:00:00,"6712686",1250,"ACORN CARE & EDUCATION LTD"
"Bracknell Forest Council","http://opendatacommunities.org/id/unitary-authority/bracknell-forest","Bracknell Forest Council","00MA","Management and Support Services - CYPL","Unallocated High Needs Related Expenditure","SEN Non LEA Provision Pre 16","Voluntary Sector Service Providers",27/10/2020 00:00:00,"6711961",3693.45,"ACORN CARE & EDUCATION LTD"
"Bracknell Forest Council","http://opendatacommunities.org/id/unitary-authority/bracknell-forest","Bracknell Forest Council","00MA","Management and Support Services - CYPL","Unallocated High Needs Related Expenditure","SEN Non LEA Provision Pre 16","Voluntary Sector Service Providers",27/10/2020 00:00:00,"6711962",4736.31,"ACORN CARE & EDUCATION LTD"
"Bracknell Forest Council","http://opendatacommunities.org/id/unitary-authority/bracknell-forest","Bracknell Forest Council","00MA","Management and Support Services - CYPL","Unallocated High Needs Related Expenditure","SEN Non LEA Provision Pre 16","Voluntary Sector Service Providers",22/09/2020 00:00:00,"6710011",1250,"ACORN CARE & EDUCATION LTD"
"Bracknell Forest Council","http://opendatacommunities.org/id/unitary-authority/bracknell-forest","Bracknell Forest Council","00MA","Management and Support Services - CYPL","Unallocated High Needs Related Expenditure","SEN Non LEA Provision Pre 16","Voluntary Sector Service Providers",22/09/2020 00:00:00,"6710012",4736.3,"ACORN CARE & EDUCATION LTD"
"Bracknell Forest Council","http://opendatacommunities.org/id/unitary-authority/bracknell-forest","Bracknell Forest Council","00MA","Management and Support Services - CYPL","Unallocated High Needs Related Expenditure","SEN Non LEA Provision Pre 16","Voluntary Sector Service Providers",22/09/2020 00:00:00,"6710013",3693.48,"ACORN CARE & EDUCATION LTD"
"Bracknell Forest Council","http://opendatacommunities.org/id/unitary-authority/bracknell-forest","Bracknell Forest Council","00MA","Management and Support Services - CYPL","Unallocated High Needs Related Expenditure","SEN Non LEA Provision Pre 16","Voluntary Sector Service Providers",22/09/2020 00:00:00,"6710014",4736.3,"ACORN CARE & EDUCATION LTD"
"Bracknell Forest Council","http://opendatacommunities.org/id/unitary-authority/bracknell-forest","Bracknell Forest Council","00MA","Management and Support Services - CYPL","Unallocated High Needs Related Expenditure","SEN Non LEA Provision Pre 16","Voluntary Sector Service Providers",13/11/2020 00:00:00,"6712677",4736.31,"ACORN CARE & EDUCATION LTD"
"Bracknell Forest Council","http://opendatacommunities.org/id/unitary-authority/bracknell-forest","Bracknell Forest Council","00MA","Management and Support Services - CYPL","Unallocated High Needs Related Expenditure","SEN Non LEA Provision Pre 16","Voluntary Sector Service Providers",13/11/2020 00:00:00,"6712680",3693.45,"ACORN CARE & EDUCATION LTD"
"Bracknell Forest Council","http://opendatacommunities.org/id/unitary-authority/bracknell-forest","Bracknell Forest Council","00MA","Management and Support Services - CYPL","Unallocated High Needs Related Expenditure","SEN Non LEA Provision Pre 16","Voluntary Sector Service Providers",13/11/2020 00:00:00,"6712682",4736.31,"ACORN CARE & EDUCATION LTD"
"Bracknell Forest Council","http://opendatacommunities.org/id/unitary-authority/bracknell-forest","Bracknell Forest Council","00MA","Management and Support Services - CYPL","Unallocated High Needs Related Expenditure","SEN Non LEA Provision Pre 16","Voluntary Sector Service Providers",27/10/2020 00:00:00,"6711703",1250,"ACORN CARE & EDUCATION LTD"
"Bracknell Forest Council","http://opendatacommunities.org/id/unitary-authority/bracknell-forest","Bracknell Forest Council","00MA","Management and Support Services - CYPL","Unallocated High Needs Related Expenditure","SEN Non LEA Provision Pre 16","Voluntary Sector Service Providers",27/10/2020 00:00:00,"6711704",4736.31,"ACORN CARE & EDUCATION LTD"
"Bracknell Forest Council","http://opendatacommunities.org/id/unitary-authority/bracknell-forest","Bracknell Forest Council","00MA","Children Looked After","Leaving care support services","Care Leavers Placement Costs","Contracted Services",26/11/2020 00:00:00,"6713286",-16989.88,"ACORN CARE & EDUCATION LTD"
"Bracknell Forest Council","http://opendatacommunities.org/id/unitary-authority/bracknell-forest","Bracknell Forest Council","00MA","Children Looked After","Residential care","Children's Home Placements","Contracted Services",01/12/2020 00:00:00,"6713509",12178.66,"ACORN HOMES"
"Bracknell Forest Council","http://opendatacommunities.org/id/unitary-authority/bracknell-forest","Bracknell Forest Council","00MA","Children Looked After","Residential care","Children's Home Placements","Contracted Services",01/07/2020 00:00:00,"6705823",18600,"ACORN HOMES"
"Bracknell Forest Council","http://opendatacommunities.org/id/unitary-authority/bracknell-forest","Bracknell Forest Council","00MA","Management and Support Services - CYPL","Unallocated High Needs Related Expenditure","SEN Non LEA Provision Pre 16","Voluntary Sector Service Providers",02/07/2020 00:00:00,"6707935",5538.42,"ACORN HOMES"
"Bracknell Forest Council","http://opendatacommunities.org/id/unitary-authority/bracknell-forest","Bracknell Forest Council","00MA","Children Looked After","Residential care","Children's Home Placements","Contracted Services",01/08/2020 00:00:00,"6707293",18600,"ACORN HOMES"
"Bracknell Forest Council","http://opendatacommunities.org/id/unitary-authority/bracknell-forest","Bracknell Forest Council","00MA","Management and Support Services - CYPL","Unallocated High Needs Related Expenditure","SEN Non LEA Provision Pre 16","Voluntary Sector Service Providers",01/09/2020 00:00:00,"6708787",20000,"ACORN HOMES"
"Bracknell Forest Council","http://opendatacommunities.org/id/unitary-authority/bracknell-forest","Bracknell Forest Council","00MA","Children Looked After","Residential care","Children's Home Placements","Contracted Services",01/09/2020 00:00:00,"6708816",18000,"ACORN HOMES"
"Bracknell Forest Council","http://opendatacommunities.org/id/unitary-authority/bracknell-forest","Bracknell Forest Council","00MA","Children Looked After","Residential care","Children's Home Placements","Contracted Services",02/11/2020 00:00:00,"6712103",11785.8,"ACORN HOMES"
"Bracknell Forest Council","http://opendatacommunities.org/id/unitary-authority/bracknell-forest","Bracknell Forest Council","00MA","Children Looked After","Residential care","Children's Home Placements","Contracted Services",01/10/2020 00:00:00,"6710509",12178.66,"ACORN HOMES"
"Bracknell Forest Council","http://opendatacommunities.org/id/unitary-authority/bracknell-forest","Bracknell Forest Council","00MA","Children Looked After","Residential care","Children's Home Placements","Contracted Services",15/09/2020 00:00:00,"6709779",-6007.06,"ACORN HOMES"
"Bracknell Forest Council","http://opendatacommunities.org/id/unitary-authority/bracknell-forest","Bracknell Forest Council","00MA","Primary Schools","Centrally managed Expenditure - Early Years","SEN Inclusion Fund","Grants and Donations",27/11/2020 00:00:00,"6713241",1060,"ACORN UNDER FIVES"
"Bracknell Forest Council","http://opendatacommunities.org/id/unitary-authority/bracknell-forest","Bracknell Forest Council","00MA","Children Looked After","Fostering services","Independent Fostering (Non BFBC)","Contracted Services",20/08/2020 00:00:00,"6710672",6672.44,"ACTION FOR CHILDREN SERVICES LTD"
"Bracknell Forest Council","http://opendatacommunities.org/id/unitary-authority/bracknell-forest","Bracknell Forest Council","00MA","Children Looked After","Fostering services","Independent Fostering (Non BFBC)","Contracted Services",22/07/2020 00:00:00,"6706698",6672.44,"ACTION FOR CHILDREN SERVICES LTD"
"Bracknell Forest Council","http://opendatacommunities.org/id/unitary-authority/bracknell-forest","Bracknell Forest Council","00MA","Safeguarding Children and Young People's Services","Social Work","Children's Participation","Voluntary Sector Service Providers",18/11/2020 00:00:00,"6713112",1455.3,"ACTION FOR CHILDREN SERVICES LTD"
"Bracknell Forest Council","http://opendatacommunities.org/id/unitary-authority/bracknell-forest","Bracknell Forest Council","00MA","Safeguarding Children and Young People's Services","Social Work","Children's Participation","Voluntary Sector Service Providers",18/11/2020 00:00:00,"6713113",2600,"ACTION FOR CHILDREN SERVICES LTD"
"Bracknell Forest Council","http://opendatacommunities.org/id/unitary-authority/bracknell-forest","Bracknell Forest Council","00MA","Safeguarding Children and Young People's Services","Social Work","Children's Participation","Voluntary Sector Service Providers",20/10/2020 00:00:00,"6711342",1300,"ACTION FOR CHILDREN SERVICES LTD"
"Bracknell Forest Council","http://opendatacommunities.org/id/unitary-authority/bracknell-forest","Bracknell Forest Council","00MA","Safeguarding Children and Young People's Services","Social Work","Children's Participation","Voluntary Sector Service Providers",22/10/2020 00:00:00,"6711395",1300,"ACTION FOR CHILDREN SERVICES LTD"
"Bracknell Forest Council","http://opendatacommunities.org/id/unitary-authority/bracknell-forest","Bracknell Forest Council","00MA","Safeguarding Children and Young People's Services","Social Work","Children's Participation","Voluntary Sector Service Providers",22/10/2020 00:00:00,"6711396",1300,"ACTION FOR CHILDREN SERVICES LTD"
"Bracknell Forest Council","http://opendatacommunities.org/id/unitary-authority/bracknell-forest","Bracknell Forest Council","00MA","Safeguarding Children and Young People's Services","Social Work","Children's Participation","Voluntary Sector Service Providers",16/07/2020 00:00:00,"6709175",1918.35,"ACTION FOR CHILDREN SERVICES LTD"
"Bracknell Forest Council","http://opendatacommunities.org/id/unitary-authority/bracknell-forest","Bracknell Forest Council","00MA","Children Looked After","Fostering services","Independent Fostering (Non BFBC)","Contracted Services",09/09/2020 00:00:00,"6710673",-1291.44,"ACTION FOR CHILDREN SERVICES LTD"
"Bracknell Forest Council","http://opendatacommunities.org/id/unitary-authority/bracknell-forest","Bracknell Forest Council","00MA","Commissioning & Service Delivery","Commissioning & Service Delivery","Grants & Donations","Contracted Services",16/11/2020 00:00:00,"6712590",3000,"ACTION FOR PEOPLE"
"Bracknell Forest Council","http://opendatacommunities.org/id/unitary-authority/bracknell-forest","Bracknell Forest Council","00MA","Commissioning & Service Delivery","Commissioning & Service Delivery","Grants & Donations","Contracted Services",16/09/2020 00:00:00,"6709548",3000,"ACTION FOR PEOPLE"
"Bracknell Forest Council","http://opendatacommunities.org/id/unitary-authority/bracknell-forest","Bracknell Forest Council","00MA","Commissioning & Service Delivery","Commissioning & Service Delivery","Grants & Donations","Contracted Services",16/07/2020 00:00:00,"6706236",3450,"ACTION FOR PEOPLE"
"Bracknell Forest Council","http://opendatacommunities.org/id/unitary-authority/bracknell-forest","Bracknell Forest Council","00MA","Commissioning & Service Delivery","Commissioning & Service Delivery","Grants & Donations","Contracted Services",15/10/2020 00:00:00,"6711016",3000,"ACTION FOR PEOPLE"
"Bracknell Forest Council","http://opendatacommunities.org/id/unitary-authority/bracknell-forest","Bracknell Forest Council","00MA","Commissioning & Service Delivery","Commissioning & Service Delivery","Grants & Donations","Contracted Services",20/08/2020 00:00:00,"6708316",3000,"ACTION FOR PEOPLE"
"Bracknell Forest Council","http://opendatacommunities.org/id/unitary-authority/bracknell-forest","Bracknell Forest Council","00MA","Post 16 Provision","High needs budget fpr post-16 provision","SEN Non LEA Provision Post16","Voluntary Sector Service Providers",10/06/2020 00:00:00,"6705881",98535,"ACTIVATE LEARNING"
"Bracknell Forest Council","http://opendatacommunities.org/id/unitary-authority/bracknell-forest","Bracknell Forest Council","00MA","Assistive Equipment & Technology","Assistive Equipment & Technology","Assistive Equipment and Technology","Equipment - Purchase",21/07/2020 00:00:00,"6706724",985,"ADAPTABLE BUILDING SERVICES"
"Bracknell Forest Council","http://opendatacommunities.org/id/unitary-authority/bracknell-forest","Bracknell Forest Council","00MA","Management and Support Services - CYPL","CYPL Department Management Team","Management Team","Subscriptions",24/08/2020 00:00:00,"6708673",2080,"ADASS"
"Bracknell Forest Council","http://opendatacommunities.org/id/unitary-authority/bracknell-forest","Bracknell Forest Council","00MA","Management and Support Services - CYPL","Unallocated High Needs Related Expenditure","Mainstream - Element 3 top up non BFC pre 16","Other Local Authorities",14/09/2020 00:00:00,"6709457",78584.65,"ADDINGTON SCHOOL"
"Bracknell Forest Council","http://opendatacommunities.org/id/unitary-authority/bracknell-forest","Bracknell Forest Council","00MA","Post 16 Provision","High needs budget fpr post-16 provision","Mainstream - Element 3 top up non BFC post 16","Other Local Authorities",14/09/2020 00:00:00,"6709457",5378.08,"ADDINGTON SCHOOL"
"Bracknell Forest Council","http://opendatacommunities.org/id/unitary-authority/bracknell-forest","Bracknell Forest Council","00MA","Central Support Services - COF","Construction and Property","Depot Facilities","Security Systems",01/09/2020 00:00:00,"60016805",1601.82,"ADT FIRE AND SECURITY"
"Bracknell Forest Council","http://opendatacommunities.org/id/unitary-authority/bracknell-forest","Bracknell Forest Council","00MA","Central Support Services - COF","Construction and Property","Depot Facilities","Security Systems",01/09/2020 00:00:00,"60016806",917.41,"ADT FIRE AND SECURITY"
"Bracknell Forest Council","http://opendatacommunities.org/id/unitary-authority/bracknell-forest","Bracknell Forest Council","00MA","Recreation, Sports and Leisure","Indoor Sports & Recreation Facilities","Leisure DSO - Leisure Centre","R&M - Service Contracts",16/03/2018 00:00:00,"6658097",541.29,"ADT FIRE AND SECURITY"
"Bracknell Forest Council","http://opendatacommunities.org/id/unitary-authority/bracknell-forest","Bracknell Forest Council","00MA","Central Support Services - COF","Construction and Property","Depot Facilities","Water & Sewerage",25/09/2020 00:00:00,"6711117",-567.71,"ADT FIRE AND SECURITY"
"Bracknell Forest Council","http://opendatacommunities.org/id/unitary-authority/bracknell-forest","Bracknell Forest Council","00MA","Adults (18-64)","Long Term Support - Community:Supported Living","LD Adults 18-64 Long Term Support - Community:Supported Living","Other Support to Clients",24/09/2020 00:00:00,"6709889",2378.08,"ADVANCE HOUSING AND SUPPORT LTD"
"Bracknell Forest Council","http://opendatacommunities.org/id/unitary-authority/bracknell-forest","Bracknell Forest Council","00MA","Children Looked After","Other services for LAC","CLA CSST Expenditure","Contracted Services",01/10/2020 00:00:00,"6713459",902.5,"AG FAMILY SUPPORT"
"Bracknell Forest Council","http://opendatacommunities.org/id/unitary-authority/bracknell-forest","Bracknell Forest Council","00MA","Children Looked After","Other services for LAC","CLA CSST Expenditure","Contracted Services",01/11/2020 00:00:00,"6713460",2338.5,"AG FAMILY SUPPORT"
"Bracknell Forest Council","http://opendatacommunities.org/id/unitary-authority/bracknell-forest","Bracknell Forest Council","00MA","Older People (65+)","Long term Support - Residential","Adult Social Care Covid19 Residential","Grants and Donations",19/08/2020 00:00:00,"6708175",8509,"AGE CONCERN BRACKNELL FOREST"
"Bracknell Forest Council","http://opendatacommunities.org/id/unitary-authority/bracknell-forest","Bracknell Forest Council","00MA","Traffic Management & Road Safety","Road Safety Education","Road Safety Education","Other Fees for Bought-in Services",05/11/2020 00:00:00,"6711925",4912.83,"AGILYSIS"
"Bracknell Forest Council","http://opendatacommunities.org/id/unitary-authority/bracknell-forest","Bracknell Forest Council","00MA","Traffic Management & Road Safety","Road Safety Education","Road Safety Education","Other Fees for Bought-in Services",05/11/2020 00:00:00,"6711927",608.16,"AGILYSIS"
"Bracknell Forest Council","http://opendatacommunities.org/id/unitary-authority/bracknell-forest","Bracknell Forest Council","00MA","Older People (65+)","Long Term Support - Nursing","MC Older People 65+ Long Term Support - Nursing","Contracted Services",09/07/2020 00:00:00,"30379636",2480.12,"AILSA LODGE CARE HOME"
"Bracknell Forest Council","http://opendatacommunities.org/id/unitary-authority/bracknell-forest","Bracknell Forest Council","00MA","Older People (65+)","Long Term Support - Nursing","MC Older People 65+ Long Term Support - Nursing","Contracted Services",06/08/2020 00:00:00,"30380809",2480.12,"AILSA LODGE CARE HOME"
"Bracknell Forest Council","http://opendatacommunities.org/id/unitary-authority/bracknell-forest","Bracknell Forest Council","00MA","Older People (65+)","Long Term Support - Nursing","MC Older People 65+ Long Term Support - Nursing","Contracted Services",03/09/2020 00:00:00,"30381911",2480.12,"AILSA LODGE CARE HOME"
"Bracknell Forest Council","http://opendatacommunities.org/id/unitary-authority/bracknell-forest","Bracknell Forest Council","00MA","Older People (65+)","Long Term Support - Nursing","MC Older People 65+ Long Term Support - Nursing","Contracted Services",01/10/2020 00:00:00,"30383143",2480.12,"AILSA LODGE CARE HOME"
"Bracknell Forest Council","http://opendatacommunities.org/id/unitary-authority/bracknell-forest","Bracknell Forest Council","00MA","Older People (65+)","Long Term Support - Nursing","MC Older People 65+ Long Term Support - Nursing","Contracted Services",29/10/2020 00:00:00,"30384805",2480.12,"AILSA LODGE CARE HOME"
"Bracknell Forest Council","http://opendatacommunities.org/id/unitary-authority/bracknell-forest","Bracknell Forest Council","00MA","Older People (65+)","Long Term Support - Nursing","MC Older People 65+ Long Term Support - Nursing","Contracted Services",26/11/2020 00:00:00,"30386111",2480.12,"AILSA LODGE CARE HOME"
"Bracknell Forest Council","http://opendatacommunities.org/id/unitary-authority/bracknell-forest","Bracknell Forest Council","00MA","Housing Benefits Administration","Housing Benefits Administration","Test & Trace Support Payments","Grants and Donations",16/10/2020 00:00:00,"6711201",500,"AIREY CONSULTANCY SERVICES LTD"
"Bracknell Forest Council","http://opendatacommunities.org/id/unitary-authority/bracknell-forest","Bracknell Forest Council","00MA","Housing Benefits Administration","Housing Benefits Administration","Council Tax Hardship Fund","Contracted Services",28/07/2020 00:00:00,"6711454",750,"AIREY CONSULTANCY SERVICES LTD"
"Bracknell Forest Council","http://opendatacommunities.org/id/unitary-authority/bracknell-forest","Bracknell Forest Council","00MA","Older People (65+)","Short Term Support Other","PS Older People 65+ Other Short Term support","Contracted Services",29/10/2020 00:00:00,"30384805",3000,"REDACT PERSONAL INFORMATION"
"Bracknell Forest Council","http://opendatacommunities.org/id/unitary-authority/bracknell-forest","Bracknell Forest Council","00MA","Culture and Heritage","Heritage Museums & Galleries","The Look Out - Catering","Equipment - R&M",13/07/2020 00:00:00,"6709146",2655,"ALLDER GLASS LIMITED"
"Bracknell Forest Council","http://opendatacommunities.org/id/unitary-authority/bracknell-forest","Bracknell Forest Council","00MA","Commissioning & Service Delivery","Commissioning & Service Delivery","Adult Social Care Pre-paid Cards","Contracted Services",17/11/2020 00:00:00,"6712632",3000,"ALLPAY LTD  **5780"
"Bracknell Forest Council","http://opendatacommunities.org/id/unitary-authority/bracknell-forest","Bracknell Forest Council","00MA","Central Support Services - COF","Fleet","Transport Services","Diesel",31/07/2020 00:00:00,"6707594",949.27,"ALLSTAR BUSINESS SOLUTIONS LTD"
"Bracknell Forest Council","http://opendatacommunities.org/id/unitary-authority/bracknell-forest","Bracknell Forest Council","00MA","Central Support Services - COF","Fleet","Transport Services","Diesel",30/06/2020 00:00:00,"6705868",1458.1,"ALLSTAR BUSINESS SOLUTIONS LTD"
"Bracknell Forest Council","http://opendatacommunities.org/id/unitary-authority/bracknell-forest","Bracknell Forest Council","00MA","Central Support Services - COF","Fleet","Transport Services","Diesel",31/10/2020 00:00:00,"6712128",687.59,"ALLSTAR BUSINESS SOLUTIONS LTD"
"Bracknell Forest Council","http://opendatacommunities.org/id/unitary-authority/bracknell-forest","Bracknell Forest Council","00MA","Central Support Services - COF","Fleet","Transport Services","Diesel",30/11/2020 00:00:00,"6713542",553.32,"ALLSTAR BUSINESS SOLUTIONS LTD"
"Bracknell Forest Council","http://opendatacommunities.org/id/unitary-authority/bracknell-forest","Bracknell Forest Council","00MA","Central Support Services - COF","Fleet","Transport Services","Diesel",30/09/2020 00:00:00,"6710330",632.2,"ALLSTAR BUSINESS SOLUTIONS LTD"
"Bracknell Forest Council","http://opendatacommunities.org/id/unitary-authority/bracknell-forest","Bracknell Forest Council","00MA","Central Support Services - COF","Policy Unit","Transformation - Adult Social Care Review","Consultants Fees",07/10/2020 00:00:00,"6711441",5049,"ALPINE RESOURCING LTD"
"Bracknell Forest Council","http://opendatacommunities.org/id/unitary-authority/bracknell-forest","Bracknell Forest Council","00MA","Central Support Services - COF","Policy Unit","Transformation - Adult Social Care Review","Consultants Fees",31/10/2020 00:00:00,"6713190",4150.5,"ALPINE RESOURCING LTD"
"Bracknell Forest Council","http://opendatacommunities.org/id/unitary-authority/bracknell-forest","Bracknell Forest Council","00MA","Central Support Services - COF","Policy Unit","Transformation - Adult Social Care Review","Consultants Fees",31/07/2020 00:00:00,"6707657",7454.5,"ALPINE RESOURCING LTD"
"Bracknell Forest Council","http://opendatacommunities.org/id/unitary-authority/bracknell-forest","Bracknell Forest Council","00MA","Central Support Services - COF","Policy Unit","Programme Support","Consultants Fees",30/06/2020 00:00:00,"6706149",660,"ALPINE RESOURCING LTD"
"Bracknell Forest Council","http://opendatacommunities.org/id/unitary-authority/bracknell-forest","Bracknell Forest Council","00MA","Central Support Services - COF","Policy Unit","Programme Support","Consultants Fees",30/06/2020 00:00:00,"6706149",1496,"ALPINE RESOURCING LTD"
"Bracknell Forest Council","http://opendatacommunities.org/id/unitary-authority/bracknell-forest","Bracknell Forest Council","00MA","Central Support Services - COF","Policy Unit","Transformation - Adult Social Care Review","Consultants Fees",31/08/2020 00:00:00,"6708895",5645,"ALPINE RESOURCING LTD"
"Bracknell Forest Council","http://opendatacommunities.org/id/unitary-authority/bracknell-forest","Bracknell Forest Council","00MA","Open Spaces","Community Parks & Open Spaces","Tree Service","Contracted Services",31/10/2020 00:00:00,"6712991",565,"ALPINE TREE SURGEONS LTD"
"Bracknell Forest Council","http://opendatacommunities.org/id/unitary-authority/bracknell-forest","Bracknell Forest Council","00MA","Other Welfare Services","Other Welfare Services","Forestcare - Operational","Equipment - Purchase",25/10/2020 00:00:00,"6711552",567.04,"AMAZON PAYMENTS EUROPE S.C.A"
"Bracknell Forest Council","http://opendatacommunities.org/id/unitary-authority/bracknell-forest","Bracknell Forest Council","00MA","Traffic Management & Road Safety","Traffic Management","Intelligent Transport Systems","Agency",25/02/2020 00:00:00,"6706677",2640,"AMBER SIGNAL SERVICES"
"Bracknell Forest Council","http://opendatacommunities.org/id/unitary-authority/bracknell-forest","Bracknell Forest Council","00MA","Traffic Management & Road Safety","Traffic Management","Intelligent Transport Systems","Agency",21/07/2020 00:00:00,"6706678",2310,"AMBER SIGNAL SERVICES"
"Bracknell Forest Council","http://opendatacommunities.org/id/unitary-authority/bracknell-forest","Bracknell Forest Council","00MA","Children Looked After","Residential care","Children's Home Placements","Contracted Services",01/12/2020 00:00:00,"6713173",15500,"AMEGREEN CHILDRENS SERVICES"
"Bracknell Forest Council","http://opendatacommunities.org/id/unitary-authority/bracknell-forest","Bracknell Forest Council","00MA","Children Looked After","Residential care","Children's Home Placements","Contracted Services",01/12/2020 00:00:00,"6713178",15500,"AMEGREEN CHILDRENS SERVICES"
"Bracknell Forest Council","http://opendatacommunities.org/id/unitary-authority/bracknell-forest","Bracknell Forest Council","00MA","Children Looked After","Residential care","Children's Home Placements","Contracted Services",01/10/2020 00:00:00,"6710559",15500,"AMEGREEN CHILDRENS SERVICES"
"Bracknell Forest Council","http://opendatacommunities.org/id/unitary-authority/bracknell-forest","Bracknell Forest Council","00MA","Children Looked After","Residential care","Children's Home Placements","Contracted Services",01/08/2020 00:00:00,"6707096",15500,"AMEGREEN CHILDRENS SERVICES"
"Bracknell Forest Council","http://opendatacommunities.org/id/unitary-authority/bracknell-forest","Bracknell Forest Council","00MA","Other Welfare Services","Other Welfare Services","Forestcare - Lifeline (Running Costs)","Equipment - Purchase",27/07/2020 00:00:00,"6706968",2700,"ANYWHERE CARE LIMITED"
"Bracknell Forest Council","http://opendatacommunities.org/id/unitary-authority/bracknell-forest","Bracknell Forest Council","00MA","Parking Services","Off Street Parking","High Street Car Park","R&M - Reactive",14/07/2020 00:00:00,"6706510",4900,"APPROVED MULTI SERVICES LTD"
"Bracknell Forest Council","http://opendatacommunities.org/id/unitary-authority/bracknell-forest","Bracknell Forest Council","00MA","Older People (65+)","Long Term Support - Nursing","MC Older People 65+ Long Term Support - Nursing","Contracted Services",01/10/2020 00:00:00,"30383143",3292.08,"CARE UK COMMUNITY PARTNERSHIPS LTD"
"Bracknell Forest Council","http://opendatacommunities.org/id/unitary-authority/bracknell-forest","Bracknell Forest Council","00MA","Older People (65+)","Long Term Support - Nursing","MC Older People 65+ Long Term Support - Nursing","Contracted Services",29/10/2020 00:00:00,"30384805",3357.92,"CARE UK COMMUNITY PARTNERSHIPS LTD"
"Bracknell Forest Council","http://opendatacommunities.org/id/unitary-authority/bracknell-forest","Bracknell Forest Council","00MA","Older People (65+)","Long Term Support - Nursing","MC Older People 65+ Long Term Support - Nursing","Contracted Services",29/10/2020 00:00:00,"30384805",3105.92,"CARE UK COMMUNITY PARTNERSHIPS LTD"
"Bracknell Forest Council","http://opendatacommunities.org/id/unitary-authority/bracknell-forest","Bracknell Forest Council","00MA","Older People (65+)","Long Term Support - Nursing","MC Older People 65+ Long Term Support - Nursing","Contracted Services",29/10/2020 00:00:00,"30384805",3357.92,"CARE UK COMMUNITY PARTNERSHIPS LTD"
"Bracknell Forest Council","http://opendatacommunities.org/id/unitary-authority/bracknell-forest","Bracknell Forest Council","00MA","Older People (65+)","Long Term Support - Nursing","MC Older People 65+ Long Term Support - Nursing","Contracted Services",29/10/2020 00:00:00,"30384805",5600,"CARE UK COMMUNITY PARTNERSHIPS LTD"
"Bracknell Forest Council","http://opendatacommunities.org/id/unitary-authority/bracknell-forest","Bracknell Forest Council","00MA","Older People (65+)","Long Term Support - Nursing","MC Older People 65+ Long Term Support - Nursing","Contracted Services",29/10/2020 00:00:00,"30384805",3292.08,"CARE UK COMMUNITY PARTNERSHIPS LTD"
"Bracknell Forest Council","http://opendatacommunities.org/id/unitary-authority/bracknell-forest","Bracknell Forest Council","00MA","Older People (65+)","Long Term Support - Nursing","MC Older People 65+ Long Term Support - Nursing","Contracted Services",29/10/2020 00:00:00,"30384805",3357.92,"CARE UK COMMUNITY PARTNERSHIPS LTD"
"Bracknell Forest Council","http://opendatacommunities.org/id/unitary-authority/bracknell-forest","Bracknell Forest Council","00MA","Older People (65+)","Long Term Support - Nursing","PS Older People 65+ Long Term Support - Nursing","Contracted Services",29/10/2020 00:00:00,"30384805",3296.2,"CARE UK COMMUNITY PARTNERSHIPS LTD"
"Bracknell Forest Council","http://opendatacommunities.org/id/unitary-authority/bracknell-forest","Bracknell Forest Council","00MA","Older People (65+)","Long Term Support - Nursing","PS Older People 65+ Long Term Support - Nursing","Contracted Services",29/10/2020 00:00:00,"30384805",3934.16,"CARE UK COMMUNITY PARTNERSHIPS LTD"
"Bracknell Forest Council","http://opendatacommunities.org/id/unitary-authority/bracknell-forest","Bracknell Forest Council","00MA","Older People (65+)","Long Term Support - Nursing","PS Older People 65+ Long Term Support - Nursing","Contracted Services",29/10/2020 00:00:00,"30384805",3292.08,"CARE UK COMMUNITY PARTNERSHIPS LTD"
"Bracknell Forest Council","http://opendatacommunities.org/id/unitary-authority/bracknell-forest","Bracknell Forest Council","00MA","Older People (65+)","Long Term Support - Nursing","PS Older People 65+ Long Term Support - Nursing","Contracted Services",29/10/2020 00:00:00,"30384805",3864.6,"CARE UK COMMUNITY PARTNERSHIPS LTD"
"Bracknell Forest Council","http://opendatacommunities.org/id/unitary-authority/bracknell-forest","Bracknell Forest Council","00MA","Older People (65+)","Long Term Support - Nursing","PS Older People 65+ Long Term Support - Nursing","Contracted Services",29/10/2020 00:00:00,"30384805",3934.16,"CARE UK COMMUNITY PARTNERSHIPS LTD"
"Bracknell Forest Council","http://opendatacommunities.org/id/unitary-authority/bracknell-forest","Bracknell Forest Council","00MA","Structural Maintenance","Structural Maintenance (Other Roads)","Assessments - Other Roads","Consultants Fees",03/04/2020 00:00:00,"6710127",3420,"APSE"
"Bracknell Forest Council","http://opendatacommunities.org/id/unitary-authority/bracknell-forest","Bracknell Forest Council","00MA","Open Spaces","Community Parks & Open Spaces","Lily Hill Park Maintenance","R&M - Planned",03/09/2020 00:00:00,"6708919",698,"AQUASCIENCE LTD"
"Bracknell Forest Council","http://opendatacommunities.org/id/unitary-authority/bracknell-forest","Bracknell Forest Council","00MA","Special Schools & Alternative Provision","Non-School Funding","Pupil Premium Non Maintained Schools","Contracted Services",03/11/2020 00:00:00,"6711804",1345,"ARBOUR VALE SCHOOL"
"Bracknell Forest Council","http://opendatacommunities.org/id/unitary-authority/bracknell-forest","Bracknell Forest Council","00MA","Post 16 Provision","High needs budget fpr post-16 provision","Mainstream - Element 3 top up non BFC post 16","Slough BC",01/09/2020 00:00:00,"6709538",6666.67,"ARBOUR VALE SCHOOL"
"Bracknell Forest Council","http://opendatacommunities.org/id/unitary-authority/bracknell-forest","Bracknell Forest Council","00MA","Post 16 Provision","High needs budget fpr post-16 provision","Mainstream - Element 3 top up non BFC post 16","Slough BC",17/06/2020 00:00:00,"6706984",5931.51,"ARBOUR VALE SCHOOL"
"Bracknell Forest Council","http://opendatacommunities.org/id/unitary-authority/bracknell-forest","Bracknell Forest Council","00MA","Management and Support Services - CYPL","Unallocated High Needs Related Expenditure","Mainstream - Element 3 top up non BFC pre 16","Slough BC",01/09/2020 00:00:00,"6709539",8333.33,"ARBOUR VALE SCHOOL"
"Bracknell Forest Council","http://opendatacommunities.org/id/unitary-authority/bracknell-forest","Bracknell Forest Council","00MA","Management and Support Services - CYPL","Unallocated High Needs Related Expenditure","Mainstream - Element 3 top up non BFC pre 16","Slough BC",01/09/2020 00:00:00,"6709540",8333.33,"ARBOUR VALE SCHOOL"
"Bracknell Forest Council","http://opendatacommunities.org/id/unitary-authority/bracknell-forest","Bracknell Forest Council","00MA","Children Looked After","Leaving care support services","Care Leavers Support","Other Support to Clients",16/08/2020 00:00:00,"6708010",537.41,"ARGOS BUSINESS"
"Bracknell Forest Council","http://opendatacommunities.org/id/unitary-authority/bracknell-forest","Bracknell Forest Council","00MA","Open Spaces","Community Parks & Open Spaces","Tree Service","Contracted Services",22/09/2020 00:00:00,"6709740",3260,"ARTEMIS TREE SERVICES"
"Bracknell Forest Council","http://opendatacommunities.org/id/unitary-authority/bracknell-forest","Bracknell Forest Council","00MA","Open Spaces","Community Parks & Open Spaces","Tree Service","Contracted Services",01/10/2020 00:00:00,"6710272",720,"ARTEMIS TREE SERVICES"
"Bracknell Forest Council","http://opendatacommunities.org/id/unitary-authority/bracknell-forest","Bracknell Forest Council","00MA","Open Spaces","Community Parks & Open Spaces","Tree Service","Contracted Services",19/08/2020 00:00:00,"6708139",8310,"ARTEMIS TREE SERVICES"
"Bracknell Forest Council","http://opendatacommunities.org/id/unitary-authority/bracknell-forest","Bracknell Forest Council","00MA","Homelessness","Prevention","Rough Sleeping Project","Other Support to Clients",26/05/2020 00:00:00,"6706930",1672.72,"ARUSHA LTD"
"Bracknell Forest Council","http://opendatacommunities.org/id/unitary-authority/bracknell-forest","Bracknell Forest Council","00MA","Homelessness","Prevention","Rough Sleeping Project","Other Support to Clients",07/09/2020 00:00:00,"6709113",1553.24,"ARUSHA LTD"
"Bracknell Forest Council","http://opendatacommunities.org/id/unitary-authority/bracknell-forest","Bracknell Forest Council","00MA","Homelessness","Prevention","Rough Sleeping Project","Other Support to Clients",03/11/2020 00:00:00,"6712163",3345.44,"ARUSHA LTD"
"Bracknell Forest Council","http://opendatacommunities.org/id/unitary-authority/bracknell-forest","Bracknell Forest Council","00MA","Older People (65+)","Long Term Support - Nursing","PS Older People 65+ Long Term Support - Nursing","Contracted Services",29/10/2020 00:00:00,"30384805",4293.76,"CARE UK COMMUNITY PARTNERSHIPS LTD"
"Bracknell Forest Council","http://opendatacommunities.org/id/unitary-authority/bracknell-forest","Bracknell Forest Council","00MA","Adults (18-64)","Long Term Support - Nursing","PS Adults 18-64 Long Term Support - Nursing","Contracted Services",29/10/2020 00:00:00,"30384805",3296.16,"CARE UK COMMUNITY PARTNERSHIPS LTD"
"Bracknell Forest Council","http://opendatacommunities.org/id/unitary-authority/bracknell-forest","Bracknell Forest Council","00MA","Older People (65+)","Long Term Support - Nursing","MC Older People 65+ Long Term Support - Nursing","Contracted Services",26/11/2020 00:00:00,"30386111",3105.92,"CARE UK COMMUNITY PARTNERSHIPS LTD"
"Bracknell Forest Council","http://opendatacommunities.org/id/unitary-authority/bracknell-forest","Bracknell Forest Council","00MA","Older People (65+)","Long Term Support - Nursing","MC Older People 65+ Long Term Support - Nursing","Contracted Services",26/11/2020 00:00:00,"30386111",3292.08,"CARE UK COMMUNITY PARTNERSHIPS LTD"
"Bracknell Forest Council","http://opendatacommunities.org/id/unitary-authority/bracknell-forest","Bracknell Forest Council","00MA","Older People (65+)","Long Term Support - Nursing","MC Older People 65+ Long Term Support - Nursing","Contracted Services",26/11/2020 00:00:00,"30386111",3357.92,"CARE UK COMMUNITY PARTNERSHIPS LTD"
"Bracknell Forest Council","http://opendatacommunities.org/id/unitary-authority/bracknell-forest","Bracknell Forest Council","00MA","Older People (65+)","Long Term Support - Nursing","MC Older People 65+ Long Term Support - Nursing","Contracted Services",26/11/2020 00:00:00,"30386111",5600,"CARE UK COMMUNITY PARTNERSHIPS LTD"
"Bracknell Forest Council","http://opendatacommunities.org/id/unitary-authority/bracknell-forest","Bracknell Forest Council","00MA","Older People (65+)","Long Term Support - Nursing","MC Older People 65+ Long Term Support - Nursing","Contracted Services",26/11/2020 00:00:00,"30386111",3357.92,"CARE UK COMMUNITY PARTNERSHIPS LTD"
"Bracknell Forest Council","http://opendatacommunities.org/id/unitary-authority/bracknell-forest","Bracknell Forest Council","00MA","Older People (65+)","Long Term Support - Nursing","MC Older People 65+ Long Term Support - Nursing","Contracted Services",26/11/2020 00:00:00,"30386111",3357.92,"CARE UK COMMUNITY PARTNERSHIPS LTD"
"Bracknell Forest Council","http://opendatacommunities.org/id/unitary-authority/bracknell-forest","Bracknell Forest Council","00MA","Older People (65+)","Long Term Support - Nursing","PS Older People 65+ Long Term Support - Nursing","Contracted Services",26/11/2020 00:00:00,"30386111",3296.2,"CARE UK COMMUNITY PARTNERSHIPS LTD"
"Bracknell Forest Council","http://opendatacommunities.org/id/unitary-authority/bracknell-forest","Bracknell Forest Council","00MA","Older People (65+)","Long Term Support - Nursing","PS Older People 65+ Long Term Support - Nursing","Contracted Services",26/11/2020 00:00:00,"30386111",3934.16,"CARE UK COMMUNITY PARTNERSHIPS LTD"
"Bracknell Forest Council","http://opendatacommunities.org/id/unitary-authority/bracknell-forest","Bracknell Forest Council","00MA","Older People (65+)","Long Term Support - Nursing","PS Older People 65+ Long Term Support - Nursing","Contracted Services",26/11/2020 00:00:00,"30386111",3292.08,"CARE UK COMMUNITY PARTNERSHIPS LTD"
"Bracknell Forest Council","http://opendatacommunities.org/id/unitary-authority/bracknell-forest","Bracknell Forest Council","00MA","Older People (65+)","Long Term Support - Nursing","PS Older People 65+ Long Term Support - Nursing","Contracted Services",26/11/2020 00:00:00,"30386111",4293.76,"CARE UK COMMUNITY PARTNERSHIPS LTD"
"Bracknell Forest Council","http://opendatacommunities.org/id/unitary-authority/bracknell-forest","Bracknell Forest Council","00MA","Homelessness","Prevention","Rough Sleeping Project","Other Support to Clients",06/10/2020 00:00:00,"6710589",2090.9,"ARUSHA LTD"
"Bracknell Forest Council","http://opendatacommunities.org/id/unitary-authority/bracknell-forest","Bracknell Forest Council","00MA","Older People (65+)","Long term Support - Residential","Adult Social Care Covid19 Residential","Grants and Donations",13/07/2020 00:00:00,"6706154",9757,"ASCOT RESIDENTIAL HOMES LTD-8797"
"Bracknell Forest Council","http://opendatacommunities.org/id/unitary-authority/bracknell-forest","Bracknell Forest Council","00MA","Older People (65+)","Long term Support - Residential","Adult Social Care Covid19 Residential","Grants and Donations",13/07/2020 00:00:00,"6706155",6292,"ASCOT RESIDENTIAL HOMES LTD-8797"
"Bracknell Forest Council","http://opendatacommunities.org/id/unitary-authority/bracknell-forest","Bracknell Forest Council","00MA","Older People (65+)","Long Term Support - Nursing","MC Older People 65+ Long Term Support - Nursing","Contracted Services",09/07/2020 00:00:00,"30379636",3864.6,"ASCOT RESIDENTIAL HOMES LTD-8797"
"Bracknell Forest Council","http://opendatacommunities.org/id/unitary-authority/bracknell-forest","Bracknell Forest Council","00MA","Older People (65+)","Long Term Support - Nursing","MC Older People 65+ Long Term Support - Nursing","Contracted Services",09/07/2020 00:00:00,"30379636",4881.6,"ASCOT RESIDENTIAL HOMES LTD-8797"
"Bracknell Forest Council","http://opendatacommunities.org/id/unitary-authority/bracknell-forest","Bracknell Forest Council","00MA","Older People (65+)","Long Term Support - Nursing","MC Older People 65+ Long Term Support - Nursing","Contracted Services",09/07/2020 00:00:00,"30379636",4621.12,"ASCOT RESIDENTIAL HOMES LTD-8797"
"Bracknell Forest Council","http://opendatacommunities.org/id/unitary-authority/bracknell-forest","Bracknell Forest Council","00MA","Older People (65+)","Long Term Support - Nursing","MC Older People 65+ Long Term Support - Nursing","Contracted Services",06/08/2020 00:00:00,"30380809",4621.12,"ASCOT RESIDENTIAL HOMES LTD-8797"
"Bracknell Forest Council","http://opendatacommunities.org/id/unitary-authority/bracknell-forest","Bracknell Forest Council","00MA","Older People (65+)","Long Term Support - Nursing","MC Older People 65+ Long Term Support - Nursing","Contracted Services",06/08/2020 00:00:00,"30380809",3864.6,"ASCOT RESIDENTIAL HOMES LTD-8797"
"Bracknell Forest Council","http://opendatacommunities.org/id/unitary-authority/bracknell-forest","Bracknell Forest Council","00MA","Older People (65+)","Long Term Support - Nursing","MC Older People 65+ Long Term Support - Nursing","Contracted Services",06/08/2020 00:00:00,"30380809",4881.6,"ASCOT RESIDENTIAL HOMES LTD-8797"
"Bracknell Forest Council","http://opendatacommunities.org/id/unitary-authority/bracknell-forest","Bracknell Forest Council","00MA","Older People (65+)","Long Term Support - Nursing","MC Older People 65+ Long Term Support - Nursing","Contracted Services",03/09/2020 00:00:00,"30381911",4621.12,"ASCOT RESIDENTIAL HOMES LTD-8797"
"Bracknell Forest Council","http://opendatacommunities.org/id/unitary-authority/bracknell-forest","Bracknell Forest Council","00MA","Older People (65+)","Long Term Support - Nursing","MC Older People 65+ Long Term Support - Nursing","Contracted Services",03/09/2020 00:00:00,"30381911",3864.6,"ASCOT RESIDENTIAL HOMES LTD-8797"
"Bracknell Forest Council","http://opendatacommunities.org/id/unitary-authority/bracknell-forest","Bracknell Forest Council","00MA","Older People (65+)","Long Term Support - Nursing","MC Older People 65+ Long Term Support - Nursing","Contracted Services",03/09/2020 00:00:00,"30381911",4881.6,"ASCOT RESIDENTIAL HOMES LTD-8797"
"Bracknell Forest Council","http://opendatacommunities.org/id/unitary-authority/bracknell-forest","Bracknell Forest Council","00MA","Older People (65+)","Long Term Support - Nursing","MC Older People 65+ Long Term Support - Nursing","Contracted Services",01/10/2020 00:00:00,"30383143",3864.6,"ASCOT RESIDENTIAL HOMES LTD-8797"
"Bracknell Forest Council","http://opendatacommunities.org/id/unitary-authority/bracknell-forest","Bracknell Forest Council","00MA","Older People (65+)","Long Term Support - Nursing","MC Older People 65+ Long Term Support - Nursing","Contracted Services",01/10/2020 00:00:00,"30383143",4621.12,"ASCOT RESIDENTIAL HOMES LTD-8797"
"Bracknell Forest Council","http://opendatacommunities.org/id/unitary-authority/bracknell-forest","Bracknell Forest Council","00MA","Older People (65+)","Long Term Support - Nursing","MC Older People 65+ Long Term Support - Nursing","Contracted Services",01/10/2020 00:00:00,"30383143",4881.6,"ASCOT RESIDENTIAL HOMES LTD-8797"
"Bracknell Forest Council","http://opendatacommunities.org/id/unitary-authority/bracknell-forest","Bracknell Forest Council","00MA","Older People (65+)","Long Term Support - Nursing","MC Older People 65+ Long Term Support - Nursing","Contracted Services",29/10/2020 00:00:00,"30384805",3864.6,"ASCOT RESIDENTIAL HOMES LTD-8797"
"Bracknell Forest Council","http://opendatacommunities.org/id/unitary-authority/bracknell-forest","Bracknell Forest Council","00MA","Older People (65+)","Long Term Support - Nursing","MC Older People 65+ Long Term Support - Nursing","Contracted Services",29/10/2020 00:00:00,"30384805",4621.12,"ASCOT RESIDENTIAL HOMES LTD-8797"
"Bracknell Forest Council","http://opendatacommunities.org/id/unitary-authority/bracknell-forest","Bracknell Forest Council","00MA","Older People (65+)","Long Term Support - Nursing","MC Older People 65+ Long Term Support - Nursing","Contracted Services",29/10/2020 00:00:00,"30384805",4881.6,"ASCOT RESIDENTIAL HOMES LTD-8797"
"Bracknell Forest Council","http://opendatacommunities.org/id/unitary-authority/bracknell-forest","Bracknell Forest Council","00MA","Older People (65+)","Long Term Support - Nursing","MC Older People 65+ Long Term Support - Nursing","Contracted Services",26/11/2020 00:00:00,"30386111",4881.6,"ASCOT RESIDENTIAL HOMES LTD-8797"
"Bracknell Forest Council","http://opendatacommunities.org/id/unitary-authority/bracknell-forest","Bracknell Forest Council","00MA","Older People (65+)","Long Term Support - Nursing","MC Older People 65+ Long Term Support - Nursing","Contracted Services",26/11/2020 00:00:00,"30386111",3864.6,"ASCOT RESIDENTIAL HOMES LTD-8797"
"Bracknell Forest Council","http://opendatacommunities.org/id/unitary-authority/bracknell-forest","Bracknell Forest Council","00MA","Older People (65+)","Long Term Support - Nursing","MC Older People 65+ Long Term Support - Nursing","Contracted Services",26/11/2020 00:00:00,"30386111",12072.24,"ASCOT RESIDENTIAL HOMES LTD-8797"
"Bracknell Forest Council","http://opendatacommunities.org/id/unitary-authority/bracknell-forest","Bracknell Forest Council","00MA","Older People (65+)","Long Term Support - Nursing","MC Older People 65+ Long Term Support - Nursing","Contracted Services",26/11/2020 00:00:00,"30386111",4621.12,"ASCOT RESIDENTIAL HOMES LTD-8797"
"Bracknell Forest Council","http://opendatacommunities.org/id/unitary-authority/bracknell-forest","Bracknell Forest Council","00MA","Older People (65+)","Long term Support - Residential","PS Older People 65+ Long Term Support - Residential","Contracted Services",09/07/2020 00:00:00,"30379636",2623.48,"ASHGROVE CARE HOME"
"Bracknell Forest Council","http://opendatacommunities.org/id/unitary-authority/bracknell-forest","Bracknell Forest Council","00MA","Older People (65+)","Long term Support - Residential","PS Older People 65+ Long Term Support - Residential","Contracted Services",06/08/2020 00:00:00,"30380809",2623.48,"ASHGROVE CARE HOME"
"Bracknell Forest Council","http://opendatacommunities.org/id/unitary-authority/bracknell-forest","Bracknell Forest Council","00MA","Older People (65+)","Long term Support - Residential","PS Older People 65+ Long Term Support - Residential","Contracted Services",03/09/2020 00:00:00,"30381911",2623.48,"ASHGROVE CARE HOME"
"Bracknell Forest Council","http://opendatacommunities.org/id/unitary-authority/bracknell-forest","Bracknell Forest Council","00MA","Older People (65+)","Long term Support - Residential","PS Older People 65+ Long Term Support - Residential","Contracted Services",01/10/2020 00:00:00,"30383143",2623.48,"ASHGROVE CARE HOME"
"Bracknell Forest Council","http://opendatacommunities.org/id/unitary-authority/bracknell-forest","Bracknell Forest Council","00MA","Older People (65+)","Long term Support - Residential","PS Older People 65+ Long Term Support - Residential","Contracted Services",29/10/2020 00:00:00,"30384805",2623.48,"ASHGROVE CARE HOME"
"Bracknell Forest Council","http://opendatacommunities.org/id/unitary-authority/bracknell-forest","Bracknell Forest Council","00MA","Older People (65+)","Long term Support - Residential","PS Older People 65+ Long Term Support - Residential","Contracted Services",26/11/2020 00:00:00,"30386111",2623.48,"ASHGROVE CARE HOME"
"Bracknell Forest Council","http://opendatacommunities.org/id/unitary-authority/bracknell-forest","Bracknell Forest Council","00MA","Libraries","Stock Ordering, Cataloguing & Distribution","Library Book Fund","Audio/Visual materials",03/08/2020 00:00:00,"6708661",1639.51,"ASKEWS & HOLTS LIBRARY SERVICE"
"Bracknell Forest Council","http://opendatacommunities.org/id/unitary-authority/bracknell-forest","Bracknell Forest Council","00MA","Libraries","Stock Ordering, Cataloguing & Distribution","Library Book Fund","Audio/Visual materials",03/08/2020 00:00:00,"6708661",785.81,"ASKEWS & HOLTS LIBRARY SERVICE"
"Bracknell Forest Council","http://opendatacommunities.org/id/unitary-authority/bracknell-forest","Bracknell Forest Council","00MA","Libraries","Stock Ordering, Cataloguing & Distribution","Library Book Fund","Audio/Visual materials",27/07/2020 00:00:00,"6707725",1483.47,"ASKEWS & HOLTS LIBRARY SERVICE"
"Bracknell Forest Council","http://opendatacommunities.org/id/unitary-authority/bracknell-forest","Bracknell Forest Council","00MA","Libraries","Stock Ordering, Cataloguing & Distribution","Library Book Fund","Audio/Visual materials",10/08/2020 00:00:00,"6709096",819.4,"ASKEWS & HOLTS LIBRARY SERVICE"
"Bracknell Forest Council","http://opendatacommunities.org/id/unitary-authority/bracknell-forest","Bracknell Forest Council","00MA","Libraries","Stock Ordering, Cataloguing & Distribution","Library Book Fund","Audio/Visual materials",10/08/2020 00:00:00,"6709096",638.69,"ASKEWS & HOLTS LIBRARY SERVICE"
"Bracknell Forest Council","http://opendatacommunities.org/id/unitary-authority/bracknell-forest","Bracknell Forest Council","00MA","Libraries","Stock Ordering, Cataloguing & Distribution","Library Book Fund","Audio/Visual materials",17/08/2020 00:00:00,"6709098",613.32,"ASKEWS & HOLTS LIBRARY SERVICE"
"Bracknell Forest Council","http://opendatacommunities.org/id/unitary-authority/bracknell-forest","Bracknell Forest Council","00MA","Libraries","Stock Ordering, Cataloguing & Distribution","Library Book Fund","Audio/Visual materials",24/08/2020 00:00:00,"6709229",1114.46,"ASKEWS & HOLTS LIBRARY SERVICE"
"Bracknell Forest Council","http://opendatacommunities.org/id/unitary-authority/bracknell-forest","Bracknell Forest Council","00MA","Libraries","Stock Ordering, Cataloguing & Distribution","Library Book Fund","Audio/Visual materials",05/10/2020 00:00:00,"6711271",571.97,"ASKEWS & HOLTS LIBRARY SERVICE"
"Bracknell Forest Council","http://opendatacommunities.org/id/unitary-authority/bracknell-forest","Bracknell Forest Council","00MA","Libraries","Stock Ordering, Cataloguing & Distribution","Library Book Fund","Audio/Visual materials",07/09/2020 00:00:00,"6709797",530.37,"ASKEWS & HOLTS LIBRARY SERVICE"
"Bracknell Forest Council","http://opendatacommunities.org/id/unitary-authority/bracknell-forest","Bracknell Forest Council","00MA","Libraries","Stock Ordering, Cataloguing & Distribution","Library Book Fund","Audio/Visual materials",22/06/2020 00:00:00,"6705863",905.04,"ASKEWS & HOLTS LIBRARY SERVICE"
"Bracknell Forest Council","http://opendatacommunities.org/id/unitary-authority/bracknell-forest","Bracknell Forest Council","00MA","Libraries","Stock Ordering, Cataloguing & Distribution","Library Book Fund","Audio/Visual materials",22/06/2020 00:00:00,"6705863",1350.24,"ASKEWS & HOLTS LIBRARY SERVICE"
"Bracknell Forest Council","http://opendatacommunities.org/id/unitary-authority/bracknell-forest","Bracknell Forest Council","00MA","Libraries","Stock Ordering, Cataloguing & Distribution","Library Book Fund","Audio/Visual materials",15/06/2020 00:00:00,"6705975",504.6,"ASKEWS & HOLTS LIBRARY SERVICE"
"Bracknell Forest Council","http://opendatacommunities.org/id/unitary-authority/bracknell-forest","Bracknell Forest Council","00MA","Libraries","Stock Ordering, Cataloguing & Distribution","Library Book Fund","Audio/Visual materials",19/10/2020 00:00:00,"6712353",553.5,"ASKEWS & HOLTS LIBRARY SERVICE"
"Bracknell Forest Council","http://opendatacommunities.org/id/unitary-authority/bracknell-forest","Bracknell Forest Council","00MA","Libraries","Stock Ordering, Cataloguing & Distribution","Library Book Fund","Audio/Visual materials",26/10/2020 00:00:00,"6712356",922.26,"ASKEWS & HOLTS LIBRARY SERVICE"
"Bracknell Forest Council","http://opendatacommunities.org/id/unitary-authority/bracknell-forest","Bracknell Forest Council","00MA","Libraries","Stock Ordering, Cataloguing & Distribution","Library Book Fund","Audio/Visual materials",29/06/2020 00:00:00,"6706799",1013.67,"ASKEWS & HOLTS LIBRARY SERVICE"
"Bracknell Forest Council","http://opendatacommunities.org/id/unitary-authority/bracknell-forest","Bracknell Forest Council","00MA","Libraries","Stock Ordering, Cataloguing & Distribution","Library Book Fund","Audio/Visual materials",29/06/2020 00:00:00,"6706799",509.86,"ASKEWS & HOLTS LIBRARY SERVICE"
"Bracknell Forest Council","http://opendatacommunities.org/id/unitary-authority/bracknell-forest","Bracknell Forest Council","00MA","Libraries","Stock Ordering, Cataloguing & Distribution","Library Book Fund","Audio/Visual materials",29/06/2020 00:00:00,"6706799",537.05,"ASKEWS & HOLTS LIBRARY SERVICE"
"Bracknell Forest Council","http://opendatacommunities.org/id/unitary-authority/bracknell-forest","Bracknell Forest Council","00MA","Libraries","Stock Ordering, Cataloguing & Distribution","Library Book Fund","Audio/Visual materials",20/07/2020 00:00:00,"6707479",638.27,"ASKEWS & HOLTS LIBRARY SERVICE"
"Bracknell Forest Council","http://opendatacommunities.org/id/unitary-authority/bracknell-forest","Bracknell Forest Council","00MA","Libraries","Stock Ordering, Cataloguing & Distribution","Library Book Fund","Audio/Visual materials",14/09/2020 00:00:00,"6710026",1757.26,"ASKEWS & HOLTS LIBRARY SERVICE"
"Bracknell Forest Council","http://opendatacommunities.org/id/unitary-authority/bracknell-forest","Bracknell Forest Council","00MA","Libraries","Stock Ordering, Cataloguing & Distribution","Library Book Fund","Audio/Visual materials",14/09/2020 00:00:00,"6710026",960.32,"ASKEWS & HOLTS LIBRARY SERVICE"
"Bracknell Forest Council","http://opendatacommunities.org/id/unitary-authority/bracknell-forest","Bracknell Forest Council","00MA","Libraries","Stock Ordering, Cataloguing & Distribution","Library Book Fund","Audio/Visual materials",28/09/2020 00:00:00,"6710697",672.87,"ASKEWS & HOLTS LIBRARY SERVICE"
"Bracknell Forest Council","http://opendatacommunities.org/id/unitary-authority/bracknell-forest","Bracknell Forest Council","00MA","Libraries","Stock Ordering, Cataloguing & Distribution","Library Book Fund","Audio/Visual materials",28/09/2020 00:00:00,"6710697",1158.03,"ASKEWS & HOLTS LIBRARY SERVICE"
"Bracknell Forest Council","http://opendatacommunities.org/id/unitary-authority/bracknell-forest","Bracknell Forest Council","00MA","Libraries","Stock Ordering, Cataloguing & Distribution","Library Book Fund","Audio/Visual materials",28/09/2020 00:00:00,"6710697",970.78,"ASKEWS & HOLTS LIBRARY SERVICE"
"Bracknell Forest Council","http://opendatacommunities.org/id/unitary-authority/bracknell-forest","Bracknell Forest Council","00MA","Libraries","Stock Ordering, Cataloguing & Distribution","Library Book Fund","Audio/Visual materials",21/09/2020 00:00:00,"6710698",505.25,"ASKEWS & HOLTS LIBRARY SERVICE"
"Bracknell Forest Council","http://opendatacommunities.org/id/unitary-authority/bracknell-forest","Bracknell Forest Council","00MA","Miscellaneous Public Health Services","Public Health Teams","Public Health - Bracknell Team","Contracted Services",30/07/2020 00:00:00,"6707406",2570,"ASSOCIATION OF DIRECTORS OF PUBLIC HEALTH (UK)"
"Bracknell Forest Council","http://opendatacommunities.org/id/unitary-authority/bracknell-forest","Bracknell Forest Council","00MA","Other Education and Community Budget","Service strategy and other education functions","Education Psychology Service","Recruitment Expenses",25/06/2020 00:00:00,"6709258",960,"ASSOCIATION OF EDUCATIONAL PSYCHOLOGISTS"
"Bracknell Forest Council","http://opendatacommunities.org/id/unitary-authority/bracknell-forest","Bracknell Forest Council","00MA","Other Education and Community Budget","Service strategy and other education functions","Education Psychology Service","Recruitment Expenses",25/06/2020 00:00:00,"6709259",960,"ASSOCIATION OF EDUCATIONAL PSYCHOLOGISTS"
"Bracknell Forest Council","http://opendatacommunities.org/id/unitary-authority/bracknell-forest","Bracknell Forest Council","00MA","Other Education and Community Budget","Service strategy and other education functions","Education Psychology Service","Recruitment Expenses",16/09/2020 00:00:00,"6709508",810,"ASSOCIATION OF EDUCATIONAL PSYCHOLOGISTS"
"Bracknell Forest Council","http://opendatacommunities.org/id/unitary-authority/bracknell-forest","Bracknell Forest Council","00MA","Assistive Equipment & Technology","Assistive Equipment & Technology","Assistive Equipment and Technology","Equipment - Purchase",01/10/2020 00:00:00,"6710315",580,"AST SERVICES"
"Bracknell Forest Council","http://opendatacommunities.org/id/unitary-authority/bracknell-forest","Bracknell Forest Council","00MA","Older People (65+)","Long term Support - Residential","PS Older People 65+ Long Term Support - Residential","Contracted Services",09/07/2020 00:00:00,"30379636",3980,"ASTBURY MANOR CARE HOME"
"Bracknell Forest Council","http://opendatacommunities.org/id/unitary-authority/bracknell-forest","Bracknell Forest Council","00MA","Older People (65+)","Short Term Support Other","MC Older People 65+ Other Short Term support","Contracted Services",09/07/2020 00:00:00,"30379636",322.53,"ASTBURY MANOR CARE HOME"
"Bracknell Forest Council","http://opendatacommunities.org/id/unitary-authority/bracknell-forest","Bracknell Forest Council","00MA","Older People (65+)","Long term Support - Residential","MC Older People 65+ Long Term Support - Residential","Contracted Services",09/07/2020 00:00:00,"30379636",55359.44,"ASTBURY MANOR CARE HOME"
"Bracknell Forest Council","http://opendatacommunities.org/id/unitary-authority/bracknell-forest","Bracknell Forest Council","00MA","Older People (65+)","Long term Support - Residential","MC Older People 65+ Long Term Support - Residential","Contracted Services",09/07/2020 00:00:00,"30379636",828.13,"ASTBURY MANOR CARE HOME"
"Bracknell Forest Council","http://opendatacommunities.org/id/unitary-authority/bracknell-forest","Bracknell Forest Council","00MA","Adults (18-64)","Long term Support - Residential","MC Adults 18-64 Long Term Support - Residential","Contracted Services",09/07/2020 00:00:00,"30379636",3939.98,"ASTBURY MANOR CARE HOME"
"Bracknell Forest Council","http://opendatacommunities.org/id/unitary-authority/bracknell-forest","Bracknell Forest Council","00MA","Older People (65+)","Long term Support - Residential","MC Older People 65+ Long Term Support - Residential","Contracted Services",09/07/2020 00:00:00,"30379636",5288.4,"ASTBURY MANOR CARE HOME"
"Bracknell Forest Council","http://opendatacommunities.org/id/unitary-authority/bracknell-forest","Bracknell Forest Council","00MA","Older People (65+)","Long term Support - Residential","MC Older People 65+ Long Term Support - Residential","Contracted Services",09/07/2020 00:00:00,"30379636",4678.2,"ASTBURY MANOR CARE HOME"
"Bracknell Forest Council","http://opendatacommunities.org/id/unitary-authority/bracknell-forest","Bracknell Forest Council","00MA","Older People (65+)","Long term Support - Residential","PS Older People 65+ Long Term Support - Residential","Contracted Services",09/07/2020 00:00:00,"30379636",19500.1,"ASTBURY MANOR CARE HOME"
"Bracknell Forest Council","http://opendatacommunities.org/id/unitary-authority/bracknell-forest","Bracknell Forest Council","00MA","Older People (65+)","Long term Support - Residential","MC Older People 65+ Long Term Support - Residential","Contracted Services",09/07/2020 00:00:00,"30379636",2687.79,"ASTBURY MANOR CARE HOME"
"Bracknell Forest Council","http://opendatacommunities.org/id/unitary-authority/bracknell-forest","Bracknell Forest Council","00MA","Older People (65+)","Long term Support - Residential","MC Older People 65+ Long Term Support - Residential","Contracted Services",09/07/2020 00:00:00,"30379636",4580,"ASTBURY MANOR CARE HOME"
"Bracknell Forest Council","http://opendatacommunities.org/id/unitary-authority/bracknell-forest","Bracknell Forest Council","00MA","Older People (65+)","Long term Support - Residential","MC Older People 65+ Long Term Support - Residential","Contracted Services",23/07/2020 00:00:00,"30380134",-828.13,"ASTBURY MANOR CARE HOME"
"Bracknell Forest Council","http://opendatacommunities.org/id/unitary-authority/bracknell-forest","Bracknell Forest Council","00MA","Older People (65+)","Long term Support - Residential","PS Older People 65+ Long Term Support - Residential","Contracted Services",06/08/2020 00:00:00,"30380809",15244,"ASTBURY MANOR CARE HOME"
"Bracknell Forest Council","http://opendatacommunities.org/id/unitary-authority/bracknell-forest","Bracknell Forest Council","00MA","Older People (65+)","Long term Support - Residential","PS Older People 65+ Long Term Support - Residential","Contracted Services",06/08/2020 00:00:00,"30380809",3980,"ASTBURY MANOR CARE HOME"
"Bracknell Forest Council","http://opendatacommunities.org/id/unitary-authority/bracknell-forest","Bracknell Forest Council","00MA","Older People (65+)","Long term Support - Residential","MC Older People 65+ Long Term Support - Residential","Contracted Services",06/08/2020 00:00:00,"30380809",42683.2,"ASTBURY MANOR CARE HOME"
"Bracknell Forest Council","http://opendatacommunities.org/id/unitary-authority/bracknell-forest","Bracknell Forest Council","00MA","Older People (65+)","Long term Support - Residential","MC Older People 65+ Long Term Support - Residential","Contracted Services",06/08/2020 00:00:00,"30380809",-107.51,"ASTBURY MANOR CARE HOME"
"Bracknell Forest Council","http://opendatacommunities.org/id/unitary-authority/bracknell-forest","Bracknell Forest Council","00MA","Older People (65+)","Long term Support - Residential","MC Older People 65+ Long Term Support - Residential","Contracted Services",06/08/2020 00:00:00,"30380809",5288.4,"ASTBURY MANOR CARE HOME"
"Bracknell Forest Council","http://opendatacommunities.org/id/unitary-authority/bracknell-forest","Bracknell Forest Council","00MA","Older People (65+)","Long term Support - Residential","MC Older People 65+ Long Term Support - Residential","Contracted Services",06/08/2020 00:00:00,"30380809",2831.03,"ASTBURY MANOR CARE HOME"
"Bracknell Forest Council","http://opendatacommunities.org/id/unitary-authority/bracknell-forest","Bracknell Forest Council","00MA","Older People (65+)","Long term Support - Residential","MC Older People 65+ Long Term Support - Residential","Contracted Services",06/08/2020 00:00:00,"30380809",4580,"ASTBURY MANOR CARE HOME"
"Bracknell Forest Council","http://opendatacommunities.org/id/unitary-authority/bracknell-forest","Bracknell Forest Council","00MA","Adults (18-64)","Long term Support - Residential","MC Adults 18-64 Long Term Support - Residential","Contracted Services",06/08/2020 00:00:00,"30380809",3048.8,"ASTBURY MANOR CARE HOME"
"Bracknell Forest Council","http://opendatacommunities.org/id/unitary-authority/bracknell-forest","Bracknell Forest Council","00MA","Older People (65+)","Long term Support - Residential","MC Older People 65+ Long Term Support - Residential","Contracted Services",06/08/2020 00:00:00,"30380809",4678.2,"ASTBURY MANOR CARE HOME"
"Bracknell Forest Council","http://opendatacommunities.org/id/unitary-authority/bracknell-forest","Bracknell Forest Council","00MA","Older People (65+)","Long term Support - Residential","PS Older People 65+ Long Term Support - Residential","Contracted Services",03/09/2020 00:00:00,"30381911",3980,"ASTBURY MANOR CARE HOME"
"Bracknell Forest Council","http://opendatacommunities.org/id/unitary-authority/bracknell-forest","Bracknell Forest Council","00MA","Older People (65+)","Long term Support - Residential","MC Older People 65+ Long Term Support - Residential","Contracted Services",03/09/2020 00:00:00,"30381911",5288.4,"ASTBURY MANOR CARE HOME"
"Bracknell Forest Council","http://opendatacommunities.org/id/unitary-authority/bracknell-forest","Bracknell Forest Council","00MA","Older People (65+)","Long term Support - Residential","PS Older People 65+ Long Term Support - Residential","Contracted Services",03/09/2020 00:00:00,"30381911",13610.71,"ASTBURY MANOR CARE HOME"
"Bracknell Forest Council","http://opendatacommunities.org/id/unitary-authority/bracknell-forest","Bracknell Forest Council","00MA","Adults (18-64)","Long term Support - Residential","MC Adults 18-64 Long Term Support - Residential","Contracted Services",03/09/2020 00:00:00,"30381911",3048.8,"ASTBURY MANOR CARE HOME"
"Bracknell Forest Council","http://opendatacommunities.org/id/unitary-authority/bracknell-forest","Bracknell Forest Council","00MA","Older People (65+)","Long term Support - Residential","MC Older People 65+ Long Term Support - Residential","Contracted Services",03/09/2020 00:00:00,"30381911",44316.49,"ASTBURY MANOR CARE HOME"
"Bracknell Forest Council","http://opendatacommunities.org/id/unitary-authority/bracknell-forest","Bracknell Forest Council","00MA","Older People (65+)","Long term Support - Residential","MC Older People 65+ Long Term Support - Residential","Contracted Services",03/09/2020 00:00:00,"30381911",4508.54,"ASTBURY MANOR CARE HOME"
"Bracknell Forest Council","http://opendatacommunities.org/id/unitary-authority/bracknell-forest","Bracknell Forest Council","00MA","Older People (65+)","Long term Support - Residential","MC Older People 65+ Long Term Support - Residential","Contracted Services",03/09/2020 00:00:00,"30381911",4580,"ASTBURY MANOR CARE HOME"
"Bracknell Forest Council","http://opendatacommunities.org/id/unitary-authority/bracknell-forest","Bracknell Forest Council","00MA","Older People (65+)","Long term Support - Residential","MC Older People 65+ Long Term Support - Residential","Contracted Services",03/09/2020 00:00:00,"30381911",4678.2,"ASTBURY MANOR CARE HOME"
"Bracknell Forest Council","http://opendatacommunities.org/id/unitary-authority/bracknell-forest","Bracknell Forest Council","00MA","Older People (65+)","Long Term Support - Community:Other Long Term Care","PS Older People 65+ Long Term Support - Community:Other Long Term Care","Contracted Services",10/09/2020 00:00:00,"30382251",1691.43,"ASTBURY MANOR CARE HOME"
"Bracknell Forest Council","http://opendatacommunities.org/id/unitary-authority/bracknell-forest","Bracknell Forest Council","00MA","Older People (65+)","Long term Support - Residential","MC Older People 65+ Long Term Support - Residential","Contracted Services",01/10/2020 00:00:00,"30383143",5200,"ASTBURY MANOR CARE HOME"
"Bracknell Forest Council","http://opendatacommunities.org/id/unitary-authority/bracknell-forest","Bracknell Forest Council","00MA","Adults (18-64)","Long term Support - Residential","MC Adults 18-64 Long Term Support - Residential","Contracted Services",01/10/2020 00:00:00,"30383143",3048.8,"ASTBURY MANOR CARE HOME"
"Bracknell Forest Council","http://opendatacommunities.org/id/unitary-authority/bracknell-forest","Bracknell Forest Council","00MA","Older People (65+)","Long term Support - Residential","MC Older People 65+ Long Term Support - Residential","Contracted Services",01/10/2020 00:00:00,"30383143",45732,"ASTBURY MANOR CARE HOME"
"Bracknell Forest Council","http://opendatacommunities.org/id/unitary-authority/bracknell-forest","Bracknell Forest Council","00MA","Older People (65+)","Long term Support - Residential","MC Older People 65+ Long Term Support - Residential","Contracted Services",01/10/2020 00:00:00,"30383143",4580,"ASTBURY MANOR CARE HOME"
"Bracknell Forest Council","http://opendatacommunities.org/id/unitary-authority/bracknell-forest","Bracknell Forest Council","00MA","Older People (65+)","Long term Support - Residential","MC Older People 65+ Long Term Support - Residential","Contracted Services",01/10/2020 00:00:00,"30383143",8963.91,"ASTBURY MANOR CARE HOME"
"Bracknell Forest Council","http://opendatacommunities.org/id/unitary-authority/bracknell-forest","Bracknell Forest Council","00MA","Older People (65+)","Long term Support - Residential","MC Older People 65+ Long Term Support - Residential","Contracted Services",01/10/2020 00:00:00,"30383143",2833.07,"ASTBURY MANOR CARE HOME"
"Bracknell Forest Council","http://opendatacommunities.org/id/unitary-authority/bracknell-forest","Bracknell Forest Council","00MA","Older People (65+)","Long term Support - Residential","PS Older People 65+ Long Term Support - Residential","Contracted Services",01/10/2020 00:00:00,"30383143",12195.2,"ASTBURY MANOR CARE HOME"
"Bracknell Forest Council","http://opendatacommunities.org/id/unitary-authority/bracknell-forest","Bracknell Forest Council","00MA","Older People (65+)","Long term Support - Residential","PS Older People 65+ Long Term Support - Residential","Contracted Services",01/10/2020 00:00:00,"30383143",3980,"ASTBURY MANOR CARE HOME"
"Bracknell Forest Council","http://opendatacommunities.org/id/unitary-authority/bracknell-forest","Bracknell Forest Council","00MA","Older People (65+)","Long term Support - Residential","MC Older People 65+ Long Term Support - Residential","Contracted Services",29/10/2020 00:00:00,"30384805",5200,"ASTBURY MANOR CARE HOME"
"Bracknell Forest Council","http://opendatacommunities.org/id/unitary-authority/bracknell-forest","Bracknell Forest Council","00MA","Older People (65+)","Long term Support - Residential","PS Older People 65+ Long Term Support - Residential","Contracted Services",29/10/2020 00:00:00,"30384805",13610.71,"ASTBURY MANOR CARE HOME"
"Bracknell Forest Council","http://opendatacommunities.org/id/unitary-authority/bracknell-forest","Bracknell Forest Council","00MA","Adults (18-64)","Long term Support - Residential","MC Adults 18-64 Long Term Support - Residential","Contracted Services",29/10/2020 00:00:00,"30384805",3048.8,"ASTBURY MANOR CARE HOME"
"Bracknell Forest Council","http://opendatacommunities.org/id/unitary-authority/bracknell-forest","Bracknell Forest Council","00MA","Older People (65+)","Long term Support - Residential","MC Older People 65+ Long Term Support - Residential","Contracted Services",29/10/2020 00:00:00,"30384805",44316.49,"ASTBURY MANOR CARE HOME"
"Bracknell Forest Council","http://opendatacommunities.org/id/unitary-authority/bracknell-forest","Bracknell Forest Council","00MA","Older People (65+)","Long term Support - Residential","MC Older People 65+ Long Term Support - Residential","Contracted Services",29/10/2020 00:00:00,"30384805",4678.2,"ASTBURY MANOR CARE HOME"
"Bracknell Forest Council","http://opendatacommunities.org/id/unitary-authority/bracknell-forest","Bracknell Forest Council","00MA","Older People (65+)","Long term Support - Residential","MC Older People 65+ Long Term Support - Residential","Contracted Services",29/10/2020 00:00:00,"30384805",1371.43,"ASTBURY MANOR CARE HOME"
"Bracknell Forest Council","http://opendatacommunities.org/id/unitary-authority/bracknell-forest","Bracknell Forest Council","00MA","Older People (65+)","Long term Support - Residential","MC Older People 65+ Long Term Support - Residential","Contracted Services",29/10/2020 00:00:00,"30384805",4580,"ASTBURY MANOR CARE HOME"
"Bracknell Forest Council","http://opendatacommunities.org/id/unitary-authority/bracknell-forest","Bracknell Forest Council","00MA","Older People (65+)","Long term Support - Residential","PS Older People 65+ Long Term Support - Residential","Contracted Services",29/10/2020 00:00:00,"30384805",3980,"ASTBURY MANOR CARE HOME"
"Bracknell Forest Council","http://opendatacommunities.org/id/unitary-authority/bracknell-forest","Bracknell Forest Council","00MA","Older People (65+)","Long term Support - Residential","PS Older People 65+ Long Term Support - Residential","Contracted Services",26/11/2020 00:00:00,"30386111",13066.29,"ASTBURY MANOR CARE HOME"
"Bracknell Forest Council","http://opendatacommunities.org/id/unitary-authority/bracknell-forest","Bracknell Forest Council","00MA","Older People (65+)","Long term Support - Residential","PS Older People 65+ Long Term Support - Residential","Contracted Services",26/11/2020 00:00:00,"30386111",-2274.29,"ASTBURY MANOR CARE HOME"
"Bracknell Forest Council","http://opendatacommunities.org/id/unitary-authority/bracknell-forest","Bracknell Forest Council","00MA","Older People (65+)","Long term Support - Residential","MC Older People 65+ Long Term Support - Residential","Contracted Services",26/11/2020 00:00:00,"30386111",5200,"ASTBURY MANOR CARE HOME"
"Bracknell Forest Council","http://opendatacommunities.org/id/unitary-authority/bracknell-forest","Bracknell Forest Council","00MA","Older People (65+)","Long term Support - Residential","MC Older People 65+ Long Term Support - Residential","Contracted Services",26/11/2020 00:00:00,"30386111",4678.2,"ASTBURY MANOR CARE HOME"
"Bracknell Forest Council","http://opendatacommunities.org/id/unitary-authority/bracknell-forest","Bracknell Forest Council","00MA","Older People (65+)","Long term Support - Residential","MC Older People 65+ Long Term Support - Residential","Contracted Services",26/11/2020 00:00:00,"30386111",44860.91,"ASTBURY MANOR CARE HOME"
"Bracknell Forest Council","http://opendatacommunities.org/id/unitary-authority/bracknell-forest","Bracknell Forest Council","00MA","Older People (65+)","Long term Support - Residential","MC Older People 65+ Long Term Support - Residential","Contracted Services",26/11/2020 00:00:00,"30386111",327.14,"ASTBURY MANOR CARE HOME"
"Bracknell Forest Council","http://opendatacommunities.org/id/unitary-authority/bracknell-forest","Bracknell Forest Council","00MA","Adults (18-64)","Long term Support - Residential","MC Adults 18-64 Long Term Support - Residential","Contracted Services",26/11/2020 00:00:00,"30386111",3048.8,"ASTBURY MANOR CARE HOME"
"Bracknell Forest Council","http://opendatacommunities.org/id/unitary-authority/bracknell-forest","Bracknell Forest Council","00MA","Structural Maintenance","Bridges","Bridges","Consultants Fees",17/08/2020 00:00:00,"6709738",6200.9,"ATKINS LTD"
"Bracknell Forest Council","http://opendatacommunities.org/id/unitary-authority/bracknell-forest","Bracknell Forest Council","00MA","Structural Maintenance","Bridges","Bridges - Other Roads","Consultants Fees",17/08/2020 00:00:00,"6709738",3908.67,"ATKINS LTD"
"Bracknell Forest Council","http://opendatacommunities.org/id/unitary-authority/bracknell-forest","Bracknell Forest Council","00MA","Structural Maintenance","Bridges","Bridges - Other Roads","Consultants Fees",16/10/2020 00:00:00,"6713453",1120.89,"ATKINS LTD"
"Bracknell Forest Council","http://opendatacommunities.org/id/unitary-authority/bracknell-forest","Bracknell Forest Council","00MA","Structural Maintenance","Bridges","Bridges - Other Roads","Consultants Fees",16/10/2020 00:00:00,"6713453",523.24,"ATKINS LTD"
"Bracknell Forest Council","http://opendatacommunities.org/id/unitary-authority/bracknell-forest","Bracknell Forest Council","00MA","Structural Maintenance","Bridges","Bridges","Consultants Fees",16/10/2020 00:00:00,"6713456",5467.11,"ATKINS LTD"
"Bracknell Forest Council","http://opendatacommunities.org/id/unitary-authority/bracknell-forest","Bracknell Forest Council","00MA","Structural Maintenance","Bridges","Bridges - Other Roads","Consultants Fees",16/10/2020 00:00:00,"6713456",1472.98,"ATKINS LTD"
"Bracknell Forest Council","http://opendatacommunities.org/id/unitary-authority/bracknell-forest","Bracknell Forest Council","00MA","Central Support Services - COF","Construction and Property","Construction & Maintenance","Agency",17/07/2020 00:00:00,"6706803",5670,"ATKINS LTD"
"Bracknell Forest Council","http://opendatacommunities.org/id/unitary-authority/bracknell-forest","Bracknell Forest Council","00MA","Structural Maintenance","Bridges","Bridges","Consultants Fees",17/06/2020 00:00:00,"6706557",4641.59,"ATKINS LTD"
"Bracknell Forest Council","http://opendatacommunities.org/id/unitary-authority/bracknell-forest","Bracknell Forest Council","00MA","Structural Maintenance","Bridges","Bridges - Other Roads","Consultants Fees",17/06/2020 00:00:00,"6706557",1973.98,"ATKINS LTD"
"Bracknell Forest Council","http://opendatacommunities.org/id/unitary-authority/bracknell-forest","Bracknell Forest Council","00MA","Business Support","Premises Development","Commercial Properties","Consultants Fees",27/11/2020 00:00:00,"6713306",18451.91,"ATKINS LTD"
"Bracknell Forest Council","http://opendatacommunities.org/id/unitary-authority/bracknell-forest","Bracknell Forest Council","00MA","Homelessness","Accommodation within own Stock","BFC Properties","R&M - Reactive",29/04/2020 00:00:00,"6707263",650,"ATKINS LTD"
"Bracknell Forest Council","http://opendatacommunities.org/id/unitary-authority/bracknell-forest","Bracknell Forest Council","00MA","Homelessness","Accommodation within own Stock","BFC Properties","R&M - Reactive",19/06/2020 00:00:00,"6707264",7555.4,"ATKINS LTD"
"Bracknell Forest Council","http://opendatacommunities.org/id/unitary-authority/bracknell-forest","Bracknell Forest Council","00MA","Homelessness","Accommodation within own Stock","BFC Properties","R&M - Planned",28/08/2020 00:00:00,"6709188",1915.85,"ATKINS LTD"
"Bracknell Forest Council","http://opendatacommunities.org/id/unitary-authority/bracknell-forest","Bracknell Forest Council","00MA","Homelessness","Prevention","Housing Management Operational Costs","Agency",28/08/2020 00:00:00,"6709193",6140,"ATKINS LTD"
"Bracknell Forest Council","http://opendatacommunities.org/id/unitary-authority/bracknell-forest","Bracknell Forest Council","00MA","Holding Accounts not in Budget Book - COF","General Holding Accounts","Repairs and Maintenance","Consultants Fees",18/08/2020 00:00:00,"6708106",7819.14,"ATKINS LTD"
"Bracknell Forest Council","http://opendatacommunities.org/id/unitary-authority/bracknell-forest","Bracknell Forest Council","00MA","Holding Accounts not in Budget Book - COF","General Holding Accounts","Repairs and Maintenance","Consultants Fees",19/06/2020 00:00:00,"6708108",7562.5,"ATKINS LTD"
"Bracknell Forest Council","http://opendatacommunities.org/id/unitary-authority/bracknell-forest","Bracknell Forest Council","00MA","Holding Accounts not in Budget Book - COF","General Holding Accounts","Repairs and Maintenance","R&M - Reactive",25/09/2020 00:00:00,"6710230",9350.36,"ATKINS LTD"
"Bracknell Forest Council","http://opendatacommunities.org/id/unitary-authority/bracknell-forest","Bracknell Forest Council","00MA","Business Support","Premises Development","Longshot Lane  - Service Charges","R&M - Reactive",19/06/2020 00:00:00,"6707342",978.37,"ATKINS LTD"
"Bracknell Forest Council","http://opendatacommunities.org/id/unitary-authority/bracknell-forest","Bracknell Forest Council","00MA","Structural Maintenance","Bridges","Bridges","Consultants Fees",06/07/2020 00:00:00,"6707000",7474.24,"ATKINS LTD"
"Bracknell Forest Council","http://opendatacommunities.org/id/unitary-authority/bracknell-forest","Bracknell Forest Council","00MA","Structural Maintenance","Bridges","Bridges - Other Roads","Consultants Fees",06/07/2020 00:00:00,"6707000",3143.92,"ATKINS LTD"
"Bracknell Forest Council","http://opendatacommunities.org/id/unitary-authority/bracknell-forest","Bracknell Forest Council","00MA","Holding Accounts not in Budget Book - COF","General Holding Accounts","Certificated Contract Payments","Consultants Fees",17/07/2020 00:00:00,"6707401",19318.22,"ATKINS LTD"
"Bracknell Forest Council","http://opendatacommunities.org/id/unitary-authority/bracknell-forest","Bracknell Forest Council","00MA","Homelessness","Prevention","Housing Management Operational Costs","Agency",19/06/2020 00:00:00,"6706624",6480,"ATKINS LTD"
"Bracknell Forest Council","http://opendatacommunities.org/id/unitary-authority/bracknell-forest","Bracknell Forest Council","00MA","Homelessness","Prevention","Housing Management Operational Costs","Consultants Fees",23/10/2020 00:00:00,"6711604",6687.5,"ATKINS LTD"
"Bracknell Forest Council","http://opendatacommunities.org/id/unitary-authority/bracknell-forest","Bracknell Forest Council","00MA","Homelessness","Prevention","Housing Management Operational Costs","Consultants Fees",25/10/2020 00:00:00,"6711605",4640,"ATKINS LTD"
"Bracknell Forest Council","http://opendatacommunities.org/id/unitary-authority/bracknell-forest","Bracknell Forest Council","00MA","Children Looked After","Fostering services","Independent Fostering (Non BFBC)","Other Local Authorities",12/10/2020 00:00:00,"6711483",50700,"ATKINSON SCHOOL(DEVON COUNTY COUNCIL)"
"Bracknell Forest Council","http://opendatacommunities.org/id/unitary-authority/bracknell-forest","Bracknell Forest Council","00MA","Internal Services","Internal Services","Glenfield","Other Fees for Bought-in Services",30/06/2020 00:00:00,"6706308",585,"ATR REMOVALS"
"Bracknell Forest Council","http://opendatacommunities.org/id/unitary-authority/bracknell-forest","Bracknell Forest Council","00MA","Social Care Activities","Social Care Activities","Mental Health Support - Other Care & Support","Other Support to Clients",10/11/2020 00:00:00,"6712542",1450,"ATR REMOVALS"
"Bracknell Forest Council","http://opendatacommunities.org/id/unitary-authority/bracknell-forest","Bracknell Forest Council","00MA","Housing Strategy","Housing Strategy","Energy Management","Equipment - Purchase",13/11/2020 00:00:00,"6712976",1000,"AURUGAS"
"Bracknell Forest Council","http://opendatacommunities.org/id/unitary-authority/bracknell-forest","Bracknell Forest Council","00MA","Older People (65+)","Long term Support - Community:Homecare","PS Older People 65+ Long Term Support - Community:Homecare","Other Support to Clients",21/09/2020 00:00:00,"6710989",1629,"AUTHENTIC HEALTHCARE"
"Bracknell Forest Council","http://opendatacommunities.org/id/unitary-authority/bracknell-forest","Bracknell Forest Council","00MA","Older People (65+)","Long term Support - Community:Homecare","PS Older People 65+ Long Term Support - Community:Homecare","Other Support to Clients",19/09/2020 00:00:00,"6710214",963.9,"AUTHENTIC HEALTHCARE"
"Bracknell Forest Council","http://opendatacommunities.org/id/unitary-authority/bracknell-forest","Bracknell Forest Council","00MA","Adults (18-64)","Long term Support - Residential","LD Adults 18-64 Long Term Support - Residential","Contracted Services",09/07/2020 00:00:00,"30379636",6443.64,"AUTISM AT KINGWOOD"
"Bracknell Forest Council","http://opendatacommunities.org/id/unitary-authority/bracknell-forest","Bracknell Forest Council","00MA","Adults (18-64)","Long term Support - Residential","LD Adults 18-64 Long Term Support - Residential","Contracted Services",06/08/2020 00:00:00,"30380809",-21632.22,"AUTISM AT KINGWOOD"
"Bracknell Forest Council","http://opendatacommunities.org/id/unitary-authority/bracknell-forest","Bracknell Forest Council","00MA","Adults (18-64)","Long term Support - Residential","LD Adults 18-64 Long Term Support - Residential","Contracted Services",03/09/2020 00:00:00,"30381911",34519.5,"AUTISM AT KINGWOOD"
"Bracknell Forest Council","http://opendatacommunities.org/id/unitary-authority/bracknell-forest","Bracknell Forest Council","00MA","Adults (18-64)","Long term Support - Residential","LD Adults 18-64 Long Term Support - Residential","Contracted Services",10/09/2020 00:00:00,"30382250",-34289.37,"AUTISM AT KINGWOOD"
"Bracknell Forest Council","http://opendatacommunities.org/id/unitary-authority/bracknell-forest","Bracknell Forest Council","00MA","Adults (18-64)","Long term Support - Residential","LD Adults 18-64 Long Term Support - Residential","Contracted Services",29/10/2020 00:00:00,"30384805",-230.13,"AUTISM AT KINGWOOD"
"Bracknell Forest Council","http://opendatacommunities.org/id/unitary-authority/bracknell-forest","Bracknell Forest Council","00MA","Adults (18-64)","Long term Support - Residential","LD Adults 18-64 Long Term Support - Residential","Contracted Services",09/07/2020 00:00:00,"30379636",5446.24,"AUTISM SPECIALISED CARE HOMES LTD"
"Bracknell Forest Council","http://opendatacommunities.org/id/unitary-authority/bracknell-forest","Bracknell Forest Council","00MA","Adults (18-64)","Long term Support - Residential","LD Adults 18-64 Long Term Support - Residential","Contracted Services",06/08/2020 00:00:00,"30380809",5446.24,"AUTISM SPECIALISED CARE HOMES LTD"
"Bracknell Forest Council","http://opendatacommunities.org/id/unitary-authority/bracknell-forest","Bracknell Forest Council","00MA","Adults (18-64)","Long term Support - Residential","LD Adults 18-64 Long Term Support - Residential","Contracted Services",03/09/2020 00:00:00,"30381911",5446.24,"AUTISM SPECIALISED CARE HOMES LTD"
"Bracknell Forest Council","http://opendatacommunities.org/id/unitary-authority/bracknell-forest","Bracknell Forest Council","00MA","Adults (18-64)","Long term Support - Residential","LD Adults 18-64 Long Term Support - Residential","Contracted Services",01/10/2020 00:00:00,"30383143",5446.24,"AUTISM SPECIALISED CARE HOMES LTD"
"Bracknell Forest Council","http://opendatacommunities.org/id/unitary-authority/bracknell-forest","Bracknell Forest Council","00MA","Adults (18-64)","Long term Support - Residential","LD Adults 18-64 Long Term Support - Residential","Contracted Services",29/10/2020 00:00:00,"30384805",5446.24,"AUTISM SPECIALISED CARE HOMES LTD"
"Bracknell Forest Council","http://opendatacommunities.org/id/unitary-authority/bracknell-forest","Bracknell Forest Council","00MA","Adults (18-64)","Long term Support - Residential","LD Adults 18-64 Long Term Support - Residential","Contracted Services",26/11/2020 00:00:00,"30386111",5446.24,"AUTISM SPECIALISED CARE HOMES LTD"
"Bracknell Forest Council","http://opendatacommunities.org/id/unitary-authority/bracknell-forest","Bracknell Forest Council","00MA","Special Schools & Alternative Provision","Youth Services","Alternative Provision for Secondary Aged pupils without a statement","Voluntary Sector Service Providers",16/02/2020 00:00:00,"6712311",810,"AUTO SKILLS (READING) CIC"
"Bracknell Forest Council","http://opendatacommunities.org/id/unitary-authority/bracknell-forest","Bracknell Forest Council","00MA","Homelessness","Prevention","PRS Procurement & Incentive","Rent of Property",06/07/2020 00:00:00,"60016552",7252.76,"B CARERS LTD"
"Bracknell Forest Council","http://opendatacommunities.org/id/unitary-authority/bracknell-forest","Bracknell Forest Council","00MA","Children Looked After","Residential care","Children's Home Placements","Contracted Services",31/07/2020 00:00:00,"6708510",19640.44,"BACK TO BACK CARE"
"Bracknell Forest Council","http://opendatacommunities.org/id/unitary-authority/bracknell-forest","Bracknell Forest Council","00MA","Children Looked After","Residential care","Children's Home Placements","Contracted Services",01/05/2020 00:00:00,"6708511",20390.4,"BACK TO BACK CARE"
"Bracknell Forest Council","http://opendatacommunities.org/id/unitary-authority/bracknell-forest","Bracknell Forest Council","00MA","Children Looked After","Residential care","Children's Home Placements","Contracted Services",30/06/2020 00:00:00,"6708512",19006.88,"BACK TO BACK CARE"
"Bracknell Forest Council","http://opendatacommunities.org/id/unitary-authority/bracknell-forest","Bracknell Forest Council","00MA","Older People (65+)","Long Term Support - Nursing","PS Older People 65+ Long Term Support - Nursing","Contracted Services",26/11/2020 00:00:00,"30386111",3934.16,"CARE UK COMMUNITY PARTNERSHIPS LTD"
"Bracknell Forest Council","http://opendatacommunities.org/id/unitary-authority/bracknell-forest","Bracknell Forest Council","00MA","Older People (65+)","Long Term Support - Nursing","PS Older People 65+ Long Term Support - Nursing","Contracted Services",26/11/2020 00:00:00,"30386111",3864.6,"CARE UK COMMUNITY PARTNERSHIPS LTD"
"Bracknell Forest Council","http://opendatacommunities.org/id/unitary-authority/bracknell-forest","Bracknell Forest Council","00MA","Adults (18-64)","Long Term Support - Nursing","PS Adults 18-64 Long Term Support - Nursing","Contracted Services",26/11/2020 00:00:00,"30386111",3296.16,"CARE UK COMMUNITY PARTNERSHIPS LTD"
"Bracknell Forest Council","http://opendatacommunities.org/id/unitary-authority/bracknell-forest","Bracknell Forest Council","00MA","Children Looked After","Short breaks for LAC","Larchwood","Agency",08/07/2020 00:00:00,"6706931",824,"CARELINE"
"Bracknell Forest Council","http://opendatacommunities.org/id/unitary-authority/bracknell-forest","Bracknell Forest Council","00MA","Children Looked After","Short breaks for LAC","Larchwood","Agency",01/07/2020 00:00:00,"6706929",988.8,"CARELINE"
"Bracknell Forest Council","http://opendatacommunities.org/id/unitary-authority/bracknell-forest","Bracknell Forest Council","00MA","Children Looked After","Short breaks for LAC","Larchwood","Agency",19/08/2020 00:00:00,"6708759",906.4,"CARELINE"
"Bracknell Forest Council","http://opendatacommunities.org/id/unitary-authority/bracknell-forest","Bracknell Forest Council","00MA","Management and Support Services - CYPL","Unallocated High Needs Related Expenditure","Mainstream - Element 3 top up non BFC pre 16","Other Local Authorities",02/09/2020 00:00:00,"6708868",7208.08,"CAREW ACADEMY"
"Bracknell Forest Council","http://opendatacommunities.org/id/unitary-authority/bracknell-forest","Bracknell Forest Council","00MA","Waste Disposal","Disposal of Waste","London Road Tip","Water & Sewerage",11/06/2020 00:00:00,"6709064",509.15,"CASTLE WATER LIMITED"
"Bracknell Forest Council","http://opendatacommunities.org/id/unitary-authority/bracknell-forest","Bracknell Forest Council","00MA","Other Council Property","Travellers' Sites","Easthampstead Park Caravan Site","Water & Sewerage",23/11/2020 00:00:00,"6712937",816.15,"CASTLE WATER LIMITED"
"Bracknell Forest Council","http://opendatacommunities.org/id/unitary-authority/bracknell-forest","Bracknell Forest Council","00MA","Other Council Property","Travellers' Sites","Easthampstead Park Caravan Site","Water & Sewerage",02/09/2020 00:00:00,"6712939",636.62,"CASTLE WATER LIMITED"
"Bracknell Forest Council","http://opendatacommunities.org/id/unitary-authority/bracknell-forest","Bracknell Forest Council","00MA","Other Education and Community Budget","Adult and Community Learning","Open Learning Centre - Brakenhale","Water & Sewerage",03/11/2020 00:00:00,"6712279",1162.09,"CASTLE WATER LIMITED"
"Bracknell Forest Council","http://opendatacommunities.org/id/unitary-authority/bracknell-forest","Bracknell Forest Council","00MA","Other Education and Community Budget","Adult and Community Learning","Open Learning Centre - Brakenhale","Water & Sewerage",03/11/2020 00:00:00,"6712279",1703.64,"CASTLE WATER LIMITED"
"Bracknell Forest Council","http://opendatacommunities.org/id/unitary-authority/bracknell-forest","Bracknell Forest Council","00MA","Business Support","Premises Development","Bus/Rail Interchange","Water & Sewerage",05/10/2020 00:00:00,"6710588",1112.29,"CASTLE WATER LIMITED"
"Bracknell Forest Council","http://opendatacommunities.org/id/unitary-authority/bracknell-forest","Bracknell Forest Council","00MA","Family Support Services","Targeted Family Support","Bracknell Family Centre","Water & Sewerage",15/02/2020 00:00:00,"6711548",1024.68,"CASTLE WATER LIMITED"
"Bracknell Forest Council","http://opendatacommunities.org/id/unitary-authority/bracknell-forest","Bracknell Forest Council","00MA","Children Looked After","Residential care","Children's Home Placements","Contracted Services",30/09/2020 00:00:00,"6710772",19006.8,"BACK TO BACK CARE"
"Bracknell Forest Council","http://opendatacommunities.org/id/unitary-authority/bracknell-forest","Bracknell Forest Council","00MA","Children Looked After","Residential care","Children's Home Placements","Contracted Services",31/08/2020 00:00:00,"6709419",19640.36,"BACK TO BACK CARE"
"Bracknell Forest Council","http://opendatacommunities.org/id/unitary-authority/bracknell-forest","Bracknell Forest Council","00MA","Children Looked After","Other services for LAC","LAC- Over 11s Expenditure","Other Support to Clients",31/08/2020 00:00:00,"6709518",1587,"BACK TO BACK CARE"
"Bracknell Forest Council","http://opendatacommunities.org/id/unitary-authority/bracknell-forest","Bracknell Forest Council","00MA","Children Looked After","Other services for LAC","LAC- Over 11s Expenditure","Other Support to Clients",30/09/2020 00:00:00,"6710744",1587,"BACK TO BACK CARE"
"Bracknell Forest Council","http://opendatacommunities.org/id/unitary-authority/bracknell-forest","Bracknell Forest Council","00MA","Children Looked After","Other services for LAC","LAC - Semi Independent Living","Contracted Services",30/09/2020 00:00:00,"6710771",5252.6,"BACK TO BACK CARE"
"Bracknell Forest Council","http://opendatacommunities.org/id/unitary-authority/bracknell-forest","Bracknell Forest Council","00MA","Children Looked After","Other services for LAC","LAC - Semi Independent Living","Contracted Services",31/07/2020 00:00:00,"6707806",5374.02,"BACK TO BACK CARE"
"Bracknell Forest Council","http://opendatacommunities.org/id/unitary-authority/bracknell-forest","Bracknell Forest Council","00MA","Children Looked After","Other services for LAC","LAC - Semi Independent Living","Contracted Services",30/06/2020 00:00:00,"6707807",6593.02,"BACK TO BACK CARE"
"Bracknell Forest Council","http://opendatacommunities.org/id/unitary-authority/bracknell-forest","Bracknell Forest Council","00MA","Children Looked After","Other services for LAC","LAC - Semi Independent Living","Contracted Services",30/06/2020 00:00:00,"6706894",5206.6,"BACK TO BACK CARE"
"Bracknell Forest Council","http://opendatacommunities.org/id/unitary-authority/bracknell-forest","Bracknell Forest Council","00MA","Children Looked After","Other services for LAC","LAC - Semi Independent Living","Contracted Services",01/05/2020 00:00:00,"6706895",4684.02,"BACK TO BACK CARE"
"Bracknell Forest Council","http://opendatacommunities.org/id/unitary-authority/bracknell-forest","Bracknell Forest Council","00MA","Children Looked After","Other services for LAC","LAC - Semi Independent Living","Contracted Services",30/06/2020 00:00:00,"6706896",1536.2,"BACK TO BACK CARE"
"Bracknell Forest Council","http://opendatacommunities.org/id/unitary-authority/bracknell-forest","Bracknell Forest Council","00MA","Children Looked After","Other services for LAC","LAC - Semi Independent Living","Contracted Services",30/06/2020 00:00:00,"6706908",1644.78,"BACK TO BACK CARE"
"Bracknell Forest Council","http://opendatacommunities.org/id/unitary-authority/bracknell-forest","Bracknell Forest Council","00MA","Children Looked After","Other services for LAC","LAC - Semi Independent Living","Contracted Services",31/08/2020 00:00:00,"6709420",5374.02,"BACK TO BACK CARE"
"Bracknell Forest Council","http://opendatacommunities.org/id/unitary-authority/bracknell-forest","Bracknell Forest Council","00MA","Children Looked After","Other services for LAC","LAC- Over 11s Expenditure","Other Support to Clients",21/08/2020 00:00:00,"6708288",1587,"BACK TO BACK CARE"
"Bracknell Forest Council","http://opendatacommunities.org/id/unitary-authority/bracknell-forest","Bracknell Forest Council","00MA","Children Looked After","Other services for LAC","LAC- Over 11s Expenditure","Other Support to Clients",30/06/2020 00:00:00,"6707201",2622,"BACK TO BACK CARE"
"Bracknell Forest Council","http://opendatacommunities.org/id/unitary-authority/bracknell-forest","Bracknell Forest Council","00MA","Other Council Property","Travellers' Sites","Easthampstead Park Caravan Site","Water & Sewerage",02/07/2020 00:00:00,"6706252",734.72,"CASTLE WATER LIMITED"
"Bracknell Forest Council","http://opendatacommunities.org/id/unitary-authority/bracknell-forest","Bracknell Forest Council","00MA","Other Council Property","Travellers' Sites","Easthampstead Park Caravan Site","Water & Sewerage",02/10/2020 00:00:00,"6711008",1943.15,"CASTLE WATER LIMITED"
"Bracknell Forest Council","http://opendatacommunities.org/id/unitary-authority/bracknell-forest","Bracknell Forest Council","00MA","Other Education and Community Budget","Adult and Community Learning","Open Learning Centre - Brakenhale","Water & Sewerage",02/10/2020 00:00:00,"6710396",637.45,"CASTLE WATER LIMITED"
"Bracknell Forest Council","http://opendatacommunities.org/id/unitary-authority/bracknell-forest","Bracknell Forest Council","00MA","Regulatory Services","Public Conveniences","Public Conveniences","Water & Sewerage",04/09/2020 00:00:00,"6711709",944.88,"CASTLE WATER LIMITED"
"Bracknell Forest Council","http://opendatacommunities.org/id/unitary-authority/bracknell-forest","Bracknell Forest Council","00MA","Management and Support Services - CYPL","Unallocated High Needs Related Expenditure","Mainstream - Element 3 top up non BFC pre 16","Other Local Authorities",07/07/2020 00:00:00,"6709305",22309.37,"CATCH22 MULTI ACADEMIES TRUST (THE COPPICE SPRING ACADEMY)"
"Bracknell Forest Council","http://opendatacommunities.org/id/unitary-authority/bracknell-forest","Bracknell Forest Council","00MA","Post 16 Provision","High needs budget fpr post-16 provision","SEN Non LEA Provision Post16","Voluntary Sector Service Providers",07/07/2020 00:00:00,"6707822",6113,"CATCH22 MULTI ACADEMIES TRUST (THE COPPICE SPRING ACADEMY)"
"Bracknell Forest Council","http://opendatacommunities.org/id/unitary-authority/bracknell-forest","Bracknell Forest Council","00MA","Management and Support Services - CYPL","Unallocated High Needs Related Expenditure","Mainstream - Element 3 top up non BFC pre 16","Other Local Authorities",31/08/2020 00:00:00,"6709306",-8526.04,"CATCH22 MULTI ACADEMIES TRUST (THE COPPICE SPRING ACADEMY)"
"Bracknell Forest Council","http://opendatacommunities.org/id/unitary-authority/bracknell-forest","Bracknell Forest Council","00MA","Children Looked After","Residential care","Children's Home Placements","Contracted Services",01/10/2020 00:00:00,"6711853",11440,"CAUSEWAY CARE HOMES LIMITED"
"Bracknell Forest Council","http://opendatacommunities.org/id/unitary-authority/bracknell-forest","Bracknell Forest Council","00MA","Children Looked After","Residential care","Children's Home Placements","Contracted Services",01/07/2020 00:00:00,"6706763",13640,"CAUSEWAY CARE HOMES LIMITED"
"Bracknell Forest Council","http://opendatacommunities.org/id/unitary-authority/bracknell-forest","Bracknell Forest Council","00MA","Children Looked After","Residential care","Children's Home Placements","Contracted Services",01/08/2020 00:00:00,"6707281",13640,"CAUSEWAY CARE HOMES LIMITED"
"Bracknell Forest Council","http://opendatacommunities.org/id/unitary-authority/bracknell-forest","Bracknell Forest Council","00MA","Children Looked After","Residential care","Children's Home Placements","Contracted Services",01/09/2020 00:00:00,"6708719",13200,"CAUSEWAY CARE HOMES LIMITED"
"Bracknell Forest Council","http://opendatacommunities.org/id/unitary-authority/bracknell-forest","Bracknell Forest Council","00MA","Transport Planning, Policy & Strategy","Transport Policy, Planning & Strategy","Monitoring Street Works","Contracted Services",21/09/2020 00:00:00,"6710098",635,"CCS MEDIA LIMITED"
"Bracknell Forest Council","http://opendatacommunities.org/id/unitary-authority/bracknell-forest","Bracknell Forest Council","00MA","Transport Planning, Policy & Strategy","Transport Policy, Planning & Strategy","Monitoring Street Works","Equipment - Purchase",26/10/2020 00:00:00,"6711649",1270,"CCS MEDIA LIMITED"
"Bracknell Forest Council","http://opendatacommunities.org/id/unitary-authority/bracknell-forest","Bracknell Forest Council","00MA","NHS Health Check Programme","NHS Health Check Programme","GP Health Checks","Contracted Services",01/09/2020 00:00:00,"6709158",800,"BALMORE PARK SURGERY"
"Bracknell Forest Council","http://opendatacommunities.org/id/unitary-authority/bracknell-forest","Bracknell Forest Council","00MA","Sexual Health Services","Contraception","GP LARC Payments","Contracted Services",01/09/2020 00:00:00,"6709158",4017.6,"BALMORE PARK SURGERY"
"Bracknell Forest Council","http://opendatacommunities.org/id/unitary-authority/bracknell-forest","Bracknell Forest Council","00MA","Sexual Health Services","Contraception","GP LARC Payments","Contracted Services",21/10/2020 00:00:00,"6711533",3794.4,"BALMORE PARK SURGERY"
"Bracknell Forest Council","http://opendatacommunities.org/id/unitary-authority/bracknell-forest","Bracknell Forest Council","00MA","Social Care Activities","Social Care Activities","MH Management & Administration","Agency",10/11/2020 00:00:00,"6712816",3431.26,"BALTIMORE CONSULTING LTD"
"Bracknell Forest Council","http://opendatacommunities.org/id/unitary-authority/bracknell-forest","Bracknell Forest Council","00MA","Social Care Activities","Social Care Activities","MH Management & Administration","Agency",18/11/2020 00:00:00,"6712817",2109.38,"BALTIMORE CONSULTING LTD"
"Bracknell Forest Council","http://opendatacommunities.org/id/unitary-authority/bracknell-forest","Bracknell Forest Council","00MA","Adults (18-64)","Long Term Support - Nursing","MC Adults 18-64 Long Term Support - Nursing","Contracted Services",09/07/2020 00:00:00,"30379636",3915.68,"BARCHESTER HEALTHCARE LTD"
"Bracknell Forest Council","http://opendatacommunities.org/id/unitary-authority/bracknell-forest","Bracknell Forest Council","00MA","Older People (65+)","Long Term Support - Nursing","MC Older People 65+ Long Term Support - Nursing","Contracted Services",09/07/2020 00:00:00,"30379636",3590.44,"BARCHESTER HEALTHCARE LTD"
"Bracknell Forest Council","http://opendatacommunities.org/id/unitary-authority/bracknell-forest","Bracknell Forest Council","00MA","Older People (65+)","Long Term Support - Nursing","MC Older People 65+ Long Term Support - Nursing","Contracted Services",09/07/2020 00:00:00,"30379636",3800,"BARCHESTER HEALTHCARE LTD"
"Bracknell Forest Council","http://opendatacommunities.org/id/unitary-authority/bracknell-forest","Bracknell Forest Council","00MA","Older People (65+)","Long Term Support - Nursing","MC Older People 65+ Long Term Support - Nursing","Contracted Services",09/07/2020 00:00:00,"30379636",3727.12,"BARCHESTER HEALTHCARE LTD"
"Bracknell Forest Council","http://opendatacommunities.org/id/unitary-authority/bracknell-forest","Bracknell Forest Council","00MA","Older People (65+)","Long Term Support - Nursing","PS Older People 65+ Long Term Support - Nursing","Contracted Services",09/07/2020 00:00:00,"30379636",3864.6,"BARCHESTER HEALTHCARE LTD"
"Bracknell Forest Council","http://opendatacommunities.org/id/unitary-authority/bracknell-forest","Bracknell Forest Council","00MA","Older People (65+)","Long Term Support - Nursing","MC Older People 65+ Long Term Support - Nursing","Contracted Services",09/07/2020 00:00:00,"30379636",4141.24,"BARCHESTER HEALTHCARE LTD"
"Bracknell Forest Council","http://opendatacommunities.org/id/unitary-authority/bracknell-forest","Bracknell Forest Council","00MA","Older People (65+)","Long Term Support - Nursing","MC Older People 65+ Long Term Support - Nursing","Contracted Services",09/07/2020 00:00:00,"30379636",3864.6,"BARCHESTER HEALTHCARE LTD"
"Bracknell Forest Council","http://opendatacommunities.org/id/unitary-authority/bracknell-forest","Bracknell Forest Council","00MA","Older People (65+)","Long Term Support - Nursing","MC Older People 65+ Long Term Support - Nursing","Contracted Services",09/07/2020 00:00:00,"30379636",3507.12,"BARCHESTER HEALTHCARE LTD"
"Bracknell Forest Council","http://opendatacommunities.org/id/unitary-authority/bracknell-forest","Bracknell Forest Council","00MA","Older People (65+)","Long Term Support - Nursing","PS Older People 65+ Long Term Support - Nursing","Contracted Services",09/07/2020 00:00:00,"30379636",2815.64,"BARCHESTER HEALTHCARE LTD"
"Bracknell Forest Council","http://opendatacommunities.org/id/unitary-authority/bracknell-forest","Bracknell Forest Council","00MA","Adults (18-64)","Long Term Support - Nursing","PS Adults 18-64 Long Term Support - Nursing","Contracted Services",09/07/2020 00:00:00,"30379636",4173.36,"BARCHESTER HEALTHCARE LTD"
"Bracknell Forest Council","http://opendatacommunities.org/id/unitary-authority/bracknell-forest","Bracknell Forest Council","00MA","Older People (65+)","Long Term Support - Nursing","MC Older People 65+ Long Term Support - Nursing","Contracted Services",06/08/2020 00:00:00,"30380809",3864.6,"BARCHESTER HEALTHCARE LTD"
"Bracknell Forest Council","http://opendatacommunities.org/id/unitary-authority/bracknell-forest","Bracknell Forest Council","00MA","Older People (65+)","Long Term Support - Nursing","MC Older People 65+ Long Term Support - Nursing","Contracted Services",06/08/2020 00:00:00,"30380809",3507.12,"BARCHESTER HEALTHCARE LTD"
"Bracknell Forest Council","http://opendatacommunities.org/id/unitary-authority/bracknell-forest","Bracknell Forest Council","00MA","Older People (65+)","Long Term Support - Nursing","MC Older People 65+ Long Term Support - Nursing","Contracted Services",06/08/2020 00:00:00,"30380809",4141.24,"BARCHESTER HEALTHCARE LTD"
"Bracknell Forest Council","http://opendatacommunities.org/id/unitary-authority/bracknell-forest","Bracknell Forest Council","00MA","Older People (65+)","Long Term Support - Nursing","MC Older People 65+ Long Term Support - Nursing","Contracted Services",06/08/2020 00:00:00,"30380809",3727.12,"BARCHESTER HEALTHCARE LTD"
"Bracknell Forest Council","http://opendatacommunities.org/id/unitary-authority/bracknell-forest","Bracknell Forest Council","00MA","Older People (65+)","Long Term Support - Nursing","MC Older People 65+ Long Term Support - Nursing","Contracted Services",06/08/2020 00:00:00,"30380809",3800,"BARCHESTER HEALTHCARE LTD"
"Bracknell Forest Council","http://opendatacommunities.org/id/unitary-authority/bracknell-forest","Bracknell Forest Council","00MA","Older People (65+)","Long Term Support - Nursing","MC Older People 65+ Long Term Support - Nursing","Contracted Services",06/08/2020 00:00:00,"30380809",3590.44,"BARCHESTER HEALTHCARE LTD"
"Bracknell Forest Council","http://opendatacommunities.org/id/unitary-authority/bracknell-forest","Bracknell Forest Council","00MA","Older People (65+)","Long Term Support - Nursing","PS Older People 65+ Long Term Support - Nursing","Contracted Services",06/08/2020 00:00:00,"30380809",3864.6,"BARCHESTER HEALTHCARE LTD"
"Bracknell Forest Council","http://opendatacommunities.org/id/unitary-authority/bracknell-forest","Bracknell Forest Council","00MA","Adults (18-64)","Long Term Support - Nursing","MC Adults 18-64 Long Term Support - Nursing","Contracted Services",06/08/2020 00:00:00,"30380809",3915.68,"BARCHESTER HEALTHCARE LTD"
"Bracknell Forest Council","http://opendatacommunities.org/id/unitary-authority/bracknell-forest","Bracknell Forest Council","00MA","Adults (18-64)","Long Term Support - Nursing","PS Adults 18-64 Long Term Support - Nursing","Contracted Services",06/08/2020 00:00:00,"30380809",4173.36,"BARCHESTER HEALTHCARE LTD"
"Bracknell Forest Council","http://opendatacommunities.org/id/unitary-authority/bracknell-forest","Bracknell Forest Council","00MA","Older People (65+)","Long Term Support - Nursing","PS Older People 65+ Long Term Support - Nursing","Contracted Services",06/08/2020 00:00:00,"30380809",2815.64,"BARCHESTER HEALTHCARE LTD"
"Bracknell Forest Council","http://opendatacommunities.org/id/unitary-authority/bracknell-forest","Bracknell Forest Council","00MA","Older People (65+)","Long Term Support - Nursing","MC Older People 65+ Long Term Support - Nursing","Contracted Services",03/09/2020 00:00:00,"30381911",3800,"BARCHESTER HEALTHCARE LTD"
"Bracknell Forest Council","http://opendatacommunities.org/id/unitary-authority/bracknell-forest","Bracknell Forest Council","00MA","Older People (65+)","Long Term Support - Nursing","MC Older People 65+ Long Term Support - Nursing","Contracted Services",03/09/2020 00:00:00,"30381911",4141.24,"BARCHESTER HEALTHCARE LTD"
"Bracknell Forest Council","http://opendatacommunities.org/id/unitary-authority/bracknell-forest","Bracknell Forest Council","00MA","Older People (65+)","Long Term Support - Nursing","MC Older People 65+ Long Term Support - Nursing","Contracted Services",03/09/2020 00:00:00,"30381911",3590.44,"BARCHESTER HEALTHCARE LTD"
"Bracknell Forest Council","http://opendatacommunities.org/id/unitary-authority/bracknell-forest","Bracknell Forest Council","00MA","Older People (65+)","Long Term Support - Nursing","MC Older People 65+ Long Term Support - Nursing","Contracted Services",03/09/2020 00:00:00,"30381911",3727.12,"BARCHESTER HEALTHCARE LTD"
"Bracknell Forest Council","http://opendatacommunities.org/id/unitary-authority/bracknell-forest","Bracknell Forest Council","00MA","Older People (65+)","Long Term Support - Nursing","MC Older People 65+ Long Term Support - Nursing","Contracted Services",03/09/2020 00:00:00,"30381911",3507.12,"BARCHESTER HEALTHCARE LTD"
"Bracknell Forest Council","http://opendatacommunities.org/id/unitary-authority/bracknell-forest","Bracknell Forest Council","00MA","Older People (65+)","Long Term Support - Nursing","MC Older People 65+ Long Term Support - Nursing","Contracted Services",03/09/2020 00:00:00,"30381911",3864.6,"BARCHESTER HEALTHCARE LTD"
"Bracknell Forest Council","http://opendatacommunities.org/id/unitary-authority/bracknell-forest","Bracknell Forest Council","00MA","Adults (18-64)","Long Term Support - Nursing","MC Adults 18-64 Long Term Support - Nursing","Contracted Services",03/09/2020 00:00:00,"30381911",3915.68,"BARCHESTER HEALTHCARE LTD"
"Bracknell Forest Council","http://opendatacommunities.org/id/unitary-authority/bracknell-forest","Bracknell Forest Council","00MA","Older People (65+)","Long Term Support - Nursing","PS Older People 65+ Long Term Support - Nursing","Contracted Services",03/09/2020 00:00:00,"30381911",3864.6,"BARCHESTER HEALTHCARE LTD"
"Bracknell Forest Council","http://opendatacommunities.org/id/unitary-authority/bracknell-forest","Bracknell Forest Council","00MA","Older People (65+)","Long Term Support - Nursing","PS Older People 65+ Long Term Support - Nursing","Contracted Services",03/09/2020 00:00:00,"30381911",2815.64,"BARCHESTER HEALTHCARE LTD"
"Bracknell Forest Council","http://opendatacommunities.org/id/unitary-authority/bracknell-forest","Bracknell Forest Council","00MA","Adults (18-64)","Long Term Support - Nursing","PS Adults 18-64 Long Term Support - Nursing","Contracted Services",03/09/2020 00:00:00,"30381911",4173.36,"BARCHESTER HEALTHCARE LTD"
"Bracknell Forest Council","http://opendatacommunities.org/id/unitary-authority/bracknell-forest","Bracknell Forest Council","00MA","Older People (65+)","Long Term Support - Nursing","MC Older People 65+ Long Term Support - Nursing","Contracted Services",01/10/2020 00:00:00,"30383143",3800,"BARCHESTER HEALTHCARE LTD"
"Bracknell Forest Council","http://opendatacommunities.org/id/unitary-authority/bracknell-forest","Bracknell Forest Council","00MA","Older People (65+)","Long Term Support - Nursing","MC Older People 65+ Long Term Support - Nursing","Contracted Services",01/10/2020 00:00:00,"30383143",3590.44,"BARCHESTER HEALTHCARE LTD"
"Bracknell Forest Council","http://opendatacommunities.org/id/unitary-authority/bracknell-forest","Bracknell Forest Council","00MA","Adults (18-64)","Long Term Support - Nursing","MC Adults 18-64 Long Term Support - Nursing","Contracted Services",01/10/2020 00:00:00,"30383143",3915.68,"BARCHESTER HEALTHCARE LTD"
"Bracknell Forest Council","http://opendatacommunities.org/id/unitary-authority/bracknell-forest","Bracknell Forest Council","00MA","Older People (65+)","Long Term Support - Nursing","MC Older People 65+ Long Term Support - Nursing","Contracted Services",01/10/2020 00:00:00,"30383143",4141.24,"BARCHESTER HEALTHCARE LTD"
"Bracknell Forest Council","http://opendatacommunities.org/id/unitary-authority/bracknell-forest","Bracknell Forest Council","00MA","Older People (65+)","Long Term Support - Nursing","MC Older People 65+ Long Term Support - Nursing","Contracted Services",01/10/2020 00:00:00,"30383143",3864.6,"BARCHESTER HEALTHCARE LTD"
"Bracknell Forest Council","http://opendatacommunities.org/id/unitary-authority/bracknell-forest","Bracknell Forest Council","00MA","Older People (65+)","Long Term Support - Nursing","MC Older People 65+ Long Term Support - Nursing","Contracted Services",01/10/2020 00:00:00,"30383143",3727.12,"BARCHESTER HEALTHCARE LTD"
"Bracknell Forest Council","http://opendatacommunities.org/id/unitary-authority/bracknell-forest","Bracknell Forest Council","00MA","Older People (65+)","Long Term Support - Nursing","MC Older People 65+ Long Term Support - Nursing","Contracted Services",01/10/2020 00:00:00,"30383143",3507.12,"BARCHESTER HEALTHCARE LTD"
"Bracknell Forest Council","http://opendatacommunities.org/id/unitary-authority/bracknell-forest","Bracknell Forest Council","00MA","Older People (65+)","Long Term Support - Nursing","PS Older People 65+ Long Term Support - Nursing","Contracted Services",01/10/2020 00:00:00,"30383143",3864.6,"BARCHESTER HEALTHCARE LTD"
"Bracknell Forest Council","http://opendatacommunities.org/id/unitary-authority/bracknell-forest","Bracknell Forest Council","00MA","Adults (18-64)","Long Term Support - Nursing","PS Adults 18-64 Long Term Support - Nursing","Contracted Services",01/10/2020 00:00:00,"30383143",4173.36,"BARCHESTER HEALTHCARE LTD"
"Bracknell Forest Council","http://opendatacommunities.org/id/unitary-authority/bracknell-forest","Bracknell Forest Council","00MA","Older People (65+)","Long Term Support - Nursing","PS Older People 65+ Long Term Support - Nursing","Contracted Services",01/10/2020 00:00:00,"30383143",5515.64,"BARCHESTER HEALTHCARE LTD"
"Bracknell Forest Council","http://opendatacommunities.org/id/unitary-authority/bracknell-forest","Bracknell Forest Council","00MA","Older People (65+)","Long Term Support - Nursing","PS Older People 65+ Long Term Support - Nursing","Contracted Services",29/10/2020 00:00:00,"30384805",2815.64,"BARCHESTER HEALTHCARE LTD"
"Bracknell Forest Council","http://opendatacommunities.org/id/unitary-authority/bracknell-forest","Bracknell Forest Council","00MA","Adults (18-64)","Long Term Support - Nursing","PS Adults 18-64 Long Term Support - Nursing","Contracted Services",29/10/2020 00:00:00,"30384805",4173.36,"BARCHESTER HEALTHCARE LTD"
"Bracknell Forest Council","http://opendatacommunities.org/id/unitary-authority/bracknell-forest","Bracknell Forest Council","00MA","Older People (65+)","Long Term Support - Nursing","MC Older People 65+ Long Term Support - Nursing","Contracted Services",29/10/2020 00:00:00,"30384805",3507.12,"BARCHESTER HEALTHCARE LTD"
"Bracknell Forest Council","http://opendatacommunities.org/id/unitary-authority/bracknell-forest","Bracknell Forest Council","00MA","Older People (65+)","Long Term Support - Nursing","MC Older People 65+ Long Term Support - Nursing","Contracted Services",29/10/2020 00:00:00,"30384805",3864.6,"BARCHESTER HEALTHCARE LTD"
"Bracknell Forest Council","http://opendatacommunities.org/id/unitary-authority/bracknell-forest","Bracknell Forest Council","00MA","Older People (65+)","Long Term Support - Nursing","MC Older People 65+ Long Term Support - Nursing","Contracted Services",29/10/2020 00:00:00,"30384805",3800,"BARCHESTER HEALTHCARE LTD"
"Bracknell Forest Council","http://opendatacommunities.org/id/unitary-authority/bracknell-forest","Bracknell Forest Council","00MA","Older People (65+)","Long Term Support - Nursing","MC Older People 65+ Long Term Support - Nursing","Contracted Services",29/10/2020 00:00:00,"30384805",3590.44,"BARCHESTER HEALTHCARE LTD"
"Bracknell Forest Council","http://opendatacommunities.org/id/unitary-authority/bracknell-forest","Bracknell Forest Council","00MA","Older People (65+)","Long Term Support - Nursing","MC Older People 65+ Long Term Support - Nursing","Contracted Services",29/10/2020 00:00:00,"30384805",3727.12,"BARCHESTER HEALTHCARE LTD"
"Bracknell Forest Council","http://opendatacommunities.org/id/unitary-authority/bracknell-forest","Bracknell Forest Council","00MA","Older People (65+)","Long Term Support - Nursing","MC Older People 65+ Long Term Support - Nursing","Contracted Services",29/10/2020 00:00:00,"30384805",4141.24,"BARCHESTER HEALTHCARE LTD"
"Bracknell Forest Council","http://opendatacommunities.org/id/unitary-authority/bracknell-forest","Bracknell Forest Council","00MA","Older People (65+)","Long Term Support - Nursing","PS Older People 65+ Long Term Support - Nursing","Contracted Services",29/10/2020 00:00:00,"30384805",3864.6,"BARCHESTER HEALTHCARE LTD"
"Bracknell Forest Council","http://opendatacommunities.org/id/unitary-authority/bracknell-forest","Bracknell Forest Council","00MA","Adults (18-64)","Long Term Support - Nursing","MC Adults 18-64 Long Term Support - Nursing","Contracted Services",29/10/2020 00:00:00,"30384805",3915.68,"BARCHESTER HEALTHCARE LTD"
"Bracknell Forest Council","http://opendatacommunities.org/id/unitary-authority/bracknell-forest","Bracknell Forest Council","00MA","Older People (65+)","Long Term Support - Nursing","PS Older People 65+ Long Term Support - Nursing","Contracted Services",26/11/2020 00:00:00,"30386111",2815.64,"BARCHESTER HEALTHCARE LTD"
"Bracknell Forest Council","http://opendatacommunities.org/id/unitary-authority/bracknell-forest","Bracknell Forest Council","00MA","Adults (18-64)","Long Term Support - Nursing","PS Adults 18-64 Long Term Support - Nursing","Contracted Services",26/11/2020 00:00:00,"30386111",4173.36,"BARCHESTER HEALTHCARE LTD"
"Bracknell Forest Council","http://opendatacommunities.org/id/unitary-authority/bracknell-forest","Bracknell Forest Council","00MA","Older People (65+)","Long Term Support - Nursing","MC Older People 65+ Long Term Support - Nursing","Contracted Services",26/11/2020 00:00:00,"30386111",1774.82,"BARCHESTER HEALTHCARE LTD"
"Bracknell Forest Council","http://opendatacommunities.org/id/unitary-authority/bracknell-forest","Bracknell Forest Council","00MA","Older People (65+)","Long Term Support - Nursing","MC Older People 65+ Long Term Support - Nursing","Contracted Services",26/11/2020 00:00:00,"30386111",3864.6,"BARCHESTER HEALTHCARE LTD"
"Bracknell Forest Council","http://opendatacommunities.org/id/unitary-authority/bracknell-forest","Bracknell Forest Council","00MA","Older People (65+)","Long Term Support - Nursing","MC Older People 65+ Long Term Support - Nursing","Contracted Services",26/11/2020 00:00:00,"30386111",3590.44,"BARCHESTER HEALTHCARE LTD"
"Bracknell Forest Council","http://opendatacommunities.org/id/unitary-authority/bracknell-forest","Bracknell Forest Council","00MA","Adults (18-64)","Long Term Support - Nursing","MC Adults 18-64 Long Term Support - Nursing","Contracted Services",26/11/2020 00:00:00,"30386111",3915.68,"BARCHESTER HEALTHCARE LTD"
"Bracknell Forest Council","http://opendatacommunities.org/id/unitary-authority/bracknell-forest","Bracknell Forest Council","00MA","Older People (65+)","Long Term Support - Nursing","MC Older People 65+ Long Term Support - Nursing","Contracted Services",26/11/2020 00:00:00,"30386111",1863.56,"BARCHESTER HEALTHCARE LTD"
"Bracknell Forest Council","http://opendatacommunities.org/id/unitary-authority/bracknell-forest","Bracknell Forest Council","00MA","Older People (65+)","Long Term Support - Nursing","MC Older People 65+ Long Term Support - Nursing","Contracted Services",26/11/2020 00:00:00,"30386111",3507.12,"BARCHESTER HEALTHCARE LTD"
"Bracknell Forest Council","http://opendatacommunities.org/id/unitary-authority/bracknell-forest","Bracknell Forest Council","00MA","Older People (65+)","Long Term Support - Nursing","MC Older People 65+ Long Term Support - Nursing","Contracted Services",26/11/2020 00:00:00,"30386111",3800,"BARCHESTER HEALTHCARE LTD"
"Bracknell Forest Council","http://opendatacommunities.org/id/unitary-authority/bracknell-forest","Bracknell Forest Council","00MA","Older People (65+)","Long Term Support - Nursing","PS Older People 65+ Long Term Support - Nursing","Contracted Services",26/11/2020 00:00:00,"30386111",3864.6,"BARCHESTER HEALTHCARE LTD"
"Bracknell Forest Council","http://opendatacommunities.org/id/unitary-authority/bracknell-forest","Bracknell Forest Council","00MA","Older People (65+)","Long term Support - Residential","PS Older People 65+ Long Term Support - Residential","Contracted Services",09/07/2020 00:00:00,"30379636",2610.48,"BARCHESTER HEALTHCARE T/A WIMBORNE CARE HOME"
"Bracknell Forest Council","http://opendatacommunities.org/id/unitary-authority/bracknell-forest","Bracknell Forest Council","00MA","Older People (65+)","Long term Support - Residential","PS Older People 65+ Long Term Support - Residential","Contracted Services",06/08/2020 00:00:00,"30380809",2610.48,"BARCHESTER HEALTHCARE T/A WIMBORNE CARE HOME"
"Bracknell Forest Council","http://opendatacommunities.org/id/unitary-authority/bracknell-forest","Bracknell Forest Council","00MA","Older People (65+)","Long term Support - Residential","PS Older People 65+ Long Term Support - Residential","Contracted Services",03/09/2020 00:00:00,"30381911",2610.48,"BARCHESTER HEALTHCARE T/A WIMBORNE CARE HOME"
"Bracknell Forest Council","http://opendatacommunities.org/id/unitary-authority/bracknell-forest","Bracknell Forest Council","00MA","Older People (65+)","Long term Support - Residential","PS Older People 65+ Long Term Support - Residential","Contracted Services",01/10/2020 00:00:00,"30383143",2610.48,"BARCHESTER HEALTHCARE T/A WIMBORNE CARE HOME"
"Bracknell Forest Council","http://opendatacommunities.org/id/unitary-authority/bracknell-forest","Bracknell Forest Council","00MA","Older People (65+)","Long term Support - Residential","PS Older People 65+ Long Term Support - Residential","Contracted Services",29/10/2020 00:00:00,"30384805",2610.48,"BARCHESTER HEALTHCARE T/A WIMBORNE CARE HOME"
"Bracknell Forest Council","http://opendatacommunities.org/id/unitary-authority/bracknell-forest","Bracknell Forest Council","00MA","Older People (65+)","Long term Support - Residential","PS Older People 65+ Long Term Support - Residential","Contracted Services",26/11/2020 00:00:00,"30386111",2610.48,"BARCHESTER HEALTHCARE T/A WIMBORNE CARE HOME"
"Bracknell Forest Council","http://opendatacommunities.org/id/unitary-authority/bracknell-forest","Bracknell Forest Council","00MA","Open Spaces","Community Parks & Open Spaces","Tree Service","Contracted Services",29/09/2020 00:00:00,"6710097",8090,"BARKLAND TREES"
"Bracknell Forest Council","http://opendatacommunities.org/id/unitary-authority/bracknell-forest","Bracknell Forest Council","00MA","Open Spaces","Community Parks & Open Spaces","Tree Service","Contracted Services",22/10/2020 00:00:00,"6711606",850,"BARKLAND TREES"
"Bracknell Forest Council","http://opendatacommunities.org/id/unitary-authority/bracknell-forest","Bracknell Forest Council","00MA","Management and Support Services - CYPL","Unallocated High Needs Related Expenditure","SEN Non LEA Provision Pre 16","Voluntary Sector Service Providers",19/06/2020 00:00:00,"6707753",3142,"BARNARDO SERVICES LTD"
"Bracknell Forest Council","http://opendatacommunities.org/id/unitary-authority/bracknell-forest","Bracknell Forest Council","00MA","Management and Support Services - CYPL","Unallocated High Needs Related Expenditure","SEN Non LEA Provision Pre 16","Voluntary Sector Service Providers",21/09/2020 00:00:00,"6712070",13268,"BARNARDO SERVICES LTD"
"Bracknell Forest Council","http://opendatacommunities.org/id/unitary-authority/bracknell-forest","Bracknell Forest Council","00MA","Management and Support Services - CYPL","Unallocated High Needs Related Expenditure","SEN Non LEA Provision Pre 16","Voluntary Sector Service Providers",21/09/2020 00:00:00,"6712072",13268,"BARNARDO SERVICES LTD"
"Bracknell Forest Council","http://opendatacommunities.org/id/unitary-authority/bracknell-forest","Bracknell Forest Council","00MA","Management and Support Services - CYPL","Unallocated High Needs Related Expenditure","SEN Non LEA Provision Pre 16","Voluntary Sector Service Providers",21/09/2020 00:00:00,"6712073",13268,"BARNARDO SERVICES LTD"
"Bracknell Forest Council","http://opendatacommunities.org/id/unitary-authority/bracknell-forest","Bracknell Forest Council","00MA","Management and Support Services - CYPL","Unallocated High Needs Related Expenditure","SEN Non LEA Provision Pre 16","Voluntary Sector Service Providers",21/09/2020 00:00:00,"6712074",14268,"BARNARDO SERVICES LTD"
"Bracknell Forest Council","http://opendatacommunities.org/id/unitary-authority/bracknell-forest","Bracknell Forest Council","00MA","Management and Support Services - CYPL","Unallocated High Needs Related Expenditure","SEN Non LEA Provision Pre 16","Voluntary Sector Service Providers",21/09/2020 00:00:00,"6712075",14268,"BARNARDO SERVICES LTD"
"Bracknell Forest Council","http://opendatacommunities.org/id/unitary-authority/bracknell-forest","Bracknell Forest Council","00MA","Management and Support Services - CYPL","Unallocated High Needs Related Expenditure","SEN Non LEA Provision Pre 16","Voluntary Sector Service Providers",21/09/2020 00:00:00,"6712076",14268,"BARNARDO SERVICES LTD"
"Bracknell Forest Council","http://opendatacommunities.org/id/unitary-authority/bracknell-forest","Bracknell Forest Council","00MA","Management and Support Services - CYPL","Unallocated High Needs Related Expenditure","SEN Non LEA Provision Pre 16","Voluntary Sector Service Providers",21/09/2020 00:00:00,"6712077",14268,"BARNARDO SERVICES LTD"
"Bracknell Forest Council","http://opendatacommunities.org/id/unitary-authority/bracknell-forest","Bracknell Forest Council","00MA","Management and Support Services - CYPL","Unallocated High Needs Related Expenditure","SEN Non LEA Provision Pre 16","Voluntary Sector Service Providers",21/09/2020 00:00:00,"6712078",14268,"BARNARDO SERVICES LTD"
"Bracknell Forest Council","http://opendatacommunities.org/id/unitary-authority/bracknell-forest","Bracknell Forest Council","00MA","Management and Support Services - CYPL","Unallocated High Needs Related Expenditure","SEN Non LEA Provision Pre 16","Voluntary Sector Service Providers",21/09/2020 00:00:00,"6712079",14268,"BARNARDO SERVICES LTD"
"Bracknell Forest Council","http://opendatacommunities.org/id/unitary-authority/bracknell-forest","Bracknell Forest Council","00MA","Management and Support Services - CYPL","Unallocated High Needs Related Expenditure","SEN Non LEA Provision Pre 16","Voluntary Sector Service Providers",21/09/2020 00:00:00,"6712080",14268,"BARNARDO SERVICES LTD"
"Bracknell Forest Council","http://opendatacommunities.org/id/unitary-authority/bracknell-forest","Bracknell Forest Council","00MA","Management and Support Services - CYPL","Unallocated High Needs Related Expenditure","SEN Non LEA Provision Pre 16","Voluntary Sector Service Providers",21/09/2020 00:00:00,"6712081",13268,"BARNARDO SERVICES LTD"
"Bracknell Forest Council","http://opendatacommunities.org/id/unitary-authority/bracknell-forest","Bracknell Forest Council","00MA","Management and Support Services - CYPL","Unallocated High Needs Related Expenditure","SEN Non LEA Provision Pre 16","Voluntary Sector Service Providers",09/10/2020 00:00:00,"6711715",8314,"BARNARDO SERVICES LTD"
"Bracknell Forest Council","http://opendatacommunities.org/id/unitary-authority/bracknell-forest","Bracknell Forest Council","00MA","Homelessness","Prevention","Homelessness Prevention","Legal Fees",06/11/2020 00:00:00,"6712717",8354.6,"BARRETT & THOMPSON SOLICITORS"
"Bracknell Forest Council","http://opendatacommunities.org/id/unitary-authority/bracknell-forest","Bracknell Forest Council","00MA","Safeguarding Children and Young People's Services","Commissioning and children's services strategy","Complaints Procedure","Consultants Fees",27/11/2020 00:00:00,"6713395",630,"BAS BOOKS LTD"
"Bracknell Forest Council","http://opendatacommunities.org/id/unitary-authority/bracknell-forest","Bracknell Forest Council","00MA","Safeguarding Children and Young People's Services","Commissioning and children's services strategy","Complaints Procedure","Consultants Fees",04/09/2020 00:00:00,"6708841",615,"BAS BOOKS LTD"
"Bracknell Forest Council","http://opendatacommunities.org/id/unitary-authority/bracknell-forest","Bracknell Forest Council","00MA","Post 16 Provision","High needs budget fpr post-16 provision","SEN Non LEA Provision Post16","Voluntary Sector Service Providers",10/11/2020 00:00:00,"6712434",40391.64,"BCA BERKSHIRE COLLEGE OF AGRICULTURE"
"Bracknell Forest Council","http://opendatacommunities.org/id/unitary-authority/bracknell-forest","Bracknell Forest Council","00MA","Open Spaces","Community Parks & Open Spaces","Woodhurst Park Maintenance","R&M - Planned",19/07/2020 00:00:00,"6706531",500,"BCS"
"Bracknell Forest Council","http://opendatacommunities.org/id/unitary-authority/bracknell-forest","Bracknell Forest Council","00MA","Open Spaces","Community Parks & Open Spaces","Jennetts Park Maintenance","Contracted Services",14/09/2020 00:00:00,"6709249",900,"BCS"
"Bracknell Forest Council","http://opendatacommunities.org/id/unitary-authority/bracknell-forest","Bracknell Forest Council","00MA","Adults (18-64)","Long Term Support - Nursing","PS Adults 18-64 Long Term Support - Nursing","Contracted Services",09/07/2020 00:00:00,"30379636",5176.16,"BEACHER HALL NURSING CENTRE"
"Bracknell Forest Council","http://opendatacommunities.org/id/unitary-authority/bracknell-forest","Bracknell Forest Council","00MA","Adults (18-64)","Long Term Support - Nursing","PS Adults 18-64 Long Term Support - Nursing","Contracted Services",06/08/2020 00:00:00,"30380809",5176.16,"BEACHER HALL NURSING CENTRE"
"Bracknell Forest Council","http://opendatacommunities.org/id/unitary-authority/bracknell-forest","Bracknell Forest Council","00MA","Adults (18-64)","Long Term Support - Nursing","PS Adults 18-64 Long Term Support - Nursing","Contracted Services",03/09/2020 00:00:00,"30381911",5176.16,"BEACHER HALL NURSING CENTRE"
"Bracknell Forest Council","http://opendatacommunities.org/id/unitary-authority/bracknell-forest","Bracknell Forest Council","00MA","Adults (18-64)","Long Term Support - Nursing","PS Adults 18-64 Long Term Support - Nursing","Contracted Services",01/10/2020 00:00:00,"30383143",5176.16,"BEACHER HALL NURSING CENTRE"
"Bracknell Forest Council","http://opendatacommunities.org/id/unitary-authority/bracknell-forest","Bracknell Forest Council","00MA","Adults (18-64)","Long Term Support - Nursing","PS Adults 18-64 Long Term Support - Nursing","Contracted Services",29/10/2020 00:00:00,"30384805",5176.16,"BEACHER HALL NURSING CENTRE"
"Bracknell Forest Council","http://opendatacommunities.org/id/unitary-authority/bracknell-forest","Bracknell Forest Council","00MA","Adults (18-64)","Short Term Support Other","PS Adults 18-64 Other Short Term support","Contracted Services",26/11/2020 00:00:00,"30386111",10028.57,"BEACHER HALL NURSING CENTRE"
"Bracknell Forest Council","http://opendatacommunities.org/id/unitary-authority/bracknell-forest","Bracknell Forest Council","00MA","Adults (18-64)","Long Term Support - Nursing","PS Adults 18-64 Long Term Support - Nursing","Contracted Services",26/11/2020 00:00:00,"30386111",5176.16,"BEACHER HALL NURSING CENTRE"
"Bracknell Forest Council","http://opendatacommunities.org/id/unitary-authority/bracknell-forest","Bracknell Forest Council","00MA","Management and Support Services - CYPL","Unallocated High Needs Related Expenditure","SEN Non LEA Provision Pre 16","Voluntary Sector Service Providers",01/12/2020 00:00:00,"6713413",10322,"BEECH LODGE SCHOOL"
"Bracknell Forest Council","http://opendatacommunities.org/id/unitary-authority/bracknell-forest","Bracknell Forest Council","00MA","Management and Support Services - CYPL","Unallocated High Needs Related Expenditure","SEN Non LEA Provision Pre 16","Voluntary Sector Service Providers",01/12/2020 00:00:00,"6713414",8900,"BEECH LODGE SCHOOL"
"Bracknell Forest Council","http://opendatacommunities.org/id/unitary-authority/bracknell-forest","Bracknell Forest Council","00MA","Management and Support Services - CYPL","Unallocated High Needs Related Expenditure","SEN Non LEA Provision Pre 16","Voluntary Sector Service Providers",01/12/2020 00:00:00,"6713486",10717.5,"BEECH LODGE SCHOOL"
"Bracknell Forest Council","http://opendatacommunities.org/id/unitary-authority/bracknell-forest","Bracknell Forest Council","00MA","Management and Support Services - CYPL","Unallocated High Needs Related Expenditure","SEN Non LEA Provision Pre 16","Voluntary Sector Service Providers",01/12/2020 00:00:00,"6713415",10597,"BEECH LODGE SCHOOL"
"Bracknell Forest Council","http://opendatacommunities.org/id/unitary-authority/bracknell-forest","Bracknell Forest Council","00MA","Management and Support Services - CYPL","Unallocated High Needs Related Expenditure","SEN Non LEA Provision Pre 16","Voluntary Sector Service Providers",01/12/2020 00:00:00,"6713484",9577.5,"BEECH LODGE SCHOOL"
"Bracknell Forest Council","http://opendatacommunities.org/id/unitary-authority/bracknell-forest","Bracknell Forest Council","00MA","Management and Support Services - CYPL","Unallocated High Needs Related Expenditure","TPECG for SEND Pupils in Independant Settings","Voluntary Sector Service Providers",30/03/2020 00:00:00,"6706194",1748.64,"BEECH LODGE SCHOOL"
"Bracknell Forest Council","http://opendatacommunities.org/id/unitary-authority/bracknell-forest","Bracknell Forest Council","00MA","Management and Support Services - CYPL","Unallocated High Needs Related Expenditure","SEN Non LEA Provision Pre 16","Voluntary Sector Service Providers",01/07/2020 00:00:00,"6708709",10887,"BEECH LODGE SCHOOL"
"Bracknell Forest Council","http://opendatacommunities.org/id/unitary-authority/bracknell-forest","Bracknell Forest Council","00MA","Management and Support Services - CYPL","Unallocated High Needs Related Expenditure","SEN Non LEA Provision Pre 16","Voluntary Sector Service Providers",01/07/2020 00:00:00,"6708710",11461.7,"BEECH LODGE SCHOOL"
"Bracknell Forest Council","http://opendatacommunities.org/id/unitary-authority/bracknell-forest","Bracknell Forest Council","00MA","Management and Support Services - CYPL","Unallocated High Needs Related Expenditure","SEN Non LEA Provision Pre 16","Voluntary Sector Service Providers",01/07/2020 00:00:00,"6708711",11282.5,"BEECH LODGE SCHOOL"
"Bracknell Forest Council","http://opendatacommunities.org/id/unitary-authority/bracknell-forest","Bracknell Forest Council","00MA","Management and Support Services - CYPL","Unallocated High Needs Related Expenditure","SEN Non LEA Provision Pre 16","Voluntary Sector Service Providers",01/07/2020 00:00:00,"6708712",17866,"BEECH LODGE SCHOOL"
"Bracknell Forest Council","http://opendatacommunities.org/id/unitary-authority/bracknell-forest","Bracknell Forest Council","00MA","Management and Support Services - CYPL","Unallocated High Needs Related Expenditure","SEN Non LEA Provision Pre 16","Voluntary Sector Service Providers",01/07/2020 00:00:00,"6708713",9764.2,"BEECH LODGE SCHOOL"
"Bracknell Forest Council","http://opendatacommunities.org/id/unitary-authority/bracknell-forest","Bracknell Forest Council","00MA","Management and Support Services - CYPL","Unallocated High Needs Related Expenditure","SEN Non LEA Provision Pre 16","Voluntary Sector Service Providers",01/07/2020 00:00:00,"6708714",10392.5,"BEECH LODGE SCHOOL"
"Bracknell Forest Council","http://opendatacommunities.org/id/unitary-authority/bracknell-forest","Bracknell Forest Council","00MA","Management and Support Services - CYPL","Unallocated High Needs Related Expenditure","SEN Non LEA Provision Pre 16","Voluntary Sector Service Providers",01/07/2020 00:00:00,"6708991",9763.37,"BEECH LODGE SCHOOL"
"Bracknell Forest Council","http://opendatacommunities.org/id/unitary-authority/bracknell-forest","Bracknell Forest Council","00MA","Central Support Services - COF","Construction and Property","Depot Facilities","R&M - Planned",15/10/2020 00:00:00,"6713435",935,"BEHIND CLOSED DOORS LIMITED"
"Bracknell Forest Council","http://opendatacommunities.org/id/unitary-authority/bracknell-forest","Bracknell Forest Council","00MA","Open Spaces","Community Parks & Open Spaces","Tree Service","Contracted Services",21/08/2020 00:00:00,"6708383",500,"CEDARDALE"
"Bracknell Forest Council","http://opendatacommunities.org/id/unitary-authority/bracknell-forest","Bracknell Forest Council","00MA","Other Welfare Services","Other Welfare Services","Forestcare - Operational","Telephones - Rental & Call Charges",14/08/2020 00:00:00,"6708688",993.89,"CELLULAR SOLUTIONS AND SERVICES LTD"
"Bracknell Forest Council","http://opendatacommunities.org/id/unitary-authority/bracknell-forest","Bracknell Forest Council","00MA","Other Welfare Services","Other Welfare Services","Forestcare - Operational","Telephones - Rental & Call Charges",10/09/2020 00:00:00,"6709226",1083.9,"CELLULAR SOLUTIONS AND SERVICES LTD"
"Bracknell Forest Council","http://opendatacommunities.org/id/unitary-authority/bracknell-forest","Bracknell Forest Council","00MA","Other Welfare Services","Other Welfare Services","Forestcare - Operational","Telephones - Rental & Call Charges",10/11/2020 00:00:00,"6712436",1034.28,"CELLULAR SOLUTIONS AND SERVICES LTD"
"Bracknell Forest Council","http://opendatacommunities.org/id/unitary-authority/bracknell-forest","Bracknell Forest Council","00MA","Other Welfare Services","Other Welfare Services","Forestcare - Operational","Telephones - Rental & Call Charges",13/07/2020 00:00:00,"6706347",1009.29,"CELLULAR SOLUTIONS AND SERVICES LTD"
